Workbook

Sheet Model Description
B2: Tab | C2: Description
B3: Summary | C3: This tab allows the user to input the year, baseline region, and other assumptions. Includes outputs of average bills for current and inputted year.
C4: Bundled represents customers that we procure gas for. System refers to all customer classes combined. Total System for a customer class includes Bundled + Unbundled.
B5: Authorized Rev Req | C5: This tab shows the authorized revenue requirement for each line item that is in existing rates.
B6: Incremental Rev Req | C6: This tab contains several sections: (i) Approved Application(s), (ii) Pending Application(s) Not Yet Approved, and (iii) Applications Projected to be Filed.
C7: The Approved Application(s) section shows the authorized revenue requirement for each line item forecasted out by year.
C8: The Pending Application(s) Not Yet Approved section includes pending advice letters or applications for new proceedings and any pending increases or decreases to current line items.
B9: SAR and RAR | C9: This tab shows the total revenue and the allocated revenue used to calculate Residential rates for the inputted year.
C10: The Residential percent allocations for the Revenue Recovery Mechanisms are estimated using the detailed Cost Allocation and Rate Design Model.
B11: Res Bill Impact | C11: This tab shows the calculation for Residential rates and average monthly bills.
B12: Hypothetical Tabs | C12: These tabs allow the user to estimate rate impacts from hypothetical revenue requirement changes relative to current rates.
B14: *IMPORTANT NOTE: | C14: CRT model uses current year CRT-calculated rates for comparison with future rates. For Hypothetical tabs, CRT uses current rates.

Sheet Summary
B1: Inputs: | G1: Assumptions:
C2: =CONCATENATE("Rate Impact for Year (",SetUp!J5,"-",SetUp!J9,")") -> Rate Impact for Year (2025-2029) | D2: 2027 | G2: Current Effective Rates | I2: =CurrentEffectiveRateDate -> 2025-12-01
C3: Baseline Region - (Residential bill) | D3: 1 | G3: Sales Forecast | I3: 2024
G4: Residential bill calculated using | I4: Schedule GR, Basic, Bundled, Single Family
G5: Non-CARE bill impact calculated with average summer usage of | K5: =IF($D$3="ALL",SUMPRODUCT('Res Bill Impact'!Q22:Q25,'Res Bill Impact'!U22:U25),VLOOKUP($D$3,'Res Bill Impact'!$P$22:$T$25,2,FALSE)) -> 22.68195339 | L5: therms per month
B6: Pending Proceedings | D6: Include in Impact (Y) | E6: Applicable Year(s) | G6: Non-CARE bill impact calculated with average winter usage of | K6: =IF($D$3="ALL",SUMPRODUCT('Res Bill Impact'!R22:R25,'Res Bill Impact'!U22:U25),VLOOKUP(D$3,'Res Bill Impact'!$P$22:$T$25,3,FALSE)) -> 45.72507267 | L6: therms per month
B7: ='Incremental Rev Req'!A125 -> DIMP Interim Recovery | D7: Y | E7: 2026 | G7: CARE bill impact calculated with average summer usage of | K7: =IF($D$3="ALL",SUMPRODUCT('Res Bill Impact'!S22:S25,'Res Bill Impact'!V22:V25),VLOOKUP($D$3,'Res Bill Impact'!$P$22:$T$25,4,FALSE)) -> 17.60404118 | L7: therms per month
B8: ='Incremental Rev Req'!A126 -> 2026 Cost of Capital | D8: Y | E8: 2026 | G8: CARE bill impact calculated with average winter usage of | K8: =IF($D$3="ALL",SUMPRODUCT('Res Bill Impact'!T22:T25,'Res Bill Impact'!V22:V25),VLOOKUP($D$3,'Res Bill Impact'!$P$22:$T$25,5,FALSE)) -> 33.00381282 | L8: therms per month
B9: ='Incremental Rev Req'!A127 -> TIMPBA Application | D9: Y | E9: 2026 | G9: Average monthly usage is for all customers (Non-CARE and CARE) based on seasonal usage in | L9: 2025
B10: ='Incremental Rev Req'!A128 -> 2024 GRC Track 3 (PSEP and WMPMA) | D10: Y | E10: 2026 | G10: Summer season | I10: 6 | J10: months
B11: ='Incremental Rev Req'!A129 -> Application for Incremental Funding For CIS Replacement | D11: Y | E11: 2026 and 2027 | G11: Winter Season | I11: =12-I10 -> 6 | J11: months
B12: ='Incremental Rev Req'!A130 -> Low Income Bridge Application | D12: Y | E12: 2027
B13: ='Incremental Rev Req'!A131 -> Line Extension Allowance Application | D13: Y | E13: 2028 and 2029
B14: ='Incremental Rev Req'!A132 -> Angeles Link Phase 1 | D14: Y | E14: 2027
B15: ='Incremental Rev Req'!A133 -> MASS Energy | D15: Y | E15: 2027
B16: ='Incremental Rev Req'!A134 -> Angeles Link Phase 2 | D16: Y | E16: 2026,2027 and 2028
B21: Outputs:
D22: (A) | E22: (B) | F22: (C) | G22: (D) | H22: (D)/(A) | I22: (D)/(B) | J22: (D)/(C) | N22: (A) | O22: (B) | P22: (C) | Q22: (D) | R22: (D)/(A) | S22: (D)/(B) | T22: (D)/(C)
B23: Bundled Average Rates - ¢/therm | L23: Total System (Bundled and Unbundled) Average Rates - ¢/th
B24: Customer Group | D24: =BOYEffectiveRateDate -> 2025-01-01 | E24: =CurrentEffectiveRateDate -> 2025-12-01 | F24: =$D$2&" Authorized" -> 2027 Authorized | G24: =$D$2&" w/Pending" -> 2027 w/Pending | H24: =CONCATENATE("% Change over ",TEXT(BOYEffectiveRateDate,"m/d/yyyy")) -> % Change over 1/1/2025 | I24: =CONCATENATE("% Change over ",TEXT(CurrentEffectiveRateDate,"m/d/yyyy")) -> % Change over 12/1/2025 | J24: % Change over Authorized | L24: Customer Group | N24: =$D$24 -> 2025-01-01 | O24: =$E$24 -> 2025-12-01 | P24: =$D$2&" Authorized" -> 2027 Authorized | Q24: =$D$2&" w/Pending" -> 2027 w/Pending | R24: =$H$24 -> % Change over 1/1/2025 | S24: =$I$24 -> % Change over 12/1/2025 | T24: % Change over Authorized
B25: Residential | D25: 167.2677263 | E25: ='SAR and RAR'!G28 -> 190.9327932 | F25: ='SAR and RAR'!H28 -> 158.794945 | G25: ='SAR and RAR'!I28 -> 163.3678626 | H25: =$G25/D25-1 -> -0.02331509943 | I25: =$G25/E25-1 -> -0.1443698072 | J25: =$G25/F25-1 -> 0.02879762696 | L25: Total Residential (RAR) | N25: 166.8870516 | O25: ='SAR and RAR'!R28 -> 190.5475347 | P25: ='SAR and RAR'!S28 -> 158.3893608 | Q25: ='SAR and RAR'!T28 -> 162.9622784 | R25: =$Q25/N25-1 -> -0.02351754165 | S25: =$Q25/O25-1 -> -0.1447683715 | T25: 0.02887136843
B26: System | D26: 84.2593347 | E26: ='SAR and RAR'!G29 -> 96.74205344 | F26: ='SAR and RAR'!H29 -> 75.69357392 | G26: ='SAR and RAR'!I29 -> 77.54580467 | H26: =$G26/D26-1 -> -0.07967698836 | I26: -0.1984271378 | J26: =$G26/F26-1 -> 0.02447011889 | L26: Total System (SAR) | N26: 66.70177055 | O26: ='SAR and RAR'!R29 -> 81.0873789 | P26: ='SAR and RAR'!S29 -> 59.87911818 | Q26: ='SAR and RAR'!T29 -> 61.73134893 | R26: -0.07451708672 | S26: -0.2387058286 | T26: 0.03093283284
B29: Basic Bundled Residential Monthly Average Bills
D30: =BOYEffectiveRateDate -> 2025-01-01 | E30: =CurrentEffectiveRateDate -> 2025-12-01 | F30: =$D$2&" Authorized" -> 2027 Authorized | G30: =$D$2&" w/Pending" -> 2027 w/Pending | H30: =CONCATENATE("% Change over ",TEXT(BOYEffectiveRateDate,"m/d/yyyy")) -> % Change over 1/1/2025 | I30: =CONCATENATE("% Change over ",TEXT(CurrentEffectiveRateDate,"m/d/yyyy")) -> % Change over 12/1/2025 | J30: % Change over Authorized
B31: Non-CARE | D31: =((D37*$I$10)+(D43*$I$11))/12 -> 59.73822138 | E31: =((E37*$I$10)+(E43*$I$11))/12 -> 67.94289954 | F31: 56.43283212 | G31: 58.07106923 | H31: =$G31/D31-1 -> -0.02790762956 | I31: -0.145295982 | J31: 0.02902985811
B32: CARE | D32: =((D38*$I$10)+(D44*$I$11))/12 -> 35.48430534 | E32: 39.0354111 | F32: 32.66416461 | G32: 33.5766769 | H32: -0.0537597797 | I32: -0.1398405717 | J32: 0.02793618941
B33: Total | D33: =((D39*$I$10)+(D45*$I$11))/12 -> 53.29859326 | E33: 60.267707 | F33: 50.12204175 | G33: 51.56759254 | H33: -0.03247741857 | I33: -0.1443578144 | J33: 0.02884062048 | M33: ='Res Bill Impact'!P18 -> Basic Bundled
M34: ='Res Bill Impact'!P19 -> 2024 Recorded Data - Average Monthly Usage - ALL-BASIC th
B35: Basic Bundled Residential Monthly Average Bills - Summer | M35: Climate Zone | N35: Summer | O35: Winter | P35: Summer | Q35: Winter
D36: =BOYEffectiveRateDate -> 2025-01-01 | E36: =CurrentEffectiveRateDate -> 2025-12-01 | F36: =$D$2&" Authorized" -> 2027 Authorized | G36: =$D$2&" w/Pending" -> 2027 w/Pending | H36: =CONCATENATE("% Change over ",TEXT(BOYEffectiveRateDate,"m/d/yyyy")) -> % Change over 1/1/2025 | I36: =CONCATENATE("% Change over ",TEXT(CurrentEffectiveRateDate,"m/d/yyyy")) -> % Change over 12/1/2025 | J36: % Change over Authorized | N36: Non-CARE | P36: CARE
B37: Non-CARE | D37: =IF($D$3="All",'Res Bill Impact'!$C$47,(VLOOKUP($D$3,'Res Bill Impact'!$B$43:$J$46,2,FALSE))) -> 42.92449883 | E37: =IF($D$3="All",'Res Bill Impact'!$E$47,(VLOOKUP($D$3,'Res Bill Impact'!$B$43:$J$46,4,FALSE))) -> 48.62880391 | F37: =IF($D$3="All",'Res Bill Impact'!$G$47,(VLOOKUP($D$3,'Res Bill Impact'!$B$43:$J$46,6,FALSE))) -> 40.62236745 | G37: =IF($D$3="All",'Res Bill Impact'!$I$47,(VLOOKUP($D$3,'Res Bill Impact'!$B$43:$J$46,8,FALSE))) -> 41.75709044 | H37: =$G37/D37-1 -> -0.02719678573 | I37: =$G37/E37-1 -> -0.141309531 | J37: =$G37/F37-1 -> 0.02793345293 | M37: =Zones -> 1 | N37: ='Res Bill Impact'!Q22 -> 22.68195339 | O37: ='Res Bill Impact'!R22 -> 45.72507267 | P37: ='Res Bill Impact'!S22 -> 17.60404118 | Q37: ='Res Bill Impact'!T22 -> 33.00381282
B38: CARE | D38: =IF($D$3="All",'Res Bill Impact'!$C$57,(VLOOKUP($D$3,'Res Bill Impact'!$B$53:$J$56,2,FALSE))) -> 28.25810858 | E38: =IF($D$3="All",'Res Bill Impact'!$E$57,(VLOOKUP($D$3,'Res Bill Impact'!$B$53:$J$56,4,FALSE))) -> 29.60380852 | F38: =IF($D$3="All",'Res Bill Impact'!$G$57,(VLOOKUP($D$3,'Res Bill Impact'!$B$53:$J$56,6,FALSE))) -> 24.9280776 | G38: =IF($D$3="All",'Res Bill Impact'!$I$57,(VLOOKUP($D$3,'Res Bill Impact'!$B$53:$J$56,8,FALSE))) -> 25.59438408 | H38: =$G38/D38-1 -> -0.09426407628 | I38: =$G38/E38-1 -> -0.1354361025 | J38: 0.02672915627 | M38: 2 | N38: ='Res Bill Impact'!Q23 -> 19.24320082 | O38: ='Res Bill Impact'!R23 -> 49.58569166 | P38: ='Res Bill Impact'!S23 -> 18.36758446 | Q38: ='Res Bill Impact'!T23 -> 46.09184154
B39: Total | D39: =D37*(1-'SAR and RAR'!$AC$15)+D38*'SAR and RAR'!$AC$15 -> 39.03044317 | E39: =E37*(1-'SAR and RAR'!$AC$15)+E38*'SAR and RAR'!$AC$15 -> 43.57750023 | F39: =F37*(1-'SAR and RAR'!$AC$15)+F38*'SAR and RAR'!$AC$15 -> 36.4553954 | G39: =G37*(1-'SAR and RAR'!$AC$15)+G38*'SAR and RAR'!$AC$15 -> 37.46574968 | H39: =$G39/D39-1 -> -0.04008905261 | I39: -0.140250141 | J39: 0.02771480802 | M39: 3 | N39: ='Res Bill Impact'!Q24 -> 18.94798314 | O39: ='Res Bill Impact'!R24 -> 71.48580122 | P39: ='Res Bill Impact'!S24 -> 23.35905116 | Q39: ='Res Bill Impact'!T24 -> 81.14343361
M40: 0 | N40: ='Res Bill Impact'!Q25 -> 0 | O40: ='Res Bill Impact'!R25 -> 0 | P40: ='Res Bill Impact'!S25 -> 0 | Q40: ='Res Bill Impact'!T25 -> 0
B41: Basic Bundled Residential Monthly Average Bills - Winter
D42: =BOYEffectiveRateDate -> 2025-01-01 | E42: =CurrentEffectiveRateDate -> 2025-12-01 | F42: =$D$2&" Authorized" -> 2027 Authorized | G42: =$D$2&" w/Pending" -> 2027 w/Pending | H42: =CONCATENATE("% Change over ",TEXT(BOYEffectiveRateDate,"m/d/yyyy")) -> % Change over 1/1/2025 | I42: =CONCATENATE("% Change over ",TEXT(CurrentEffectiveRateDate,"m/d/yyyy")) -> % Change over 12/1/2025 | J42: % Change over Authorized
B43: Non-CARE | D43: =IF($D$3="All",'Res Bill Impact'!$D$47,(VLOOKUP($D$3,'Res Bill Impact'!$B$43:$J$46,3,FALSE))) -> 76.55194393 | E43: =IF($D$3="All",'Res Bill Impact'!$F$47,(VLOOKUP($D$3,'Res Bill Impact'!$B$43:$J$46,5,FALSE))) -> 87.25699517 | F43: =IF($D$3="All",'Res Bill Impact'!$H$47,(VLOOKUP($D$3,'Res Bill Impact'!$B$43:$J$46,7,FALSE))) -> 72.24329679 | G43: =IF($D$3="All",'Res Bill Impact'!$J$47,(VLOOKUP($D$3,'Res Bill Impact'!$B$43:$J$46,9,FALSE))) -> 74.38504802 | H43: =$G43/D43-1 -> -0.02830621663 | I43: =$G43/E43-1 -> -0.1475176531 | J43: 0.02964636615
B44: CARE | D44: =IF($D$3="All",'Res Bill Impact'!$D$57,(VLOOKUP($D$3,'Res Bill Impact'!$B$53:$J$56,3,FALSE))) -> 42.71050209 | E44: =IF($D$3="All",'Res Bill Impact'!$F$57,(VLOOKUP($D$3,'Res Bill Impact'!$B$53:$J$56,5,FALSE))) -> 48.46701368 | F44: =IF($D$3="All",'Res Bill Impact'!$H$57,(VLOOKUP($D$3,'Res Bill Impact'!$B$53:$J$56,7,FALSE))) -> 40.40025162 | G44: =IF($D$3="All",'Res Bill Impact'!$J$57,(VLOOKUP($D$3,'Res Bill Impact'!$B$53:$J$56,9,FALSE))) -> 41.55896972 | H44: -0.02696134009 | I44: -0.1425308357 | J44: 0.02868096239
B45: Total | D45: =D43*(1-'SAR and RAR'!$AC$15)+D44*'SAR and RAR'!$AC$15 -> 67.56674335 | E45: =E43*(1-'SAR and RAR'!$AC$15)+E44*'SAR and RAR'!$AC$15 -> 76.95791377 | F45: =F43*(1-'SAR and RAR'!$AC$15)+F44*'SAR and RAR'!$AC$15 -> 63.78868811 | G45: =G43*(1-'SAR and RAR'!$AC$15)+G44*'SAR and RAR'!$AC$15 -> 65.66943539 | H45: -0.02808050028 | I45: -0.1466837889 | J45: 0.02948402512
B48: Basic Bundled Essential Use Residential Monthly Average Bills
D49: =BOYEffectiveRateDate -> 2025-01-01 | E49: =CurrentEffectiveRateDate -> 2025-12-01 | F49: =$D$2&" Authorized" -> 2027 Authorized | G49: =$D$2&" w/Pending" -> 2027 w/Pending | H49: =CONCATENATE("% Change over ",TEXT(BOYEffectiveRateDate,"m/d/yyyy")) -> % Change over 1/1/2025 | I49: =CONCATENATE("% Change over ",TEXT(CurrentEffectiveRateDate,"m/d/yyyy")) -> % Change over 12/1/2025 | J49: % Change over Authorized
B50: Essential Use - Non-CARE | D50: =((D56*$I$10)+(D62*$I$11))/12 -> 42.34708167 | E50: =((E56*$I$10)+(E62*$I$11))/12 -> 47.90928026 | F50: 40.11357345 | G50: 41.23186517 | H50: =$G50/D50-1 -> -0.02633514411 | I50: -0.1393762348 | J50: 0.02787813764
B51: Essential Use - CARE | D51: =((D57*$I$10)+(D63*$I$11))/12 -> 34.25919561 | E51: 37.90779475 | F51: 31.75658086 | G51: 32.64014762 | H51: -0.04725878572 | I51: -0.1389594716 | J51: 0.02782310755
B52: Total | D52: =D50*(1-'SAR and RAR'!$AC$15)+D51*'SAR and RAR'!$AC$15 -> 40.19967675 | E52: =E50*(1-'SAR and RAR'!$AC$15)+E51*'SAR and RAR'!$AC$15 -> 45.25379786 | F52: =F50*(1-'SAR and RAR'!$AC$15)+F51*'SAR and RAR'!$AC$15 -> 37.89471838 | G52: =G50*(1-'SAR and RAR'!$AC$15)+G51*'SAR and RAR'!$AC$15 -> 38.95068856 | H52: =$G52/D52-1 -> -0.03106960782 | I52: =$G52/E52-1 -> -0.1392835429 | J52: 0.02786589334
M53: ='Res Bill Impact'!H19 -> Essential Usage
B54: Basic Bundled Essential Use Residential Monthly Average Bills - Summer | M54: Monthly Tier 1 Baseline Allowance -BASIC (th)
D55: =BOYEffectiveRateDate -> 2025-01-01 | E55: =CurrentEffectiveRateDate -> 2025-12-01 | F55: =$D$2&" Authorized" -> 2027 Authorized | G55: =$D$2&" w/Pending" -> 2027 w/Pending | H55: =CONCATENATE("% Change over ",TEXT(BOYEffectiveRateDate,"m/d/yyyy")) -> % Change over 1/1/2025 | I55: =CONCATENATE("% Change over ",TEXT(CurrentEffectiveRateDate,"m/d/yyyy")) -> % Change over 12/1/2025 | J55: % Change over Authorized | M55: Climate Zone | N55: Summer 2025 | O55: Winter 2025
B56: Essential Use - Non-CARE | D56: =IF($D$3="All",'Res Bill Impact'!C67,(VLOOKUP($D$3,'Res Bill Impact'!$B$63:$J$66,2,FALSE))) -> 24.29187 | E56: =IF($D$3="All",'Res Bill Impact'!E67,(VLOOKUP($D$3,'Res Bill Impact'!$B$63:$J$66,4,FALSE))) -> 27.16505868 | F56: =IF($D$3="All",'Res Bill Impact'!G67,(VLOOKUP($D$3,'Res Bill Impact'!$B$63:$J$66,6,FALSE))) -> 23.13813728 | G56: =IF($D$3="All",'Res Bill Impact'!I67,(VLOOKUP($D$3,'Res Bill Impact'!$B$63:$J$66,8,FALSE))) -> 23.7157979 | H56: =$G56/D56-1 -> -0.02371460486 | I56: =$G56/E56-1 -> -0.1269741699 | J56: =$G56/F56-1 -> 0.0249657359 | M56: =Zones -> 1 | N56: ='Res Bill Impact'!I22 -> 13 | O56: ='Res Bill Impact'!J22 -> 37.33333333
B57: Essential Use - CARE | D57: =IF($D$3="All",'Res Bill Impact'!C77,(VLOOKUP($D$3,'Res Bill Impact'!$B$73:$J$76,2,FALSE))) -> 20.72975122 | E57: =IF($D$3="All",'Res Bill Impact'!E77,(VLOOKUP($D$3,'Res Bill Impact'!$B$73:$J$76,4,FALSE))) -> 21.51528471 | F57: =IF($D$3="All",'Res Bill Impact'!G77,(VLOOKUP($D$3,'Res Bill Impact'!$B$73:$J$76,6,FALSE))) -> 18.33783647 | G57: =IF($D$3="All",'Res Bill Impact'!I77,(VLOOKUP($D$3,'Res Bill Impact'!$B$73:$J$76,8,FALSE))) -> 18.79424844 | H57: =$G57/D57-1 -> -0.09336835526 | I57: -0.1264699167 | J57: 0.02488908503 | M57: 2 | N57: ='Res Bill Impact'!I23 -> 13 | O57: ='Res Bill Impact'!J23 -> 42.16666667
B58: Total | D58: =D56*(1-'SAR and RAR'!$AC$15)+D57*'SAR and RAR'!$AC$15 -> 23.34609612 | E58: =E56*(1-'SAR and RAR'!$AC$15)+E57*'SAR and RAR'!$AC$15 -> 25.66499398 | F58: =F56*(1-'SAR and RAR'!$AC$15)+F57*'SAR and RAR'!$AC$15 -> 21.86361517 | G58: =G56*(1-'SAR and RAR'!$AC$15)+G57*'SAR and RAR'!$AC$15 -> 22.40908321 | H58: =$G58/D58-1 -> -0.04013574263 | I58: =$G58/E58-1 -> -0.1268619336 | J58: 0.02494866635 | M58: 3 | N58: ='Res Bill Impact'!I24 -> 13 | O58: ='Res Bill Impact'!J24 -> 65
M59: 0 | N59: ='Res Bill Impact'!I25 -> 0 | O59: ='Res Bill Impact'!J25 -> 0
B60: Basic Bundled Essential Use Residential Monthly Average Bills - Winter
D61: =BOYEffectiveRateDate -> 2025-01-01 | E61: =CurrentEffectiveRateDate -> 2025-12-01 | F61: =$D$2&" Authorized" -> 2027 Authorized | G61: =$D$2&" w/Pending" -> 2027 w/Pending | H61: =CONCATENATE("% Change over ",TEXT(BOYEffectiveRateDate,"m/d/yyyy")) -> % Change over 1/1/2025 | I61: =CONCATENATE("% Change over ",TEXT(CurrentEffectiveRateDate,"m/d/yyyy")) -> % Change over 12/1/2025 | J61: % Change over Authorized
B62: Essential Use - Non-CARE | D62: =IF($D$3="All",'Res Bill Impact'!D67,(VLOOKUP($D$3,'Res Bill Impact'!$B$63:$J$66,3,FALSE))) -> 60.40229333 | E62: =IF($D$3="All",'Res Bill Impact'!F67,(VLOOKUP($D$3,'Res Bill Impact'!$B$63:$J$66,5,FALSE))) -> 68.65350185 | F62: =IF($D$3="All",'Res Bill Impact'!H67,(VLOOKUP($D$3,'Res Bill Impact'!$B$63:$J$66,7,FALSE))) -> 57.08900962 | G62: =IF($D$3="All",'Res Bill Impact'!J67,(VLOOKUP($D$3,'Res Bill Impact'!$B$63:$J$66,9,FALSE))) -> 58.74793244 | H62: =$G62/D62-1 -> -0.02738904116 | I62: =$G62/E62-1 -> -0.1442835274 | J62: =$G62/F62-1 -> 0.02905853211
B63: Essential Use - CARE | D63: =IF($D$3="All",'Res Bill Impact'!D77,(VLOOKUP($D$3,'Res Bill Impact'!$B$73:$J$76,3,FALSE))) -> 47.78864 | E63: =IF($D$3="All",'Res Bill Impact'!F77,(VLOOKUP($D$3,'Res Bill Impact'!$B$73:$J$76,5,FALSE))) -> 54.3003048 | F63: =IF($D$3="All",'Res Bill Impact'!H77,(VLOOKUP($D$3,'Res Bill Impact'!$B$73:$J$76,7,FALSE))) -> 45.17532525 | G63: =IF($D$3="All",'Res Bill Impact'!J77,(VLOOKUP($D$3,'Res Bill Impact'!$B$73:$J$76,9,FALSE))) -> 46.48604681 | H63: =$G63/D63-1 -> -0.02725738151 | I63: -0.1439081791 | J63: 0.02901410341
B64: Total | D64: =D62*(1-'SAR and RAR'!$AC$15)+D63*'SAR and RAR'!$AC$15 -> 57.05325738 | E64: =E62*(1-'SAR and RAR'!$AC$15)+E63*'SAR and RAR'!$AC$15 -> 64.84260174 | F64: =F62*(1-'SAR and RAR'!$AC$15)+F63*'SAR and RAR'!$AC$15 -> 53.92582159 | G64: =G62*(1-'SAR and RAR'!$AC$15)+G63*'SAR and RAR'!$AC$15 -> 55.49229391 | H64: -0.02735976084 | I64: -0.1442000718 | J64: 0.02904865006
B67: Basic Bundled Typical Residential Monthly Average Bills
D68: =BOYEffectiveRateDate -> 2025-01-01 | E68: =CurrentEffectiveRateDate -> 2025-12-01 | F68: =$D$2&" Authorized" -> 2027 Authorized | G68: =$D$2&" w/Pending" -> 2027 w/Pending | H68: =CONCATENATE("% Change over ",TEXT(BOYEffectiveRateDate,"m/d/yyyy")) -> % Change over 1/1/2025 | I68: =CONCATENATE("% Change over ",TEXT(CurrentEffectiveRateDate,"m/d/yyyy")) -> % Change over 12/1/2025 | J68: % Change over Authorized
B69: 5-Year Average Usage- Non-CARE | D69: =((D75*$I$10)+(D81*$I$11))/12 -> 63.69828007 | E69: =((E75*$I$10)+(E81*$I$11))/12 -> 72.50466543 | F69: 60.14881756 | G69: 61.90544911 | H69: =$G69/D69-1 -> -0.02814567288 | I69: -0.1461866799 | J69: 0.02920475614
C70: 5-Year Average Usage - CARE | D70: =((D76*$I$10)+(D82*$I$11))/12 -> 36.39404581 | E70: 40.08570785 | F70: 33.52421863 | G70: 34.46410773 | H70: =$G70/D70-1 -> -0.05302895128 | I70: =$G70/E70-1 -> -0.1402395124 | J70: =$G70/F70-1 -> 0.02803612237
B71: Total | D71: =((D77*$I$10)+(D83*$I$11))/12 -> 56.44876562 | E71: 63.89714694 | F71: 53.07975227 | G71: 54.61953151 | H71: -0.03240520997 | I71: -0.1451960825 | J71: 0.02900878725 | M71: ='Res Bill Impact'!P27 -> Typical Bundled
M72: ='Res Bill Impact'!P28 -> 2020-2024 Recorded Data - Average Monthly Usage - ALL-BASIC th
B73: Basic Bundled Typical Residential Monthly Average Bills - Summer | M73: Climate Zone | N73: Summer | O73: Winter | P73: Summer | Q73: Winter
D74: =BOYEffectiveRateDate -> 2025-01-01 | E74: =CurrentEffectiveRateDate -> 2025-12-01 | F74: =$D$2&" Authorized" -> 2027 Authorized | G74: =$D$2&" w/Pending" -> 2027 w/Pending | H74: =CONCATENATE("% Change over ",TEXT(BOYEffectiveRateDate,"m/d/yyyy")) -> % Change over 1/1/2025 | I74: =CONCATENATE("% Change over ",TEXT(CurrentEffectiveRateDate,"m/d/yyyy")) -> % Change over 12/1/2025 | J74: % Change over Authorized | N74: Non-CARE | P74: CARE
B75: 5-Year Average Usage - Non-CARE | D75: =IF($D$3="All",'Res Bill Impact'!C87,(VLOOKUP($D$3,'Res Bill Impact'!$B$83:$J$86,2,FALSE))) -> 43.75772659 | E75: =IF($D$3="All",'Res Bill Impact'!E87,(VLOOKUP($D$3,'Res Bill Impact'!$B$83:$J$86,4,FALSE))) -> 49.58863563 | F75: =IF($D$3="All",'Res Bill Impact'!G87,(VLOOKUP($D$3,'Res Bill Impact'!$B$83:$J$86,6,FALSE))) -> 41.40424025 | G75: =IF($D$3="All",'Res Bill Impact'!I87,(VLOOKUP($D$3,'Res Bill Impact'!$B$83:$J$86,8,FALSE))) -> 42.56387437 | H75: =$G75/D75-1 -> -0.02728323217 | I75: -0.1416607086 | J75: 0.02800761736 | M75: =Zones -> 1 | N75: ='Res Bill Impact'!Q31 -> 23.11491818 | O75: ='Res Bill Impact'!R31 -> 49.40758765 | P75: ='Res Bill Impact'!S31 -> 17.51725705 | Q75: ='Res Bill Impact'!T31 -> 34.67605291
C76: 5-Year Average Usage - CARE | D76: =IF($D$3="All",'Res Bill Impact'!C97,(VLOOKUP($D$3,'Res Bill Impact'!$B$93:$J$96,2,FALSE))) -> 28.1162024 | E76: =IF($D$3="All",'Res Bill Impact'!E97,(VLOOKUP($D$3,'Res Bill Impact'!$B$93:$J$96,4,FALSE))) -> 29.45134346 | F76: =IF($D$3="All",'Res Bill Impact'!G97,(VLOOKUP($D$3,'Res Bill Impact'!$B$93:$J$96,6,FALSE))) -> 24.80385449 | G76: =IF($D$3="All",'Res Bill Impact'!I97,(VLOOKUP($D$3,'Res Bill Impact'!$B$93:$J$96,8,FALSE))) -> 25.46620455 | H76: =$G76/D76-1 -> -0.09425162794 | I76: =$G76/E76-1 -> -0.1353126356 | J76: =$G76/F76-1 -> 0.02670351352 | M76: 2 | N76: ='Res Bill Impact'!Q32 -> 19.56195699 | O76: ='Res Bill Impact'!R32 -> 55.33374712 | P76: ='Res Bill Impact'!S32 -> 18.5317823 | Q76: ='Res Bill Impact'!T32 -> 51.14470611
B77: Total | D77: =D75*(1-'SAR and RAR'!$AC$15)+D76*'SAR and RAR'!$AC$15 -> 39.60476428 | E77: =E75*(1-'SAR and RAR'!$AC$15)+E76*'SAR and RAR'!$AC$15 -> 44.24200737 | F77: =F75*(1-'SAR and RAR'!$AC$15)+F76*'SAR and RAR'!$AC$15 -> 36.99669177 | G77: =G75*(1-'SAR and RAR'!$AC$15)+G76*'SAR and RAR'!$AC$15 -> 38.02429259 | H77: -0.03990610021 | I77: -0.1405387131 | J77: 0.02777547875 | M77: 3 | N77: ='Res Bill Impact'!Q33 -> 19.98866609 | O77: ='Res Bill Impact'!R33 -> 77.21481657 | P77: ='Res Bill Impact'!S33 -> 24.34162135 | Q77: ='Res Bill Impact'!T33 -> 87.23331811
M78: 0 | N78: ='Res Bill Impact'!Q34 -> 0 | O78: ='Res Bill Impact'!R34 -> 0 | P78: ='Res Bill Impact'!S34 -> 0 | Q78: ='Res Bill Impact'!T34 -> 0
B79: Basic Bundled Typical Residential Monthly Average Bills - Winter
D80: =BOYEffectiveRateDate -> 2025-01-01 | E80: =CurrentEffectiveRateDate -> 2025-12-01 | F80: =$D$2&" Authorized" -> 2027 Authorized | G80: =$D$2&" w/Pending" -> 2027 w/Pending | H80: =CONCATENATE("% Change over ",TEXT(BOYEffectiveRateDate,"m/d/yyyy")) -> % Change over 1/1/2025 | I80: =CONCATENATE("% Change over ",TEXT(CurrentEffectiveRateDate,"m/d/yyyy")) -> % Change over 12/1/2025 | J80: % Change over Authorized
B81: 5-Year Average Usage - Non-CARE | D81: =IF($D$3="All",'Res Bill Impact'!D87,(VLOOKUP($D$3,'Res Bill Impact'!$B$83:$J$86,3,FALSE))) -> 83.63883355 | E81: =IF($D$3="All",'Res Bill Impact'!F87,(VLOOKUP($D$3,'Res Bill Impact'!$B$83:$J$86,5,FALSE))) -> 95.42069523 | F81: =IF($D$3="All",'Res Bill Impact'!H87,(VLOOKUP($D$3,'Res Bill Impact'!$B$83:$J$86,7,FALSE))) -> 78.89339487 | G81: =IF($D$3="All",'Res Bill Impact'!J87,(VLOOKUP($D$3,'Res Bill Impact'!$B$83:$J$86,9,FALSE))) -> 81.24702385 | H81: =$G81/D81-1 -> -0.02859688009 | I81: -0.1485387561 | J81: 0.02983302954
C82: 5-Year Average Usage - CARE | D82: =IF($D$3="All",'Res Bill Impact'!D97,(VLOOKUP($D$3,'Res Bill Impact'!$B$93:$J$96,3,FALSE))) -> 44.67188922 | E82: =IF($D$3="All",'Res Bill Impact'!F97,(VLOOKUP($D$3,'Res Bill Impact'!$B$93:$J$96,5,FALSE))) -> 50.72007224 | F82: =IF($D$3="All",'Res Bill Impact'!H97,(VLOOKUP($D$3,'Res Bill Impact'!$B$93:$J$96,7,FALSE))) -> 42.24458277 | G82: =IF($D$3="All",'Res Bill Impact'!J97,(VLOOKUP($D$3,'Res Bill Impact'!$B$93:$J$96,9,FALSE))) -> 43.4620109 | H82: =$G82/D82-1 -> -0.02708366127 | I82: =$G82/E82-1 -> -0.1431003747 | J82: =$G82/F82-1 -> 0.028818562
B83: Total | D83: =D81*(1-'SAR and RAR'!$AC$15)+D82*'SAR and RAR'!$AC$15 -> 73.29276695 | E83: =E81*(1-'SAR and RAR'!$AC$15)+E82*'SAR and RAR'!$AC$15 -> 83.5522865 | F83: =F81*(1-'SAR and RAR'!$AC$15)+F82*'SAR and RAR'!$AC$15 -> 69.16281278 | G83: =G81*(1-'SAR and RAR'!$AC$15)+G82*'SAR and RAR'!$AC$15 -> 71.21477044 | H83: -0.02835199978 | I83: -0.1476622194 | J83: 0.02966851077

Sheet Authorized Rev Req
A2: Annual Period 2025
A3: Reporting Date: Quarter Ended December 31
B5: Revenue Requirement Date: | C5: 2022-01-01 | D5: 2023-01-01 | E5: 2023-03-01 | F5: 2023-08-01 | G5: 2023-11-01 | H5: 2024-01-01 | I5: 2024-07-01 | J5: 2024-10-01 | K5: 2025-01-01 | L5: 2025-02-01 | M5: 2025-07-01 | N5: 2025-09-01 | O5: 2025-10-01
B6: Advice Letter: | C6: AL 5915-G | D6: AL 6071-G | E6: AL 6088-G | F6: AL 6168-G | G6: AL 6213-G | H6: AL 6237-G | I6: AL 6325-G | J6: AL 6369-G | K6: AL 6421-G | L6: AL 6340-G-A | M6: AL 6493-G | N6: AL-6526 | O6: AL-6538
A7: Filing Description | B7: Authority for Revenue Requirement as of 2/1/2025 | C7: Authorized Revenue Requirement ($000) | D7: Authorized Revenue Requirement ($000) | E7: Authorized Revenue Requirement ($000) | F7: Authorized Revenue Requirement ($000) | G7: Authorized Revenue Requirement ($000) | H7: Authorized Revenue Requirement ($000) | I7: Authorized Revenue Requirement ($000) | J7: Authorized Revenue Requirement ($000) | K7: Authorized Revenue Requirement ($000) | L7: Authorized Revenue Requirement ($000) | M7: Authorized Revenue Requirement ($000) | N7: Authorized Revenue Requirement ($000) | O7: Authorized Revenue Requirement ($000) | P7: Revenue Recovery Mechanism | Q7: Balancing Account
A8: Safety Affordability Reliability Proceedings
A9: Total Allocated Base Margin | B9: D.24-12-074 | C9: 2797438.81 | D9: 2813333.282 | E9: 2813333.282 | F9: 2813333.282 | G9: 2813333.28 | H9: 2828192.765 | I9: 2827790.601 | J9: 2827790.601 | K9: 2801126.364 | L9: 3218272.671 | M9: 3218272.671 | N9: 3218272.671 | O9: 3218272.671 | P9: Allocated Base Margin | Q9: N
A10: Pipeline Safety Enhancement Plan (PSEP) GRC - Local Transmission (subtracted from Base Margin and allocated here) | B10: D.24-12-074 | C10: 20025.2391 | D10: 20972.1516 | E10: 20972.1516 | F10: 20972.1516 | G10: 20972.1516 | H10: 20972.1516 | I10: 20972.1516 | J10: 20972.1516 | K10: 20972.1516 | L10: 12473.81268 | M10: 12473.81268 | N10: 12473.81268 | O10: 12473.81268 | P10: Local Transmission | Q10: N
A11: Pipeline Safety Enhancement Plan (PSEP) GRC -Distribution (subtracted from Base Margin and allocated here) | B11: D.24-12-074 | C11: 28629.01 | D11: 29982.76 | E11: 29982.76 | F11: 29982.76 | G11: 29982.76 | H11: 29982.76 | I11: 29982.76 | J11: 29982.76 | K11: 29982.76 | L11: 73422.06 | M11: 73422.06 | N11: 73422.06 | O11: 73422.06 | P11: Distribution | Q11: N
A12: Company Use Gas: Other | B12: D.24-07-009, AL 6421-G,AL 6340-G-A | C12: 1792.692921 | D12: 2442.782407 | E12: 2442.782407 | F12: 2442.782407 | G12: 2442.782407 | H12: 2021.517814 | I12: 2086.359644 | J12: 2086.359644 | K12: 1696.960573 | L12: 1283.388791 | M12: 1223.184112 | N12: 1223.184112 | O12: 1223.184112 | P12: ECPT | Q12: N
A13: Company Use Gas: Storage Load Balancing | B13: D.24-07-009, AL 6421-G,AL 6340-G-A | C13: 1739.982378 | D13: 2371.288817 | E13: 2371.288817 | F13: 2371.288817 | G13: 2371.288817 | H13: 1962.353492 | I13: 2025.297578 | J13: 2025.297578 | K13: 1647.295157 | L13: 3617.87136 | M13: 3501.139374 | N13: 3501.139374 | O13: 3501.139374 | P13: ECPT | Q13: N
A14: Exchange Revenues & Interutility Transactions | B14: D.24-07-009, AL 6421-G,AL 6340-G-A | C14: 342.77791 | D14: 342.77791 | E14: 342.77791 | F14: 342.77791 | G14: 342.77791 | H14: 342.77791 | I14: 342.77791 | J14: 342.77791 | K14: 342.77791 | L14: 342.77791 | M14: 342.77791 | N14: 342.77791 | O14: 342.77791 | P14: ECPT | Q14: N
A15: Unaccounted For (UAF) Gas | B15: D.24-07-009, AL 6421-G,AL 6340-G-A | C15: 43865.64079 | D15: 59771.78668 | E15: 59771.78668 | F15: 59771.78668 | G15: 59771.78668 | H15: 49463.97649 | I15: 51050.57382 | J15: 51050.57382 | K15: 41522.47251 | L15: 32364.54513 | M15: 30832.58319 | N15: 30832.58319 | O15: 30832.58319 | P15: 47% Res (LUAF, Other) | Q15: N
A16: Well Incidents & Surface Leaks | B16: D.24-07-009, AL 6421-G,AL 6340-G-A | C16: 226.3891543 | D16: 308.4843465 | E16: 308.4843465 | F16: 308.4843465 | G16: 308.4843465 | H16: 255.2853664 | I16: 263.4738524 | J16: 263.4738524 | K16: 214.298978 | L16: 45.49847815 | M16: 43.35194566 | N16: 43.35194566 | O16: 43.35194566 | P16: ECPT | Q16: N
A17: SCG PSEP - 2017 Forecast Application RevReq Capital Cost - Local Transmission | B17: D.24-07-009, AL 6421-G,AL 6340-G-A | C17: 381.0924644 | D17: 363.8434006 | E17: 363.8434006 | F17: 363.8434006 | G17: 363.8434006 | H17: 373.2391018 | I17: 373.2391018 | J17: 373.2391018 | K17: 338.8845378 | L17: 343.3496879 | M17: 343.4341302 | N17: 343.4341302 | O17: 343.4341302 | P17: Local Transmission | Q17: N
A18: SCG PSEP - 2017 Forecast Application RevReq Capital Cost - Distribution | B18: D.24-07-009, AL 6421-G,AL 6340-G-A | C18: 24839.85663 | D18: 24959.79958 | E18: 24959.79958 | F18: 24959.79958 | G18: 24959.79958 | H18: 25796.91107 | I18: 25796.91107 | J18: 25796.91107 | K18: 23492.4964 | L18: 23486.26448 | M18: 23492.26643 | N18: 23492.26643 | O18: 23492.26643 | P18: Distribution | Q18: N
A19: AMI Balancing Account (AMIBA) | B19: D.24-07-009, AL 6421-G,AL 6340-G-A | C19: -77756.9011 | D19: -323.9718593 | E19: -323.9718593 | F19: -323.9718593 | G19: -323.9718593 | H19: 0 | I19: 0 | J19: 0 | K19: -589.6895134 | L19: 0 | M19: 0 | N19: 0 | O19: 0 | P19: EPAM | Q19: Y
A20: Residential Uncollectible Balancing Account (RUBA) | B20: D.24-07-009, AL 6421-G,AL 6340-G-A | C20: 16080.82923 | D20: 44745.19835 | E20: 44745.19835 | F20: 44745.19835 | G20: 44745.19835 | H20: 361045.4563 | I20: 361045.4563 | J20: 361045.4563 | K20: 68088.97402 | L20: 68056.53932 | M20: 68056.53932 | N20: 68056.53932 | O20: 68056.53932 | P20: ECPT | Q20: Y
A21: Affiliate Transfer Fee Account (ATFA) | B21: D.24-07-009, AL 6421-G,AL 6340-G-A | C21: -56.8521172 | D21: -106.5216742 | E21: -106.5216742 | F21: -106.5216742 | G21: -106.5218593 | H21: -332.5151735 | I21: -332.5151719 | J21: -332.5151719 | K21: -159.2084278 | L21: -159.1502742 | M21: -159.1502742 | N21: -159.1502742 | O21: -159.1502742 | P21: EPAM | Q21: Y
A22: Core Fixed Cost Account - Non NGV (CFCA) | B22: D.24-07-009, AL 6421-G,AL 6340-G-A | C22: -28133.81894 | D22: 121885.4366 | E22: -12481.01707 | F22: -12481.01707 | G22: -15934.57573 | H22: -159234.434 | I22: -159234.434 | J22: -159234.434 | K22: 116918.4048 | L22: 116879.0578 | M22: 116879.0578 | N22: 116879.0578 | O22: 116879.0578 | P22: CFCA | Q22: Y
A23: Core Fixed Cost Account - NGV (CFCA) | B23: D.24-07-009, AL 6421-G,AL 6340-G-A | C23: 9826.724141 | D23: -1151.989741 | E23: -1401.302084 | F23: -1401.302084 | G23: -1401.302084 | H23: -6384.867245 | I23: -6384.867245 | J23: -6384.867245 | K23: -10720.89735 | L23: -10717.2894 | M23: -10717.2894 | N23: -10717.2894 | O23: -10717.2894 | P23: Non-Residential | Q23: Y
A24: Core Fixed Cost Account - C&I Shortfall (CFCA) | B24: D.24-07-009, AL 6421-G,AL 6340-G-A | C24: 28765.69276 | D24: 0 | E24: 0 | F24: 0 | G24: 0 | H24: 0 | I24: 0 | J24: 0 | K24: -352.80365 | L24: -352.6849195 | M24: -352.6849195 | N24: -352.6849195 | O24: -352.6849195 | P24: Non-Residential | Q24: Y
A25: Economic Practicality Shortfall Memorandum Account (EPSMA) | B25: D.24-07-009, AL 6421-G,AL 6340-G-A | C25: 395.853484 | D25: 434.2273838 | E25: 434.2273838 | F25: 434.2273838 | G25: 434.2273838 | H25: 623.9141766 | I25: 623.9141766 | J25: 623.9141766 | K25: 331.592532 | L25: 331.4809398 | M25: 331.4809398 | N25: 331.4809398 | O25: 331.4809398 | P25: Non-Residential | Q25: Y
A26: Enhanced Oil Recovery Account (EORA) | B26: D.24-07-009, AL 6421-G,AL 6340-G-A | C26: 2530.55974 | D26: -7124.256786 | E26: -7124.256786 | F26: -7124.256786 | G26: -7124.269166 | H26: 9594.38968 | I26: 9594.389634 | J26: 9594.389634 | K26: 1231.783468 | L26: 1231.333538 | M26: 1231.333538 | N26: 1231.333538 | O26: 1231.333538 | P26: EPAM | Q26: Y
A27: Hazardous Substance Cost-Recovery Account (HSCRA) | B27: D.24-07-009, AL 6421-G,AL 6340-G-A | C27: 284.26279 | D27: 441.0656654 | E27: 441.0656654 | F27: 441.0656654 | G27: 441.0656654 | H27: 2438.240816 | I27: 2438.240816 | J27: 2438.240816 | K27: 7084.132681 | L27: 7080.758101 | M27: 7080.758101 | N27: 7080.758101 | O27: 7080.758101 | P27: ECPT | Q27: Y
A28: Intervenor Award Memorandum Account (IAMA) | B28: D.24-07-009, AL 6421-G,AL 6340-G-A | C28: 731.580665 | D28: 832.9371787 | E28: 832.9371787 | F28: 832.9371787 | G28: 832.9371787 | H28: 435.5787082 | I28: 435.5787082 | J28: 435.5787082 | K28: 1579.573997 | L28: 1578.821555 | M28: 1578.821555 | N28: 1578.821555 | O28: 1578.821555 | P28: ECPT | Q28: Y
A29: Master Meter Balancing Account (MMBA) | B29: D.24-07-009, AL 6421-G,AL 6340-G-A | C29: 17468.47031 | D29: 24824.50463 | E29: 24824.50463 | F29: 24824.50463 | G29: 24824.54776 | H29: 27664.39859 | I29: 27664.39846 | J29: 27664.39846 | K29: 57995.52302 | L29: 56029.54399 | M29: 56029.54399 | N29: 56029.54399 | O29: 56029.54399 | P29: EPAM | Q29: Y
A30: Noncore Fixed Cost Account (NFCA) Margin | B30: D.24-07-009, AL 6421-G,AL 6340-G-A | C30: 6370.180978 | D30: 12427.60401 | E30: 12427.60401 | F30: 12427.60401 | G30: 12427.83405 | H30: 6309.96825 | I30: 6309.968067 | J30: 6309.968067 | K30: 19275.21055 | L30: 19264.23989 | M30: 19264.23989 | N30: 19264.23989 | O30: 19264.23989 | P30: Non-Residential | Q30: Y
A31: Noncore Fixed Cost Account (NFCA) Nonmargin | B31: D.24-07-009, AL 6421-G,AL 6340-G-A | C31: -3275.185198 | D31: 959.6319265 | E31: 959.6319265 | F31: 959.6319265 | G31: -11436.66702 | H31: 913.703406 | I31: 913.703406 | J31: 913.703406 | K31: 18733.58886 | L31: 18722.78709 | M31: 18722.78709 | N31: 18722.78709 | O31: 18722.78709 | P31: Non-Residential | Q31: Y
A32: Integrated Transmission Balancing Account (ITBA) Margin | B32: D.24-07-009, AL 6421-G,AL 6340-G-A | C32: 176.0981414 | D32: 5083.885059 | E32: 5083.885059 | F32: 5083.885059 | G32: 5083.885059 | H32: -2088.910606 | I32: -2088.910606 | J32: -2088.910606 | K32: 13617.12929 | L32: 13611.38962 | M32: 13611.38962 | N32: 13611.38962 | O32: 13611.38962 | P32: ECPT | Q32: Y
A33: Compressor Station Fuel and Power Balancing Account (CFPBA) | B33: D.24-07-009, AL 6421-G,AL 6340-G-A | C33: -1423.035883 | D33: 3459.772548 | E33: 3459.772548 | F33: 3459.772548 | G33: 3459.772548 | H33: 5089.794203 | I33: 5089.794203 | J33: 5089.794203 | K33: 14061.42309 | L33: 14055.49615 | M33: 14055.49615 | N33: 14055.49615 | O33: 14055.49615 | P33: ECPT | Q33: Y
A34: Compression Services Balancing Account (CSBA) | B34: D.24-07-009, AL 6421-G,AL 6340-G-A | C34: -68.36948884 | D34: -73.63685293 | E34: -73.63685293 | F34: -73.63685293 | G34: -73.63685293 | H34: 0 | I34: 0 | J34: 0 | K34: 0 | L34: 0 | M34: 0 | N34: 0 | O34: 0 | P34: Non-Residential | Q34: Y
A35: Company-Use Fuel for Load Balancing Account (CUFLBA) | B35: D.24-07-009, AL 6421-G,AL 6340-G-A | C35: -1168.448441 | D35: 5918.687245 | E35: 5918.687245 | F35: 5918.687245 | G35: 5918.687245 | H35: 12182.44939 | I35: 12182.44939 | J35: 12182.44939 | K35: 2553.019545 | L35: 2551.992899 | M35: 2552.735232 | N35: 2552.735232 | O35: 2552.735232 | P35: ECPT | Q35: Y
A36: Noncore Storage Balancing Account (NSBA) | B36: D.24-07-009, AL 6421-G,AL 6340-G-A | C36: 122.0512176 | D36: 93.94677741 | E36: 93.94677741 | F36: 93.94677741 | G36: 93.94677741 | H36: 0 | I36: 0 | J36: 0 | K36: -28184.0505 | L36: -28170.62481 | M36: -28170.62481 | N36: -28170.62481 | O36: -28170.62481 | P36: ECPT | Q36: Y
A37: Pension Balancing Account (PBA) | B37: D.24-07-009, AL 6421-G,AL 6340-G-A | C37: 11312.64409 | D37: 9235.968926 | E37: 9235.968926 | F37: 9235.968926 | G37: 9235.984974 | H37: 23408.24727 | I37: 23408.24716 | J37: 23408.24716 | K37: 41484.86135 | L37: 17893.67727 | M37: 17893.67727 | N37: 17893.67727 | O37: 17893.67727 | P37: EPAM | Q37: Y
A38: PBOP Balancing Account (PBOPBA) | B38: D.24-07-009, AL 6421-G,AL 6340-G-A | C38: -4328.422797 | D38: -4765.790274 | E38: -4765.790274 | F38: -4765.790274 | G38: -4765.798555 | H38: -1010.398893 | I38: -1010.398888 | J38: -1010.398888 | K38: -1093.046874 | L38: -3240.981219 | M38: -3240.981219 | N38: -3240.981219 | O38: -3240.981219 | P38: EPAM | Q38: Y
A39: Safety Enhancement Capital Cost Balancing Account (SECCBA) - Local Transmission | B39: D.24-07-009, AL 6421-G,AL 6340-G-A | C39: 22874.17654 | D39: 24483.53553 | E39: 24483.53553 | F39: 24483.53553 | G39: 24483.53553 | H39: 25945.72456 | I39: 25945.72456 | J39: 25945.72456 | K39: 25737.97512 | L39: -7932.369624 | M39: -7934.320485 | N39: -7934.320485 | O39: -7934.320485 | P39: Local Transmission | Q39: Y
A40: Safety Enhancement Capital Cost Balancing Account (SECCBA) - Distribution | B40: D.24-07-009, AL 6421-G,AL 6340-G-A | C40: 72521.18682 | D40: 74787.02382 | E40: 74787.02382 | F40: 74787.02382 | G40: 74787.02382 | H40: 78908.4625 | I40: 78908.4625 | J40: 78908.4625 | K40: 77781.07254 | L40: -35512.15609 | M40: -35521.23128 | N40: -35521.23128 | O40: -35521.23128 | P40: Distribution | Q40: Y
A41: Safety Enhancement Expense Balancing Account (SEEBA) - Local Transmission | B41: D.24-07-009, AL 6421-G,AL 6340-G-A | C41: 572.0979832 | D41: -674.0780882 | E41: -674.0780882 | F41: -674.0780882 | G41: -674.0780882 | H41: -305.1347641 | I41: -305.1347641 | J41: -305.1347641 | K41: 207.9130707 | L41: 210.6525379 | M41: 210.7043451 | N41: 210.7043451 | O41: 210.7043451 | P41: Local Transmission | Q41: Y
A42: Safety Enhancement Expense Balancing Account (SEEBA) - Distribution | B42: D.24-07-009, AL 6421-G,AL 6340-G-A | C42: 1611.907472 | D42: 2206.086744 | E42: 2206.086744 | F42: 2206.086744 | G42: 2206.086744 | H42: 402.7958316 | I42: 402.7958316 | J42: 402.7958316 | K42: 586.1714733 | L42: 586.0159779 | M42: 586.1657352 | N42: 586.1657352 | O42: 586.1657352 | P42: Distribution | Q42: Y
A43: Research Royalty Memorandum Account (RRMA) | B43: D.24-07-009, AL 6421-G,AL 6340-G-A | C43: -160.8244502 | D43: -247.9508232 | E43: -247.9508232 | F43: -247.9508232 | G43: -247.9512541 | H43: -157.2750448 | I43: -157.275044 | J43: -157.275044 | K43: -187.7276666 | L43: -187.6590959 | M43: -187.6590959 | N43: -187.6590959 | O43: -187.6590959 | P43: EPAM | Q43: Y
A44: Self-Generation Program Memorandum Account (SGPMA) | B44: D.24-07-009, AL 6421-G,AL 6340-G-A | C44: 16267.79819 | D44: 16265.02543 | E44: 16265.02543 | F44: 16265.02543 | G44: 16265.02543 | H44: 16265.02543 | I44: 16265.02543 | J44: 16265.02543 | K44: 0 | L44: 0 | M44: 0 | N44: 0 | O44: 0 | P44: SGIP | Q44: Y
A45: System Operator Gas Account (SOGA) | B45: D.24-07-009, AL 6421-G,AL 6340-G-A | C45: -57.47472488 | D45: -54.79102466 | E45: -54.79102466 | F45: -54.79102466 | G45: -54.79102466 | H45: 0 | I45: 0 | J45: 0 | K45: 1062.864181 | L45: 1062.357878 | M45: 1062.357878 | N45: 1062.357878 | O45: 1062.357878 | P45: ECPT | Q45: Y
A46: Rewards & Penalties Balancing Account (RPBA) | B46: D.24-07-009, AL 6421-G,AL 6340-G-A | C46: -266.7671576 | D46: -288.8720611 | E46: -288.8720611 | F46: -288.8720611 | G46: -288.872563 | H46: 7370.233834 | I46: 7370.233799 | J46: 7370.233799 | K46: 4000.144377 | L46: 3998.683255 | M46: -4451.889016 | N46: -4451.889016 | O46: -4451.889016 | P46: EPAM | Q46: Y
A47: Liability Insurance Premium Balancing Account (LIPBA) | B47: D.24-07-009, AL 6421-G,AL 6340-G-A | C47: 14313.74818 | D47: 23349.85594 | E47: 23349.85594 | F47: 23349.85594 | G47: 23349.89651 | H47: 24061.23156 | I47: 24061.23145 | J47: 24061.23145 | K47: 27244.79019 | L47: -15158.15314 | M47: -15158.15619 | N47: -15158.15619 | O47: -15158.15619 | P47: EPAM | Q47: Y
A48: NonCore Backbone Transmission | B48: D.24-07-009, AL 6421-G,AL 6340-G-A | C48: 205899.099 | D48: 307036.3771 | E48: 307036.3771 | F48: 307036.3771 | G48: 307036.3771 | H48: 302321.9664 | I48: 403718.6134 | J48: 403718.6134 | K48: 346725.4363 | L48: 385487.5997 | M48: 304889.8509 | N48: 509219.5642 | O48: 509219.5642 | P48: Backbone Transmission | Q48: N
A49: Storage Integrity Management Program Balancing Account (SIMPBA) Balance | B49: D.22-07-016, D.20-02-045, AL6421-G | C49: 0 | D49: 35607.36669 | E49: 35607.36669 | F49: 35607.36669 | G49: 35607.42856 | H49: 0 | I49: 0 | J49: 0 | K49: 0 | L49: 0 | M49: =L49 -> 0 | N49: 0 | O49: 0 | P49: EPAM | Q49: Y
A50: On-Bill Financing Balancing Account (OBFBA) | B50: D.19-03-001, AL 5853-A, AL 6421-G | C50: 0 | D50: 4574.363334 | E50: 4574.363334 | F50: 4574.363334 | G50: 4574.371282 | H50: 0 | I50: 0 | J50: 0 | K50: 0 | L50: 0 | M50: =L50 -> 0 | N50: 0 | O50: 0 | P50: EPAM | Q50: Y
A51: System Reliability Memorandum Account (SRMA) | B51: D.24-07-009, AL 6421-G,AL 6340-G-A | C51: 0 | D51: 15184.32229 | E51: 15184.32229 | F51: 15184.32229 | G51: 15184.32229 | H51: 32096.06422 | I51: 32096.06422 | J51: 32096.06422 | K51: 15326.50399 | L51: 15319.20309 | M51: 15319.20309 | N51: 15319.20309 | O51: 15319.20309 | P51: ECPT | Q51: Y
A52: Distributed Energy Resources Svcs Bal Account (DERSBA) | B52: D.24-07-009, AL 6421-G,AL 6340-G-A | C52: 0 | D52: -61.47842668 | E52: -61.47842668 | F52: -61.47842668 | G52: -61.47853351 | H52: 0 | I52: 0 | J52: 0 | K52: 0 | L52: 0 | M52: 0 | N52: 0 | O52: 0 | P52: EPAM | Q52: Y
A53: Percentage of Income Payment Plan Balancing Account (PIPPBA) | B53: D.24-07-009, AL 6421-G,AL 6340-G-A | C53: 0 | D53: 0 | E53: 0 | F53: 0 | G53: 0 | H53: 573.8082412 | I53: 573.8082412 | J53: 573.8082412 | K53: 895.8920064 | L53: 895.4652414 | M53: 895.4652414 | N53: 895.4652414 | O53: 895.4652414 | P53: ECPT | Q53: Y
A54: Transmission Integrity Management Program Memorandum Account (TIMPBA) Local Transmission | B54: AL 6325-G, D.24-07-009,AL 6421-G,AL 6340-G-A | C54: 0 | D54: 0 | E54: 0 | F54: 0 | G54: 0 | H54: 0 | I54: 56339.32306 | J54: 56339.32306 | K54: 56339.32306 | L54: 65908.49897 | M54: 0 | N54: 0 | O54: 0 | P54: Local Transmission | Q54: Y
A55: San Joaquin Valley Disadvantaged Communities Bal Acct (SJVDACBA) - TTM subaccount | B55: D.18-12-015, AL 6421-G | C55: 0 | D55: 0 | E55: 0 | F55: 0 | G55: 0 | H55: 0 | I55: 0 | J55: 0 | K55: 303.2116872 | L55: 303.06725 | M55: 303.06725 | N55: 303.06725 | O55: 303.06725 | P55: ECPT | Q55: Y
A56: AB802 Memorandum Account (AB802MA) | B56: D.24-12-074, AL6430-G-A | C56: 0 | D56: 0 | E56: 0 | F56: 0 | G56: 0 | H56: 0 | I56: 0 | J56: 0 | K56: 0 | L56: 1235.818849 | M56: 1235.818849 | N56: 1235.818849 | O56: 1235.818849 | P56: EPAM | Q56: Y
A57: AMIBA Escalated Jurisdiction Cost Subaccount | B57: D.24-12-074, AL6430-G-A | C57: 0 | D57: 0 | E57: 0 | F57: 0 | G57: 0 | H57: 0 | I57: 0 | J57: 0 | K57: 0 | L57: 952.4052728 | M57: 952.4052728 | N57: 952.4052728 | O57: 952.4052728 | P57: EPAM | Q57: Y
A58: AMIBA Deployment and Post-Deployment subaccounts | B58: D.24-12-074, AL6430-G-A | C58: 0 | D58: 0 | E58: 0 | F58: 0 | G58: 0 | H58: 0 | I58: 0 | J58: 0 | K58: 0 | L58: -589.4910628 | M58: -589.4910628 | N58: -589.4910628 | O58: -589.4910628 | P58: EPAM | Q58: Y
A59: Core Gas Balancing Memorandum Account (CGBMA) | B59: D.24-12-074, AL6430-G-A | C59: 0 | D59: 0 | E59: 0 | F59: 0 | G59: 0 | H59: 0 | I59: 0 | J59: 0 | K59: 0 | L59: 4474.483233 | M59: 4474.483233 | N59: 4474.483233 | O59: 4474.483233 | P59: EPAM | Q59: Y
A60: Diary Biomethane Solicitation Develop. Memorandum Account (DBSDMA) | B60: D.24-12-074, AL6430-G-A | C60: 0 | D60: 0 | E60: 0 | F60: 0 | G60: 0 | H60: 0 | I60: 0 | J60: 0 | K60: 0 | L60: 1037.325066 | M60: 1037.325066 | N60: 1037.325066 | O60: 1037.325066 | P60: EPAM | Q60: Y
A61: Injection Enhancement Cost Memorandum Account (IECMA) | B61: D.24-12-074, AL6430-G-A | C61: 0 | D61: 0 | E61: 0 | F61: 0 | G61: 0 | H61: 0 | I61: 0 | J61: 0 | K61: 0 | L61: -209.4205028 | M61: -209.4205028 | N61: -209.4205028 | O61: -209.4205028 | P61: EPAM | Q61: Y
A62: Residential Disconnect Memorandum Account (RDMA) | B62: D.24-12-074, AL6430-G-A | C62: 0 | D62: 0 | E62: 0 | F62: 0 | G62: 0 | H62: 0 | I62: 0 | J62: 0 | K62: 0 | L62: 9.701236543 | M62: 9.701236543 | N62: 9.701236543 | O62: 9.701236543 | P62: EPAM | Q62: Y
A63: Wildfire Customer Protection Memorandum Account (WCPMA) | B63: D.24-12-074, AL6430-G-A | C63: 0 | D63: 0 | E63: 0 | F63: 0 | G63: 0 | H63: 0 | I63: 0 | J63: 0 | K63: 0 | L63: 127.6535183 | M63: 127.6535183 | N63: 127.6535183 | O63: 127.6535183 | P63: EPAM | Q63: Y
A64: Avoided Cost Calculator Update Memorandum Account (ACCUMA) | B64: D.24-12-074, AL6430-G-A | C64: 0 | D64: 0 | E64: 0 | F64: 0 | G64: 0 | H64: 0 | I64: 0 | J64: 0 | K64: 0 | L64: 65.29815233 | M64: 65.29815233 | N64: 65.29815233 | O64: 65.29815233 | P64: EPAM | Q64: Y
A65: California Consumer Privacy Act Memorandum Account (CCPAMA) | B65: D.24-12-074, AL6430-G-A | C65: 0 | D65: 0 | E65: 0 | F65: 0 | G65: 0 | H65: 0 | I65: 0 | J65: 0 | K65: 0 | L65: 3668.345737 | M65: 3668.345737 | N65: 3668.345737 | O65: 3668.345737 | P65: EPAM | Q65: Y
A66: Emergency Customer Protection Memorandum Account (ECPMA) | B66: D.24-12-074, AL6430-G-A | C66: 0 | D66: 0 | E66: 0 | F66: 0 | G66: 0 | H66: 0 | I66: 0 | J66: 0 | K66: 0 | L66: 359.9334552 | M66: 359.9334552 | N66: 359.9334552 | O66: 359.9334552 | P66: EPAM | Q66: Y
A67: Morongo Right of Way Memorandum Account (MROWMA) | B67: D.24-12-074, AL6430-G-A | C67: 0 | D67: 0 | E67: 0 | F67: 0 | G67: 0 | H67: 0 | I67: 0 | J67: 0 | K67: 0 | L67: 56007.72103 | M67: 56007.72103 | N67: 56007.72103 | O67: 56007.72103 | P67: EPAM | Q67: Y
A68: Residential Disconnect Protections Memorandum Account (RDPMA) | B68: D.24-12-074, AL6430-G-A | C68: 0 | D68: 0 | E68: 0 | F68: 0 | G68: 0 | H68: 0 | I68: 0 | J68: 0 | K68: 0 | L68: 2610.392714 | M68: 2610.392714 | N68: 2610.392714 | O68: 2610.392714 | P68: EPAM | Q68: Y
A69: Aliso Canyon Memorandum Account (ACMA) | B69: D.24-12-074, AL6430-G-A | C69: 0 | D69: 0 | E69: 0 | F69: 0 | G69: 0 | H69: 0 | I69: 0 | J69: 0 | K69: 0 | L69: 12154.54219 | M69: 12155.8965 | N69: 12155.8965 | O69: 12155.8965 | P69: Storage | Q69: Y
A70: Cost of Capital Adjustment (Subtracted from Base Margin) | B70: D.24-12-074, AL6430-G-A | C70: 0 | D70: 0 | E70: 0 | F70: 0 | G70: 0 | H70: 0 | I70: 0 | J70: 0 | K70: 0 | L70: -34275 | M70: -34275 | N70: -34275 | O70: -34275 | P70: EPAM | Q70: N
A71: General Rate Case Revenue Requirement Memorandum Account (GRCMA) | B71: D.24-12-074, AL6430-G-A | C71: 0 | D71: 0 | E71: 0 | F71: 0 | G71: 0 | H71: 0 | I71: 0 | J71: 0 | K71: 0 | L71: 250251.014 | M71: 250251.014 | N71: 250251.014 | O71: 250251.014 | P71: EPAM | Q71: Y
A72: GRCMA Sub allocation for AB32 Admin Fees | B72: D.24-12-074, AL6430-G-A | C72: 0 | D72: 0 | E72: 0 | F72: 0 | G72: 0 | H72: 0 | I72: 0 | J72: 0 | K72: 0 | L72: 4736 | M72: 4736 | N72: 4736 | O72: 4736 | P72: ECPT | Q72: Y
A73: GRCMA PSEP Local Transmission | B73: D.24-12-074, AL6430-G-A | C73: 0 | D73: 0 | E73: 0 | F73: 0 | G73: 0 | H73: 0 | I73: 0 | J73: 0 | K73: 0 | L73: -5984.28996 | M73: -5984.28996 | N73: -5984.28996 | O73: -5984.28996 | P73: Local Transmission | Q73: Y
A74: GRCMA PSEP Distribution | B74: D.24-12-074, AL6430-G-A | L74: 28198.07333 | M74: 28198.07333 | N74: 28198.07333 | O74: 28198.07333 | P74: Distribution | Q74: Y
A75: Distribution Integrity Management Program Memorandum Account (DIMPBA) | B75: Res. G-3610, AL 6526-G | O75: 109584.2006 | P75: EPAM | Q75: Y
A76: Castastrophic Event Memorandum Account (CEMA) | B76: D.25-07-009 , AL 6526-G | O76: 16987.42734 | P76: ECPT | Q76: N
A77: Covid-19 Pandemic Protections Memorandum Account(CPPMA) | B77: D.25-07-009 , AL 6526-G | O77: 6395.500315 | P77: ECPT | Q77: N
A78: Subtotal Safety Affordability Reliability | C78: =SUM(C9:C52) -> 3230710.353 | D78: =SUM(D9:D55) -> 3673812.442 | E78: 3539196.676 | F78: 3539196.676 | G78: 3523347.194 | H78: 3727501.655 | I78: 3886558.033 | J78: 3886558.033 | K78: 3799215.553 | L78: =SUM(L9:L74) -> 4400110.339 | M78: =SUM(M9:M74) -> 4243439.83 | N78: =SUM(N9:N74) -> 4447769.543 | O78: =SUM(O9:O77) -> 4580736.671
A81: Public Policy Proceedings
A82: AB32 Fees (subtracted from base margin and allocated here) | B82: D.24-12-074 | C82: 5107.071894 | D82: 5106.20142 | E82: 5106.20142 | F82: 5106.20142 | G82: 5106.20142 | H82: 5106.20142 | I82: 5106.20142 | J82: 5106.20142 | K82: 5106.20142 | L82: 12693.43568 | M82: 12693.43568 | N82: 12693.43568 | O82: 12693.43568 | P82: ECPT adjusted | Q82: N
A83: Green House Gas Balancing Account (GHGBA) - Company Gas Compressor Revenue Requirement | B83: AL 6421-G, D.24-07-009 | C83: 2676.455882 | D83: 2388.575096 | E83: 2388.575096 | F83: 2388.575096 | G83: 2388.575096 | H83: 2684.159829 | I83: 2684.159829 | J83: 2684.159829 | K83: 2343.979971 | L83: 2342.863399 | M83: 2342.863399 | N83: 2342.863399 | O83: 2342.863399 | P83: ECPT | Q83: N
A84: Green House Gas Balancing Account (GHGBA) - End User Revenue Requirement | B84: AL 6421-G, D.24-07-009 | C84: 421911.6559 | D84: 451660.1517 | E84: 451660.1517 | F84: 451660.1517 | G84: 451660.1517 | H84: 659841.4191 | I84: 659841.4191 | J84: 659841.4191 | K84: 824457.2471 | L84: 824179.789 | M84: 824179.789 | N84: 824179.789 | O84: 824179.789 | P84: GHG End User | Q84: N
A85: Green House Gas Balancing Account (GHGBA) - LUAF Revenue Requirement | B85: AL 6421-G, D.24-07-009 | C85: 11523.70083 | D85: 11338.59513 | E85: 11338.59513 | F85: 11338.59513 | G85: 11338.59513 | H85: 14890.28891 | I85: 14890.28891 | J85: 14890.28891 | K85: 14055.21946 | L85: 14049.97763 | M85: 14051.9063 | N85: 14051.9063 | O85: 14051.9063 | P85: 47% Res (LUAF, Other) | Q85: N
A86: Green House Gas Balancing Account (GHGBA) - Company Gas Compressor | B86: AL 6421-G, D.24-07-009 | C86: 110.1068734 | D86: -783.1516359 | E86: -783.1516359 | F86: -783.1516359 | G86: -783.1516359 | H86: -2420.193065 | I86: -2420.193065 | J86: -2420.193065 | K86: -291.5247478 | L86: -291.3858778 | M86: -291.3858778 | N86: -291.3858778 | O86: -291.3858778 | P86: ECPT | Q86: Y
A87: Green House Gas Balancing Account (GHGBA) - End User | B87: AL 6421-G, D.24-07-009 | C87: 24082.11232 | D87: -22703.37309 | E87: -22703.37309 | F87: -22703.37309 | G87: -22703.37309 | H87: 85564.85517 | I87: 85564.85517 | J87: 85564.85517 | K87: -99825.58576 | L87: -99791.99104 | M87: -99791.99104 | N87: -99791.99104 | O87: -99791.99104 | P87: GHG End User | Q87: Y
A88: Green House Gas Balancing Account (GHGBA) - LUAF | B88: AL 6421-G, D.24-07-009 | C88: 96.16147584 | D88: 3057.496701 | E88: 3057.496701 | F88: 3057.496701 | G88: 3057.496701 | H88: -7155.03039 | I88: -7155.03039 | J88: -7155.03039 | K88: -17279.4012 | L88: -17272.95692 | M88: -17275.32802 | N88: -17275.32802 | O88: -17275.32802 | P88: 47% Res (LUAF, Other) | Q88: Y
A89: New Envirnomental Regulatory Balancing Account (NERBA) - Admin Fees Subaccount | B89: AL 6421-G, D.24-07-009 | C89: 3566.9059 | D89: 5564.392269 | E89: 5564.392269 | F89: 5564.392269 | G89: 5564.392269 | H89: 8886.02153 | I89: 8886.02153 | J89: 8886.02153 | K89: 7220.333492 | L89: -656.1735167 | M89: -656.1735167 | N89: -656.1735167 | O89: -656.1735167 | P89: ECPT adjusted | Q89: Y
A90: New Environmental Regulatory Balancing Account (NERBA) - Leak Detection & Repair (LDAR) sub-account | B90: AL 6421-G, D.24-07-009 | C90: 1979.707886 | D90: 6090.186376 | E90: 6090.186376 | F90: 6090.186376 | G90: 6090.196959 | H90: 8805.759368 | I90: 8805.759326 | J90: 8805.759326 | K90: 10802.02753 | L90: -981.6438092 | M90: -981.6438092 | N90: -981.6438092 | O90: -981.6438092 | P90: EPAM | Q90: Y
A91: New Envirnomental Regulatory Balancing Account (NERBA) -Natural Gas Leak Abatement Program | B91: AL 6421-G, D.24-07-009 | C91: -2147.512017 | D91: 0 | E91: 0 | F91: 0 | G91: 0 | H91: 0 | I91: 0 | J91: 0 | K91: 0 | L91: 0 | M91: 0 | N91: 0 | O91: 0 | P91: EPAM | Q91: Y
A92: New Envirnomental Regulatory Balancing Account (NERBA) - Subpart W | B92: AL 6421-G, D.24-07-009 | C92: 0 | D92: 0 | E92: 0 | F92: 0 | G92: 0 | H92: 0 | I92: 0 | J92: 0 | K92: -889.9950251 | L92: -889.6695427 | M92: -889.6695427 | N92: -889.6695427 | O92: -889.6695427 | P92: EPAM | Q92: Y
A93: New Environmental Regulatory Balancing Account (NERBA) - MS4 sub-account | B93: AL 6421-G, D.24-07-009 | C93: 0 | D93: 0 | E93: 0 | F93: 0 | G93: 0 | H93: 0 | I93: 0 | J93: 0 | K93: -843.0909638 | L93: -842.7831119 | M93: -842.7831119 | N93: -842.7831119 | O93: -842.7831119 | P93: EPAM | Q93: Y
A94: NGV, EG,TLS Adjustment | B94: AL 6421-G, D.24-07-009 | C94: -6644.931817 | D94: 10390.21603 | E94: 10421.05359 | F94: 10394.54613 | G94: 10191.85865 | H94: 8841 | I94: 8840.838331 | J94: 9275.991556 | K94: 5762.69625 | L94: 8109.632544 | M94: 7976.952669 | N94: 7976.952669 | O94: 7081.611316 | P94: Non-Residential | Q94: N
A95: Natural Gas Leak Abatement Program Revenue Requirement | B95: AL 5915G, AL 6071, AL 6168-G, AL 5950-G-B, AL 6538-G | C95: 86446.46472 | D95: 86431.16512 | E95: 86431.16512 | F95: 107531.4643 | G95: 107531.6511 | H95: 104496.8284 | I95: 104898.9772 | J95: 104898.9772 | K95: 104604.1877 | L95: 104565.979 | M95: 104565.979 | N95: 104565.979 | O95: 76253.64988 | P95: EPAM | Q95: N
A96: Biogas Conditioning/Upgrading Svcs Bal Acct (BCSBA) | B96: D. 13-12-040 | C96: -48.66967436 | D96: 0 | E96: 0 | F96: 0 | G96: 0 | H96: 0 | I96: 0 | J96: 0 | K96: 0 | L96: 0 | M96: 0 | N96: 0 | O96: 0 | P96: EPAM | Q96: Y
A97: Diary Biomethane Project Balancing Account (DBPBA) | B97: D. 17-12-004 | C97: 45457.03256 | D97: 34573.34405 | E97: 34573.34405 | F97: 34573.34405 | G97: 34573.40413 | H97: 1209.195516 | I97: 1209.195511 | J97: 1209.195511 | K97: 0 | L97: 0 | M97: 0 | N97: 0 | O97: 0 | P97: EPAM | Q97: Y
A98: Diary Biomethane Project Memorandum Account (DBPMA) | B98: D. 17-12-004 | C98: =0 -> 0 | D98: 8114.656258 | E98: 8114.656258 | F98: 8114.656258 | G98: 8114.670358 | H98: 5125.990541 | I98: 5125.990516 | J98: 5125.990516 | K98: 6275.667165 | L98: 6273.374869 | M98: 6273.374869 | N98: 6273.374869 | O98: 6273.374869 | P98: EPAM | Q98: Y
A99: California Solar Iniative Thermal Memorandum Account (CSITPMA) | B99: D. 10-01-022 | C99: 1411.38197 | D99: 1113.860455 | E99: 1113.860455 | F99: 1113.860455 | G99: 1113.860455 | H99: 1391.107979 | I99: 1391.107979 | J99: 1391.107979 | K99: 2681.917678 | L99: 2681.015121 | M99: 2681.015121 | N99: 2681.015121 | O99: 2681.015121 | P99: ECPT adjusted | Q99: Y
A100: Biomethane Procurement and Pilot Costs Balancing Account (BPPCBA) - Program Administrative Costs Subaccount | B100: D. 22-02-025 | C100: 0 | D100: 0 | E100: 0 | F100: 0 | G100: 0 | H100: 237.0470114 | I100: 237.0470103 | J100: 237.0470103 | K100: 0 | L100: 0 | M100: 0 | N100: 0 | O100: 0 | P100: EPAM | Q100: Y
A101: Biomethane Cost Incentive Pgm Balancing Acct (BCIPBA) | B101: D.16-12-043/D.19-12-009 | C101: 10172.0832 | D101: 0 | E101: 0 | F101: 0 | G101: 0 | H101: 0 | I101: 0 | J101: 0 | K101: 0 | L101: 0 | M101: 0 | N101: 0 | O101: 0 | P101: ECPT | Q101: Y
A107: PPPS Programs
A108: California Alternate Rates for Energy (CARE) | B108: D.21-06-015, AL 6393, AL 6552 | C108: 229388.1321 | D108: 199514.8915 | E108: 199514.8915 | F108: 199514.8915 | G108: 199514.8915 | H108: 272251.1514 | I108: 272251.1514 | J108: 272251.1514 | K108: 172216.7959 | L108: =K108 -> 172216.7959 | M108: =L108 -> 172216.7959 | N108: =M108 -> 172216.7959 | O108: =N108 -> 172216.7959 | P108: Public Purpose Programs | Q108: N
A109: Energy Efficiency | B109: AL 6393, AL 6552 | C109: 107144.935 | D109: 166906.526 | E109: 166906.526 | F109: 166906.526 | G109: 166906.526 | H109: 165866.6393 | I109: 165866.6393 | J109: 165866.6393 | K109: 166375.8554 | L109: =K109 -> 166375.8554 | M109: 166375.8554 | N109: 166375.8554 | O109: 166375.8554 | P109: Public Purpose Programs | Q109: N
A110: RD&D | B110: AL 6393, AL 6552 | C110: 12406.90965 | D110: 12264.872 | E110: 12264.872 | F110: 12264.872 | G110: 12264.872 | H110: 11380.1178 | I110: 11380.1178 | J110: 11380.1178 | K110: 12881.5384 | L110: 12881.5384 | M110: 12881.5384 | N110: 12881.5384 | O110: 12881.5384 | P110: Public Purpose Programs | Q110: N
A111: Bureau Of Equalization BOE | B111: AL 6393, AL 6552 | C111: 547.65497 | D111: 520.254 | E111: 520.254 | F111: 520.254 | G111: 520.254 | H111: 476.44983 | I111: 476.44983 | J111: 476.44983 | K111: 488.24258 | L111: 488.24258 | M111: 488.24258 | N111: 488.24258 | O111: 488.24258 | P111: Public Purpose Programs | Q111: N
A112: Energy Savings Assistance | B112: D.21-06-015, AL 6393, AL 6552 | C112: =0 -> 0 | D112: 80174.20485 | E112: 80174.20485 | F112: 80174.20485 | G112: 80174.20485 | H112: 111508.2999 | I112: 111508.2999 | J112: 111508.2999 | K112: 107549.884 | L112: 107549.884 | M112: 107549.884 | N112: 107549.884 | O112: 107549.884 | P112: Public Purpose Programs | Q112: N
A113: SJVDGPMA/BA Account | B113: AL 6393, AL 6552 | C113: =0 -> 0 | D113: 806.165 | E113: 806.165 | F113: 806.165 | G113: 806.165 | H113: 90.978 | I113: 90.978 | J113: 90.978 | K113: -62.068 | L113: -62.068 | M113: -62.068 | N113: -62.068 | O113: -62.068 | P113: Public Purpose Programs | Q113: N
A120: Subtotal Public Policy | C120: =SUM(C82:C119) -> 955187.3596 | D120: =SUM(D82:D119) -> 1062529.229 | E120: 1062560.067 | F120: 1083633.858 | G120: 1083431.443 | H120: 1459078.288 | I120: 1459480.275 | J120: 1459915.428 | K120: 1323630.128 | L120: 1313619.712 | M120: 1313486.589 | N120: 1313486.589 | O120: 1284278.919
A122: EOR | B122: D.24-07-009, AL 6421-G | C122: -19696.02666 | D122: -25124.8966 | E122: -25124.8966 | F122: -25233.57266 | G122: -24742.54871 | H122: -32255.65745 | I122: -33347.39611 | J122: -33358.5985 | K122: -26721.64885 | L122: -13185.84461 | P122: EPAM
A124: Procurement
A125: Procurement | B125: D.98-07-068 | C125: =TotalCoreVolume*SetUp!K11 -> 1061262.3 | D125: 3301020.314 | E125: 3301020.314 | F125: 3301020.314 | G125: 3301020.314 | H125: 1800955.444 | I125: 1800955.444 | J125: 1800955.444 | K125: =TotalCoreVolume*SetUp!K5 -> 1049134.325 | L125: =K125 -> 1049134.325 | M125: =L125 -> 1049134.325 | N125: =M125 -> 1049134.325 | O125: =N125 -> 1049134.325 | P125: Core Procurement
A131: Subtotal Procurement | C131: =SUM(C125:C130) -> 1061262.3 | D131: 3301020.314 | E131: 3301020.314 | F131: 3301020.314 | G131: 3301020.314 | H131: 1800955.444 | I131: 1800955.444 | J131: =SUM(J125:J130) -> 1800955.444 | K131: =SUM(K125:K130) -> 1049134.325 | L131: 1049134.325 | M131: 1049134.325 | N131: 1049134.325 | O131: 1049134.325
A133: Total Authorized Revenue | C133: =C78+C120+C131+C122 -> 5227463.986 | D133: 8012237.088 | E133: 7877652.16 | F133: 7898617.276 | G133: 7883056.402 | H133: 6955279.729 | I133: 7113646.355 | J133: =J78+J120+J131+J122 -> 7114070.306 | K133: =K78+K120+K131+K122 -> 6145258.357 | L133: 6749678.531 | M133: =M78+M120+M131+M122 -> 6606060.744 | N133: =N78+N120+N131+N122 -> 6810390.457 | O133: 6914149.915
L135: =SUM(L78,L82:L101)-L48+L122 -> 4855606.358 | M135: =SUM(M78,M82:M101)-M48+M122 -> 4792586.32 | N135: =SUM(N78,N82:N104)-N48+N122 -> 4792586.32 | O135: =SUM(O78,O82:O104)-O48+O122 -> 4896345.778
L136: 4855606.358 | M136: 4792586.32 | N136: 4792586.32 | O136: 4896345.778
L137: =L135-L136 -> 0 | M137: =M135-M136 -> 0 | N137: =N135-N136 -> 0 | O137: =O135-O136 -> 0

Sheet Incremental Rev Req
A2: ='Authorized Rev Req'!A2 -> Annual Period 2025
A3: Reporting Date: Quarter Ended December 31
A5: Current Revenue Requirement ($000): | B5: ='Authorized Rev Req'!O133 -> 6914149.915
A6: Current Revenue Requirement Effective: | B6: ='Authorized Rev Req'!O5 -> 2025-10-01
A7: Approved Application(s), Implemented Since Jan 1 or To Be Implemented
A8: Filing Description | B8: Proceeding | C8: Authority for Revenue Requirement | D8: Authorized Revenue Requirement with FF&U ($000) | E8: Revenue Recovery Mechanism | F8: Authorized Revenue Requirement with FF&U ($000) - Breakout by Year | K8: Existing or New Item (if existing, use delta from prior for rate impact) | O8: =TRANSPOSE(YearsForRateImpact) -> 2025 | P8: 2026 | Q8: 2027 | R8: 2028 | S8: 2029
A9: Safety Affordability Reliability Proceedings | D9: =B6 -> 2025-10-01 | F9: =TRANSPOSE(YearsForRateImpact) -> 2025 | G9: 2026 | H9: 2027 | I9: 2028 | J9: 2029 | L9: 0.03 | N9: =RevRecoveryMechanisms -> Core Procurement | O9: =SUMIF($E$10:$E$116,N9,$F$10:$F$116) -> 1049134.325 | P9: =SUMIF($E$10:$E$116,N9,$G$10:$G$116) -> 1049134.325 | Q9: =SUMIF($E$10:$E$116,N9,$H$10:$H$116) -> 1049134.325 | R9: =SUMIF($E$10:$E$116,N9,$I$10:$I$116) -> 1049134.325 | S9: =SUMIF($E$10:$E$116,N9,$J$10:$J$116) -> 1049134.325
A10: ='Authorized Rev Req'!A9 -> Total Allocated Base Margin | C10: ='Authorized Rev Req'!B9 -> D.24-12-074 | D10: =F10 -> 3218272.671 | E10: ='Authorized Rev Req'!P9 -> Allocated Base Margin | F10: ='Authorized Rev Req'!O9 -> 3218272.671 | G10: 3331734.223 | H10: =G10+L12 -> 3431178.849 | I10: =H10 -> 3431178.849 | J10: =I10 -> 3431178.849 | K10: Existing | L10: =F10*L9 -> 96548.18014 | N10: Allocated Base Margin | O10: 3218272.671 | P10: 3331734.223 | Q10: 3431178.849 | R10: 3431178.849 | S10: 3431178.849
A11: ='Authorized Rev Req'!A10 -> Pipeline Safety Enhancement Plan (PSEP) GRC - Local Transmission (subtracted from Base Margin and allocated here) | C11: ='Authorized Rev Req'!B10 -> D.24-12-074 | D11: 12473.81268 | E11: ='Authorized Rev Req'!P10 -> Local Transmission | F11: ='Authorized Rev Req'!O10 -> 12473.81268 | G11: 0 | H11: =0 -> 0 | I11: =0 -> 0 | J11: =0 -> 0 | K11: Existing | L11: =F10+L10 -> 3314820.851 | N11: Distribution | O11: 90177.33422 | P11: 0 | Q11: 0 | R11: 0 | S11: 0
A12: ='Authorized Rev Req'!A11 -> Pipeline Safety Enhancement Plan (PSEP) GRC -Distribution (subtracted from Base Margin and allocated here) | C12: ='Authorized Rev Req'!B11 -> D.24-12-074 | D12: 73422.06 | E12: ='Authorized Rev Req'!P11 -> Distribution | F12: ='Authorized Rev Req'!O11 -> 73422.06 | G12: 0 | H12: =0 -> 0 | I12: =0 -> 0 | J12: =0 -> 0 | K12: Existing | L12: =L11*3% -> 99444.62554 | N12: ECPT adjusted | O12: 14718.27728 | P12: 0 | Q12: 0 | R12: 0 | S12: 0
A13: ='Authorized Rev Req'!A12 -> Company Use Gas: Other | C13: ='Authorized Rev Req'!B12 -> D.24-07-009, AL 6421-G,AL 6340-G-A | D13: 1223.184112 | E13: ='Authorized Rev Req'!P12 -> ECPT | F13: ='Authorized Rev Req'!O12 -> 1223.184112 | G13: 0 | H13: =0 -> 0 | I13: =0 -> 0 | J13: =0 -> 0 | K13: Existing | L13: =L11+L12 -> 3414265.477 | N13: Local Transmission | O13: -890.6592899 | P13: 0 | Q13: 0 | R13: 0 | S13: 0
A14: ='Authorized Rev Req'!A13 -> Company Use Gas: Storage Load Balancing | C14: ='Authorized Rev Req'!B13 -> D.24-07-009, AL 6421-G,AL 6340-G-A | D14: 3501.139374 | E14: ='Authorized Rev Req'!P13 -> ECPT | F14: ='Authorized Rev Req'!O13 -> 3501.139374 | G14: 0 | H14: =0 -> 0 | I14: =0 -> 0 | J14: =0 -> 0 | K14: Existing | N14: SGIP | O14: 0 | P14: 0 | Q14: 0 | R14: 0 | S14: 0
A15: ='Authorized Rev Req'!A14 -> Exchange Revenues & Interutility Transactions | C15: ='Authorized Rev Req'!B14 -> D.24-07-009, AL 6421-G,AL 6340-G-A | D15: 342.77791 | E15: ='Authorized Rev Req'!P14 -> ECPT | F15: ='Authorized Rev Req'!O14 -> 342.77791 | G15: 0 | H15: =0 -> 0 | I15: =0 -> 0 | J15: =0 -> 0 | K15: Existing | N15: GHG End User | O15: 724387.798 | P15: 0 | Q15: 0 | R15: 0 | S15: 0
A16: ='Authorized Rev Req'!A15 -> Unaccounted For (UAF) Gas | C16: ='Authorized Rev Req'!B15 -> D.24-07-009, AL 6421-G,AL 6340-G-A | D16: 30832.58319 | E16: ='Authorized Rev Req'!P15 -> 47% Res (LUAF, Other) | F16: ='Authorized Rev Req'!O15 -> 30832.58319 | G16: 0 | H16: =0 -> 0 | I16: =0 -> 0 | J16: =0 -> 0 | K16: Existing | N16: Public Purpose Programs | O16: 459450.2482 | P16: 540058.731 | Q16: 540058.731 | R16: 540058.731 | S16: 540058.731
A17: ='Authorized Rev Req'!A16 -> Well Incidents & Surface Leaks | C17: ='Authorized Rev Req'!B16 -> D.24-07-009, AL 6421-G,AL 6340-G-A | D17: 43.35194566 | E17: ='Authorized Rev Req'!P16 -> ECPT | F17: ='Authorized Rev Req'!O16 -> 43.35194566 | G17: 0 | H17: =0 -> 0 | I17: =0 -> 0 | J17: =0 -> 0 | K17: Existing | N17: Backbone Transmission | O17: 509219.5642 | P17: 0 | Q17: 0 | R17: 0 | S17: 0
A18: ='Authorized Rev Req'!A17 -> SCG PSEP - 2017 Forecast Application RevReq Capital Cost - Local Transmission | C18: ='Authorized Rev Req'!B17 -> D.24-07-009, AL 6421-G,AL 6340-G-A | D18: 343.4341302 | E18: ='Authorized Rev Req'!P17 -> Local Transmission | F18: ='Authorized Rev Req'!O17 -> 343.4341302 | G18: 0 | H18: =0 -> 0 | I18: =0 -> 0 | J18: =0 -> 0 | K18: Existing | N18: 47% Res (LUAF, Other) | O18: 27609.16147 | P18: 0 | Q18: 0 | R18: 0 | S18: 0
A19: ='Authorized Rev Req'!A18 -> SCG PSEP - 2017 Forecast Application RevReq Capital Cost - Distribution | C19: ='Authorized Rev Req'!B18 -> D.24-07-009, AL 6421-G,AL 6340-G-A | D19: 23492.26643 | E19: ='Authorized Rev Req'!P18 -> Distribution | F19: ='Authorized Rev Req'!O18 -> 23492.26643 | G19: 0 | H19: =0 -> 0 | I19: =0 -> 0 | J19: =0 -> 0 | K19: Existing | N19: ECPT | O19: 131626.0671 | P19: 17501.42734 | Q19: 0 | R19: 0 | S19: 0
A20: ='Authorized Rev Req'!A19 -> AMI Balancing Account (AMIBA) | C20: ='Authorized Rev Req'!B19 -> D.24-07-009, AL 6421-G,AL 6340-G-A | D20: 0 | E20: ='Authorized Rev Req'!P19 -> EPAM | F20: ='Authorized Rev Req'!O19 -> 0 | G20: 0 | H20: =0 -> 0 | I20: =0 -> 0 | J20: =0 -> 0 | K20: Existing | N20: EPAM | O20: 539235.9251 | P20: 113366.9211 | Q20: 46568.63343 | R20: 50528.70619 | S20: 54417.13631
A21: ='Authorized Rev Req'!A20 -> Residential Uncollectible Balancing Account (RUBA) | C21: ='Authorized Rev Req'!B20 -> D.24-07-009, AL 6421-G,AL 6340-G-A | D21: 68056.53932 | E21: ='Authorized Rev Req'!P20 -> ECPT | F21: ='Authorized Rev Req'!O20 -> 68056.53932 | G21: 0 | H21: =0 -> 0 | I21: =0 -> 0 | J21: =0 -> 0 | K21: Existing | N21: CFCA | O21: 116879.0578 | P21: 0 | Q21: 0 | R21: 0 | S21: 0
A22: ='Authorized Rev Req'!A21 -> Affiliate Transfer Fee Account (ATFA) | C22: ='Authorized Rev Req'!B21 -> D.24-07-009, AL 6421-G,AL 6340-G-A | D22: -159.1502742 | E22: ='Authorized Rev Req'!P21 -> EPAM | F22: ='Authorized Rev Req'!O21 -> -159.1502742 | G22: 0 | H22: =0 -> 0 | I22: =0 -> 0 | J22: =0 -> 0 | K22: Existing | N22: Non-Residential | O22: 34330.14492 | P22: 0 | Q22: 0 | R22: 0 | S22: 0
A23: ='Authorized Rev Req'!A22 -> Core Fixed Cost Account - Non NGV (CFCA) | C23: ='Authorized Rev Req'!B22 -> D.24-07-009, AL 6421-G,AL 6340-G-A | D23: 116879.0578 | E23: ='Authorized Rev Req'!P22 -> CFCA | F23: ='Authorized Rev Req'!O22 -> 116879.0578 | G23: 0 | H23: =0 -> 0 | I23: =0 -> 0 | J23: =0 -> 0 | K23: Existing | N23: Total | O23: =SUM(O9:O22) -> 6914149.915 | P23: =SUM(P9:P22) -> 5051795.628 | Q23: 5066940.538 | R23: 5070900.611 | S23: 5074789.041
A24: ='Authorized Rev Req'!A23 -> Core Fixed Cost Account - NGV (CFCA) | C24: ='Authorized Rev Req'!B23 -> D.24-07-009, AL 6421-G,AL 6340-G-A | D24: -10717.2894 | E24: ='Authorized Rev Req'!P23 -> Non-Residential | F24: ='Authorized Rev Req'!O23 -> -10717.2894 | G24: 0 | H24: =0 -> 0 | I24: =0 -> 0 | J24: =0 -> 0 | K24: Existing | N24: CPUC Fee | O24: =RegulatoryFee -> 0.0025
A25: ='Authorized Rev Req'!A24 -> Core Fixed Cost Account - C&I Shortfall (CFCA) | C25: ='Authorized Rev Req'!B24 -> D.24-07-009, AL 6421-G,AL 6340-G-A | D25: -352.6849195 | E25: ='Authorized Rev Req'!P24 -> Non-Residential | F25: ='Authorized Rev Req'!O24 -> -352.6849195 | G25: 0 | H25: =0 -> 0 | I25: =0 -> 0 | J25: =0 -> 0 | K25: Existing | L25: FFU Rate | N25: Check | O25: =O23-F117 -> 0 | P25: =P23-G117 -> 0 | Q25: =Q23-H117 -> 0 | R25: =R23-I117 -> 0 | S25: =S23-J117 -> 0
A26: ='Authorized Rev Req'!A25 -> Economic Practicality Shortfall Memorandum Account (EPSMA) | C26: ='Authorized Rev Req'!B25 -> D.24-07-009, AL 6421-G,AL 6340-G-A | D26: 331.4809398 | E26: ='Authorized Rev Req'!P25 -> Non-Residential | F26: ='Authorized Rev Req'!O25 -> 331.4809398 | G26: 0 | H26: =0 -> 0 | I26: =0 -> 0 | J26: =0 -> 0 | K26: Existing | L26: 1.016221981
A27: ='Authorized Rev Req'!A26 -> Enhanced Oil Recovery Account (EORA) | C27: ='Authorized Rev Req'!B26 -> D.24-07-009, AL 6421-G,AL 6340-G-A | D27: 1231.333538 | E27: ='Authorized Rev Req'!P26 -> EPAM | F27: ='Authorized Rev Req'!O26 -> 1231.333538 | G27: 0 | H27: =0 -> 0 | I27: =0 -> 0 | J27: =0 -> 0 | K27: Existing
A28: ='Authorized Rev Req'!A27 -> Hazardous Substance Cost-Recovery Account (HSCRA) | C28: ='Authorized Rev Req'!B27 -> D.24-07-009, AL 6421-G,AL 6340-G-A | D28: 7080.758101 | E28: ='Authorized Rev Req'!P27 -> ECPT | F28: ='Authorized Rev Req'!O27 -> 7080.758101 | G28: 0 | H28: =0 -> 0 | I28: =0 -> 0 | J28: =0 -> 0 | K28: Existing
A29: ='Authorized Rev Req'!A28 -> Intervenor Award Memorandum Account (IAMA) | C29: ='Authorized Rev Req'!B28 -> D.24-07-009, AL 6421-G,AL 6340-G-A | D29: 1578.821555 | E29: ='Authorized Rev Req'!P28 -> ECPT | F29: ='Authorized Rev Req'!O28 -> 1578.821555 | G29: 0 | H29: =0 -> 0 | I29: =0 -> 0 | J29: =0 -> 0 | K29: Existing
A30: ='Authorized Rev Req'!A29 -> Master Meter Balancing Account (MMBA) | C30: ='Authorized Rev Req'!B29 -> D.24-07-009, AL 6421-G,AL 6340-G-A | D30: 56029.54399 | E30: ='Authorized Rev Req'!P29 -> EPAM | F30: ='Authorized Rev Req'!O29 -> 56029.54399 | G30: 41038.83714 | H30: 46568.63343 | I30: 50528.70619 | J30: 54417.13631 | K30: Existing
A31: ='Authorized Rev Req'!A30 -> Noncore Fixed Cost Account (NFCA) Margin | C31: ='Authorized Rev Req'!B30 -> D.24-07-009, AL 6421-G,AL 6340-G-A | D31: 19264.23989 | E31: ='Authorized Rev Req'!P30 -> Non-Residential | F31: ='Authorized Rev Req'!O30 -> 19264.23989 | G31: 0 | H31: =0 -> 0 | I31: =0 -> 0 | J31: =0 -> 0 | K31: Existing
A32: ='Authorized Rev Req'!A31 -> Noncore Fixed Cost Account (NFCA) Nonmargin | C32: ='Authorized Rev Req'!B31 -> D.24-07-009, AL 6421-G,AL 6340-G-A | D32: 18722.78709 | E32: ='Authorized Rev Req'!P31 -> Non-Residential | F32: ='Authorized Rev Req'!O31 -> 18722.78709 | G32: 0 | H32: =0 -> 0 | I32: =0 -> 0 | J32: =0 -> 0 | K32: Existing
A33: ='Authorized Rev Req'!A32 -> Integrated Transmission Balancing Account (ITBA) Margin | C33: ='Authorized Rev Req'!B32 -> D.24-07-009, AL 6421-G,AL 6340-G-A | D33: 13611.38962 | E33: ='Authorized Rev Req'!P32 -> ECPT | F33: ='Authorized Rev Req'!O32 -> 13611.38962 | G33: 0 | H33: =0 -> 0 | I33: =0 -> 0 | J33: =0 -> 0 | K33: Existing
A34: ='Authorized Rev Req'!A33 -> Compressor Station Fuel and Power Balancing Account (CFPBA) | C34: ='Authorized Rev Req'!B33 -> D.24-07-009, AL 6421-G,AL 6340-G-A | D34: 14055.49615 | E34: ='Authorized Rev Req'!P33 -> ECPT | F34: ='Authorized Rev Req'!O33 -> 14055.49615 | G34: 0 | H34: =0 -> 0 | I34: =0 -> 0 | J34: =0 -> 0 | K34: Existing
A35: ='Authorized Rev Req'!A34 -> Compression Services Balancing Account (CSBA) | C35: ='Authorized Rev Req'!B34 -> D.24-07-009, AL 6421-G,AL 6340-G-A | D35: 0 | E35: ='Authorized Rev Req'!P34 -> Non-Residential | F35: ='Authorized Rev Req'!O34 -> 0 | G35: 0 | H35: =0 -> 0 | I35: =0 -> 0 | J35: =0 -> 0 | K35: Existing
A36: ='Authorized Rev Req'!A35 -> Company-Use Fuel for Load Balancing Account (CUFLBA) | C36: ='Authorized Rev Req'!B35 -> D.24-07-009, AL 6421-G,AL 6340-G-A | D36: 2552.735232 | E36: ='Authorized Rev Req'!P35 -> ECPT | F36: ='Authorized Rev Req'!O35 -> 2552.735232 | G36: 0 | H36: =0 -> 0 | I36: =0 -> 0 | J36: =0 -> 0 | K36: Existing
A37: ='Authorized Rev Req'!A36 -> Noncore Storage Balancing Account (NSBA) | C37: ='Authorized Rev Req'!B36 -> D.24-07-009, AL 6421-G,AL 6340-G-A | D37: -28170.62481 | E37: ='Authorized Rev Req'!P36 -> ECPT | F37: ='Authorized Rev Req'!O36 -> -28170.62481 | G37: 0 | H37: =0 -> 0 | I37: =0 -> 0 | J37: =0 -> 0 | K37: Existing
A38: ='Authorized Rev Req'!A37 -> Pension Balancing Account (PBA) | C38: ='Authorized Rev Req'!B37 -> D.24-07-009, AL 6421-G,AL 6340-G-A | D38: 17893.67727 | E38: ='Authorized Rev Req'!P37 -> EPAM | F38: ='Authorized Rev Req'!O37 -> 17893.67727 | G38: 0 | H38: =0 -> 0 | I38: =0 -> 0 | J38: =0 -> 0 | K38: Existing
A39: ='Authorized Rev Req'!A38 -> PBOP Balancing Account (PBOPBA) | C39: ='Authorized Rev Req'!B38 -> D.24-07-009, AL 6421-G,AL 6340-G-A | D39: -3240.981219 | E39: ='Authorized Rev Req'!P38 -> EPAM | F39: ='Authorized Rev Req'!O38 -> -3240.981219 | G39: 0 | H39: =0 -> 0 | I39: =0 -> 0 | J39: =0 -> 0 | K39: Existing
A40: ='Authorized Rev Req'!A39 -> Safety Enhancement Capital Cost Balancing Account (SECCBA) - Local Transmission | C40: ='Authorized Rev Req'!B39 -> D.24-07-009, AL 6421-G,AL 6340-G-A | D40: -7934.320485 | E40: ='Authorized Rev Req'!P39 -> Local Transmission | F40: ='Authorized Rev Req'!O39 -> -7934.320485 | G40: 0 | H40: =0 -> 0 | I40: =0 -> 0 | J40: =0 -> 0 | K40: Existing
A41: ='Authorized Rev Req'!A40 -> Safety Enhancement Capital Cost Balancing Account (SECCBA) - Distribution | C41: ='Authorized Rev Req'!B40 -> D.24-07-009, AL 6421-G,AL 6340-G-A | D41: -35521.23128 | E41: ='Authorized Rev Req'!P40 -> Distribution | F41: ='Authorized Rev Req'!O40 -> -35521.23128 | G41: 0 | H41: =0 -> 0 | I41: =0 -> 0 | J41: =0 -> 0 | K41: Existing
A42: ='Authorized Rev Req'!A41 -> Safety Enhancement Expense Balancing Account (SEEBA) - Local Transmission | C42: ='Authorized Rev Req'!B41 -> D.24-07-009, AL 6421-G,AL 6340-G-A | D42: 210.7043451 | E42: ='Authorized Rev Req'!P41 -> Local Transmission | F42: ='Authorized Rev Req'!O41 -> 210.7043451 | G42: 0 | H42: =0 -> 0 | I42: =0 -> 0 | J42: =0 -> 0 | K42: Existing
A43: ='Authorized Rev Req'!A42 -> Safety Enhancement Expense Balancing Account (SEEBA) - Distribution | C43: ='Authorized Rev Req'!B42 -> D.24-07-009, AL 6421-G,AL 6340-G-A | D43: 586.1657352 | E43: ='Authorized Rev Req'!P42 -> Distribution | F43: ='Authorized Rev Req'!O42 -> 586.1657352 | G43: 0 | H43: =0 -> 0 | I43: =0 -> 0 | J43: =0 -> 0 | K43: Existing
A44: ='Authorized Rev Req'!A43 -> Research Royalty Memorandum Account (RRMA) | C44: ='Authorized Rev Req'!B43 -> D.24-07-009, AL 6421-G,AL 6340-G-A | D44: -187.6590959 | E44: ='Authorized Rev Req'!P43 -> EPAM | F44: ='Authorized Rev Req'!O43 -> -187.6590959 | G44: 0 | H44: =0 -> 0 | I44: =0 -> 0 | J44: =0 -> 0 | K44: Existing
A45: ='Authorized Rev Req'!A44 -> Self-Generation Program Memorandum Account (SGPMA) | C45: ='Authorized Rev Req'!B44 -> D.24-07-009, AL 6421-G,AL 6340-G-A | D45: 0 | E45: ='Authorized Rev Req'!P44 -> SGIP | F45: ='Authorized Rev Req'!O44 -> 0 | G45: 0 | H45: =0 -> 0 | I45: =0 -> 0 | J45: =0 -> 0 | K45: Existing
A46: ='Authorized Rev Req'!A45 -> System Operator Gas Account (SOGA) | C46: ='Authorized Rev Req'!B45 -> D.24-07-009, AL 6421-G,AL 6340-G-A | D46: 1062.357878 | E46: ='Authorized Rev Req'!P45 -> ECPT | F46: ='Authorized Rev Req'!O45 -> 1062.357878 | G46: 0 | H46: =0 -> 0 | I46: =0 -> 0 | J46: =0 -> 0 | K46: Existing
A47: ='Authorized Rev Req'!A46 -> Rewards & Penalties Balancing Account (RPBA) | C47: ='Authorized Rev Req'!B46 -> D.24-07-009, AL 6421-G,AL 6340-G-A | D47: -4451.889016 | E47: ='Authorized Rev Req'!P46 -> EPAM | F47: ='Authorized Rev Req'!O46 -> -4451.889016 | G47: 0 | H47: =0 -> 0 | I47: =0 -> 0 | J47: =0 -> 0 | K47: Existing
A48: ='Authorized Rev Req'!A47 -> Liability Insurance Premium Balancing Account (LIPBA) | C48: ='Authorized Rev Req'!B47 -> D.24-07-009, AL 6421-G,AL 6340-G-A | D48: -15158.15619 | E48: ='Authorized Rev Req'!P47 -> EPAM | F48: ='Authorized Rev Req'!O47 -> -15158.15619 | G48: 0 | H48: =0 -> 0 | I48: =0 -> 0 | J48: =0 -> 0 | K48: Existing
A49: ='Authorized Rev Req'!A48 -> NonCore Backbone Transmission | C49: ='Authorized Rev Req'!B48 -> D.24-07-009, AL 6421-G,AL 6340-G-A | D49: 509219.5642 | E49: ='Authorized Rev Req'!P48 -> Backbone Transmission | F49: ='Authorized Rev Req'!O48 -> 509219.5642 | G49: =0 -> 0 | H49: =0 -> 0 | I49: =0 -> 0 | J49: =0 -> 0 | K49: Existing
A50: ='Authorized Rev Req'!A49 -> Storage Integrity Management Program Balancing Account (SIMPBA) Balance | C50: ='Authorized Rev Req'!B49 -> D.22-07-016, D.20-02-045, AL6421-G | D50: 0 | E50: ='Authorized Rev Req'!P49 -> EPAM | F50: ='Authorized Rev Req'!O49 -> 0 | G50: 0 | H50: =0 -> 0 | I50: =0 -> 0 | J50: =0 -> 0 | K50: Existing
A51: ='Authorized Rev Req'!A50 -> On-Bill Financing Balancing Account (OBFBA) | C51: ='Authorized Rev Req'!B50 -> D.19-03-001, AL 5853-A, AL 6421-G | D51: 0 | E51: ='Authorized Rev Req'!P50 -> EPAM | F51: ='Authorized Rev Req'!O50 -> 0 | G51: 0 | H51: =0 -> 0 | I51: =0 -> 0 | J51: =0 -> 0 | K51: Existing
A52: ='Authorized Rev Req'!A51 -> System Reliability Memorandum Account (SRMA) | C52: ='Authorized Rev Req'!B51 -> D.24-07-009, AL 6421-G,AL 6340-G-A | D52: 15319.20309 | E52: ='Authorized Rev Req'!P51 -> ECPT | F52: ='Authorized Rev Req'!O51 -> 15319.20309 | G52: 0 | H52: =0 -> 0 | I52: =0 -> 0 | J52: =0 -> 0 | K52: Existing
A53: ='Authorized Rev Req'!A52 -> Distributed Energy Resources Svcs Bal Account (DERSBA) | C53: ='Authorized Rev Req'!B52 -> D.24-07-009, AL 6421-G,AL 6340-G-A | D53: 0 | E53: ='Authorized Rev Req'!P52 -> EPAM | F53: ='Authorized Rev Req'!O52 -> 0 | G53: 0 | H53: =0 -> 0 | I53: =0 -> 0 | J53: =0 -> 0 | K53: Existing
A54: ='Authorized Rev Req'!A53 -> Percentage of Income Payment Plan Balancing Account (PIPPBA) | C54: ='Authorized Rev Req'!B53 -> D.24-07-009, AL 6421-G,AL 6340-G-A | D54: =F54 -> 895.4652414 | E54: ='Authorized Rev Req'!P53 -> ECPT | F54: ='Authorized Rev Req'!O53 -> 895.4652414 | G54: =0 -> 0 | H54: =0 -> 0 | I54: =0 -> 0 | J54: =0 -> 0 | K54: Existing
A55: ='Authorized Rev Req'!A54 -> Transmission Integrity Management Program Memorandum Account (TIMPBA) Local Transmission | C55: ='Authorized Rev Req'!B54 -> AL 6325-G, D.24-07-009,AL 6421-G,AL 6340-G-A | D55: 0 | E55: ='Authorized Rev Req'!P54 -> Local Transmission | F55: ='Authorized Rev Req'!O54 -> 0 | G55: =0 -> 0 | H55: =0 -> 0 | I55: =0 -> 0 | J55: =0 -> 0 | K55: Existing
A56: ='Authorized Rev Req'!A55 -> San Joaquin Valley Disadvantaged Communities Bal Acct (SJVDACBA) - TTM subaccount | C56: ='Authorized Rev Req'!B55 -> D.18-12-015, AL 6421-G | D56: =F56 -> 303.06725 | E56: ECPT | F56: ='Authorized Rev Req'!O55 -> 303.06725 | G56: =0 -> 0 | H56: =0 -> 0 | I56: =0 -> 0 | J56: =0 -> 0 | K56: Existing
A57: ='Authorized Rev Req'!A56 -> AB802 Memorandum Account (AB802MA) | C57: ='Authorized Rev Req'!B56 -> D.24-12-074, AL6430-G-A | D57: =F57 -> 1235.818849 | E57: EPAM | F57: ='Authorized Rev Req'!O56 -> 1235.818849 | G57: 0 | H57: 0 | I57: 0 | J57: 0 | K57: Existing
A58: ='Authorized Rev Req'!A57 -> AMIBA Escalated Jurisdiction Cost Subaccount | C58: ='Authorized Rev Req'!B57 -> D.24-12-074, AL6430-G-A | D58: 952.4052728 | E58: EPAM | F58: ='Authorized Rev Req'!O57 -> 952.4052728 | G58: 0 | H58: 0 | I58: 0 | J58: 0 | K58: Existing
A59: ='Authorized Rev Req'!A58 -> AMIBA Deployment and Post-Deployment subaccounts | C59: ='Authorized Rev Req'!B58 -> D.24-12-074, AL6430-G-A | D59: -589.4910628 | E59: EPAM | F59: ='Authorized Rev Req'!O58 -> -589.4910628 | G59: 0 | H59: 0 | I59: 0 | J59: 0 | K59: Existing
A60: ='Authorized Rev Req'!A59 -> Core Gas Balancing Memorandum Account (CGBMA) | C60: ='Authorized Rev Req'!B59 -> D.24-12-074, AL6430-G-A | D60: 4474.483233 | E60: EPAM | F60: ='Authorized Rev Req'!O59 -> 4474.483233 | G60: 0 | H60: 0 | I60: 0 | J60: 0 | K60: Existing
A61: ='Authorized Rev Req'!A60 -> Diary Biomethane Solicitation Develop. Memorandum Account (DBSDMA) | C61: ='Authorized Rev Req'!B60 -> D.24-12-074, AL6430-G-A | D61: 1037.325066 | E61: EPAM | F61: ='Authorized Rev Req'!O60 -> 1037.325066 | G61: 0 | H61: 0 | I61: 0 | J61: 0 | K61: Existing
A62: ='Authorized Rev Req'!A61 -> Injection Enhancement Cost Memorandum Account (IECMA) | C62: ='Authorized Rev Req'!B61 -> D.24-12-074, AL6430-G-A | D62: -209.4205028 | E62: EPAM | F62: ='Authorized Rev Req'!O61 -> -209.4205028 | G62: 0 | H62: 0 | I62: 0 | J62: 0 | K62: Existing
A63: ='Authorized Rev Req'!A62 -> Residential Disconnect Memorandum Account (RDMA) | C63: ='Authorized Rev Req'!B62 -> D.24-12-074, AL6430-G-A | D63: 9.701236543 | E63: EPAM | F63: ='Authorized Rev Req'!O62 -> 9.701236543 | G63: 0 | H63: 0 | I63: 0 | J63: 0 | K63: Existing
A64: ='Authorized Rev Req'!A63 -> Wildfire Customer Protection Memorandum Account (WCPMA) | C64: ='Authorized Rev Req'!B63 -> D.24-12-074, AL6430-G-A | D64: 127.6535183 | E64: EPAM | F64: ='Authorized Rev Req'!O63 -> 127.6535183 | G64: 0 | H64: 0 | I64: 0 | J64: 0 | K64: Existing
A65: ='Authorized Rev Req'!A64 -> Avoided Cost Calculator Update Memorandum Account (ACCUMA) | C65: ='Authorized Rev Req'!B64 -> D.24-12-074, AL6430-G-A | D65: 65.29815233 | E65: EPAM | F65: ='Authorized Rev Req'!O64 -> 65.29815233 | G65: 0 | H65: 0 | I65: 0 | J65: 0 | K65: Existing
A66: ='Authorized Rev Req'!A65 -> California Consumer Privacy Act Memorandum Account (CCPAMA) | C66: ='Authorized Rev Req'!B65 -> D.24-12-074, AL6430-G-A | D66: 3668.345737 | E66: EPAM | F66: ='Authorized Rev Req'!O65 -> 3668.345737 | G66: 0 | H66: 0 | I66: 0 | J66: 0 | K66: Existing
A67: ='Authorized Rev Req'!A66 -> Emergency Customer Protection Memorandum Account (ECPMA) | C67: ='Authorized Rev Req'!B66 -> D.24-12-074, AL6430-G-A | D67: 359.9334552 | E67: EPAM | F67: ='Authorized Rev Req'!O66 -> 359.9334552 | G67: 0 | H67: 0 | I67: 0 | J67: 0 | K67: Existing
A68: ='Authorized Rev Req'!A67 -> Morongo Right of Way Memorandum Account (MROWMA) | C68: ='Authorized Rev Req'!B67 -> D.24-12-074, AL6430-G-A | D68: 56007.72103 | E68: EPAM | F68: ='Authorized Rev Req'!O67 -> 56007.72103 | G68: 0 | H68: 0 | I68: 0 | J68: 0 | K68: Existing
A69: ='Authorized Rev Req'!A68 -> Residential Disconnect Protections Memorandum Account (RDPMA) | C69: ='Authorized Rev Req'!B68 -> D.24-12-074, AL6430-G-A | D69: 2610.392714 | E69: EPAM | F69: ='Authorized Rev Req'!O68 -> 2610.392714 | G69: 0 | H69: 0 | I69: 0 | J69: 0 | K69: Existing
A70: ='Authorized Rev Req'!A69 -> Aliso Canyon Memorandum Account (ACMA) | C70: ='Authorized Rev Req'!B69 -> D.24-12-074, AL6430-G-A | D70: =F70 -> 12155.8965 | E70: EPAM | F70: ='Authorized Rev Req'!O69 -> 12155.8965 | G70: 0 | H70: 0 | I70: 0 | J70: 0 | K70: Existing
A71: ='Authorized Rev Req'!A70 -> Cost of Capital Adjustment (Subtracted from Base Margin) | C71: ='Authorized Rev Req'!B70 -> D.24-12-074, AL6430-G-A | D71: =F71 -> -34275 | E71: EPAM | F71: ='Authorized Rev Req'!O70 -> -34275 | G71: 0 | H71: 0 | I71: 0 | J71: 0 | K71: Existing
A72: ='Authorized Rev Req'!A71 -> General Rate Case Revenue Requirement Memorandum Account (GRCMA) | C72: ='Authorized Rev Req'!B71 -> D.24-12-074, AL6430-G-A | D72: =F72 -> 250251.014 | E72: EPAM | F72: ='Authorized Rev Req'!O71 -> 250251.014 | G72: 0 | H72: 0 | I72: 0 | J72: 0 | K72: Existing
A73: ='Authorized Rev Req'!A72 -> GRCMA Sub allocation for AB32 Admin Fees | C73: ='Authorized Rev Req'!B72 -> D.24-12-074, AL6430-G-A | D73: 4736 | E73: ECPT | F73: ='Authorized Rev Req'!O72 -> 4736 | G73: 0 | H73: 0 | I73: 0 | J73: 0 | K73: Existing
A74: ='Authorized Rev Req'!A73 -> GRCMA PSEP Local Transmission | C74: ='Authorized Rev Req'!B73 -> D.24-12-074, AL6430-G-A | D74: -5984.28996 | E74: Local Transmission | F74: ='Authorized Rev Req'!O73 -> -5984.28996 | G74: 0 | H74: 0 | I74: 0 | J74: 0 | K74: Existing
A75: ='Authorized Rev Req'!A74 -> GRCMA PSEP Distribution | C75: ='Authorized Rev Req'!B74 -> D.24-12-074, AL6430-G-A | D75: 28198.07333 | E75: Distribution | F75: ='Authorized Rev Req'!O74 -> 28198.07333 | G75: 0 | H75: 0 | I75: 0 | J75: 0 | K75: Existing
A76: ='Authorized Rev Req'!A75 -> Distribution Integrity Management Program Memorandum Account (DIMPBA) | C76: ='Authorized Rev Req'!B75 -> Res. G-3610, AL 6526-G | D76: 109584.2006 | E76: ='Authorized Rev Req'!P75 -> EPAM | F76: ='Authorized Rev Req'!O75 -> 109584.2006 | G76: 0 | H76: 0 | I76: 0 | J76: 0 | K76: Existing
A77: ='Authorized Rev Req'!A76 -> Castastrophic Event Memorandum Account (CEMA) | C77: ='Authorized Rev Req'!B76 -> D.25-07-009 , AL 6526-G | D77: 16987.42734 | E77: ='Authorized Rev Req'!P76 -> ECPT | F77: ='Authorized Rev Req'!O76 -> 16987.42734 | G77: =514+F77 -> 17501.42734 | H77: 0 | I77: 0 | J77: 0 | K77: Existing
A78: ='Authorized Rev Req'!A77 -> Covid-19 Pandemic Protections Memorandum Account(CPPMA) | C78: ='Authorized Rev Req'!B77 -> D.25-07-009 , AL 6526-G | D78: 6395.500315 | E78: ='Authorized Rev Req'!P77 -> ECPT | F78: ='Authorized Rev Req'!O77 -> 6395.500315 | G78: 0 | H78: 0 | I78: 0 | J78: 0 | K78: Existing
A80: ='Authorized Rev Req'!A81 -> Public Policy Proceedings
A81: ='Authorized Rev Req'!A82 -> AB32 Fees (subtracted from base margin and allocated here) | C81: ='Authorized Rev Req'!B82 -> D.24-12-074 | D81: =F81 -> 12693.43568 | E81: ='Authorized Rev Req'!P82 -> ECPT adjusted | F81: ='Authorized Rev Req'!O82 -> 12693.43568 | G81: =0 -> 0 | H81: =0 -> 0 | I81: =H81 -> 0 | J81: =I81 -> 0 | K81: Existing
A82: ='Authorized Rev Req'!A83 -> Green House Gas Balancing Account (GHGBA) - Company Gas Compressor Revenue Requirement | C82: ='Authorized Rev Req'!B83 -> AL 6421-G, D.24-07-009 | D82: 2342.863399 | E82: ='Authorized Rev Req'!P83 -> ECPT | F82: ='Authorized Rev Req'!O83 -> 2342.863399 | G82: =0 -> 0 | H82: =0 -> 0 | I82: =H82 -> 0 | J82: =I82 -> 0 | K82: Existing
A83: ='Authorized Rev Req'!A84 -> Green House Gas Balancing Account (GHGBA) - End User Revenue Requirement | C83: ='Authorized Rev Req'!B84 -> AL 6421-G, D.24-07-009 | D83: 824179.789 | E83: ='Authorized Rev Req'!P84 -> GHG End User | F83: ='Authorized Rev Req'!O84 -> 824179.789 | G83: =0 -> 0 | H83: =0 -> 0 | I83: 0 | J83: 0 | K83: Existing
A84: ='Authorized Rev Req'!A85 -> Green House Gas Balancing Account (GHGBA) - LUAF Revenue Requirement | C84: ='Authorized Rev Req'!B85 -> AL 6421-G, D.24-07-009 | D84: 14051.9063 | E84: ='Authorized Rev Req'!P85 -> 47% Res (LUAF, Other) | F84: ='Authorized Rev Req'!O85 -> 14051.9063 | G84: =0 -> 0 | H84: =0 -> 0 | I84: 0 | J84: 0 | K84: Existing
A85: ='Authorized Rev Req'!A86 -> Green House Gas Balancing Account (GHGBA) - Company Gas Compressor | C85: ='Authorized Rev Req'!B86 -> AL 6421-G, D.24-07-009 | D85: -291.3858778 | E85: ='Authorized Rev Req'!P86 -> ECPT | F85: ='Authorized Rev Req'!O86 -> -291.3858778 | G85: =0 -> 0 | H85: =0 -> 0 | I85: 0 | J85: 0 | K85: Existing
A86: ='Authorized Rev Req'!A87 -> Green House Gas Balancing Account (GHGBA) - End User | C86: ='Authorized Rev Req'!B87 -> AL 6421-G, D.24-07-009 | D86: -99791.99104 | E86: ='Authorized Rev Req'!P87 -> GHG End User | F86: ='Authorized Rev Req'!O87 -> -99791.99104 | G86: =0 -> 0 | H86: =0 -> 0 | I86: 0 | J86: 0 | K86: Existing
A87: ='Authorized Rev Req'!A88 -> Green House Gas Balancing Account (GHGBA) - LUAF | C87: ='Authorized Rev Req'!B88 -> AL 6421-G, D.24-07-009 | D87: -17275.32802 | E87: ='Authorized Rev Req'!P88 -> 47% Res (LUAF, Other) | F87: ='Authorized Rev Req'!O88 -> -17275.32802 | G87: =0 -> 0 | H87: =0 -> 0 | I87: 0 | J87: 0 | K87: Existing
A88: ='Authorized Rev Req'!A89 -> New Envirnomental Regulatory Balancing Account (NERBA) - Admin Fees Subaccount | C88: ='Authorized Rev Req'!B89 -> AL 6421-G, D.24-07-009 | D88: -656.1735167 | E88: ='Authorized Rev Req'!P89 -> ECPT adjusted | F88: ='Authorized Rev Req'!O89 -> -656.1735167 | G88: =0 -> 0 | H88: =0 -> 0 | I88: 0 | J88: 0 | K88: Existing
A89: ='Authorized Rev Req'!A90 -> New Environmental Regulatory Balancing Account (NERBA) - Leak Detection & Repair (LDAR) sub-account | C89: ='Authorized Rev Req'!B90 -> AL 6421-G, D.24-07-009 | D89: -981.6438092 | E89: ='Authorized Rev Req'!P90 -> EPAM | F89: ='Authorized Rev Req'!O90 -> -981.6438092 | G89: =0 -> 0 | H89: =0 -> 0 | I89: 0 | J89: 0 | K89: Existing
A90: ='Authorized Rev Req'!A91 -> New Envirnomental Regulatory Balancing Account (NERBA) -Natural Gas Leak Abatement Program | C90: ='Authorized Rev Req'!B91 -> AL 6421-G, D.24-07-009 | D90: 0 | E90: ='Authorized Rev Req'!P91 -> EPAM | F90: ='Authorized Rev Req'!O91 -> 0 | G90: =0 -> 0 | H90: =0 -> 0 | I90: 0 | J90: 0 | K90: Existing
A91: ='Authorized Rev Req'!A92 -> New Envirnomental Regulatory Balancing Account (NERBA) - Subpart W | C91: ='Authorized Rev Req'!B92 -> AL 6421-G, D.24-07-009 | D91: =F91 -> -889.6695427 | E91: EPAM | F91: ='Authorized Rev Req'!O92 -> -889.6695427 | K91: Existing
A92: ='Authorized Rev Req'!A93 -> New Environmental Regulatory Balancing Account (NERBA) - MS4 sub-account | C92: ='Authorized Rev Req'!B93 -> AL 6421-G, D.24-07-009 | D92: =F92 -> -842.7831119 | E92: EPAM | F92: ='Authorized Rev Req'!O93 -> -842.7831119 | K92: Existing
A93: ='Authorized Rev Req'!A94 -> NGV, EG,TLS Adjustment | C93: ='Authorized Rev Req'!B94 -> AL 6421-G, D.24-07-009 | D93: 7081.611316 | E93: ='Authorized Rev Req'!P94 -> Non-Residential | F93: ='Authorized Rev Req'!O94 -> 7081.611316 | G93: =0 -> 0 | H93: =0 -> 0 | I93: 0 | J93: 0 | K93: Existing
A94: ='Authorized Rev Req'!A95 -> Natural Gas Leak Abatement Program Revenue Requirement | C94: ='Authorized Rev Req'!B95 -> AL 5915G, AL 6071, AL 6168-G, AL 5950-G-B, AL 6538-G | D94: 76253.64988 | E94: ='Authorized Rev Req'!P95 -> EPAM | F94: ='Authorized Rev Req'!O95 -> 76253.64988 | G94: 72328.084 | H94: 0 | I94: 0 | J94: 0 | K94: Existing
A95: ='Authorized Rev Req'!A96 -> Biogas Conditioning/Upgrading Svcs Bal Acct (BCSBA) | C95: ='Authorized Rev Req'!B96 -> D. 13-12-040 | D95: 0 | E95: ='Authorized Rev Req'!P96 -> EPAM | F95: ='Authorized Rev Req'!O96 -> 0 | G95: =0 -> 0 | H95: =0 -> 0 | I95: =H95 -> 0 | J95: =I95 -> 0 | K95: Existing
A96: ='Authorized Rev Req'!A97 -> Diary Biomethane Project Balancing Account (DBPBA) | C96: ='Authorized Rev Req'!B97 -> D. 17-12-004 | D96: 0 | E96: ='Authorized Rev Req'!P97 -> EPAM | F96: ='Authorized Rev Req'!O97 -> 0 | G96: =0 -> 0 | H96: =0 -> 0 | I96: 0 | J96: 0 | K96: Existing
A97: ='Authorized Rev Req'!A98 -> Diary Biomethane Project Memorandum Account (DBPMA) | C97: ='Authorized Rev Req'!B98 -> D. 17-12-004 | D97: 6273.374869 | E97: ='Authorized Rev Req'!P98 -> EPAM | F97: ='Authorized Rev Req'!O98 -> 6273.374869 | G97: =0 -> 0 | H97: =0 -> 0 | I97: 0 | J97: 0 | K97: Existing
A98: ='Authorized Rev Req'!A99 -> California Solar Iniative Thermal Memorandum Account (CSITPMA) | C98: ='Authorized Rev Req'!B99 -> D. 10-01-022 | D98: 2681.015121 | E98: ='Authorized Rev Req'!P99 -> ECPT adjusted | F98: ='Authorized Rev Req'!O99 -> 2681.015121 | G98: =0 -> 0 | H98: =0 -> 0 | I98: 0 | J98: 0 | K98: Existing
A99: ='Authorized Rev Req'!A100 -> Biomethane Procurement and Pilot Costs Balancing Account (BPPCBA) - Program Administrative Costs Subaccount | C99: ='Authorized Rev Req'!B100 -> D. 22-02-025 | D99: 0 | E99: EPAM | F99: ='Authorized Rev Req'!O100 -> 0 | G99: =0 -> 0 | H99: =0 -> 0 | I99: =H99 -> 0 | J99: =I99 -> 0 | K99: Existing
A100: ='Authorized Rev Req'!A101 -> Biomethane Cost Incentive Pgm Balancing Acct (BCIPBA) | C100: ='Authorized Rev Req'!B101 -> D.16-12-043/D.19-12-009 | D100: =F100 -> 0 | E100: ECPT | F100: ='Authorized Rev Req'!O101 -> 0 | G100: 0 | H100: 0 | I100: 0 | J100: 0 | K100: Existing
A101: PPPS Programs
A102: ='Authorized Rev Req'!A108 -> California Alternate Rates for Energy (CARE) | C102: ='Authorized Rev Req'!B108 -> D.21-06-015, AL 6393, AL 6552 | D102: =F102 -> 172216.7959 | E102: ='Authorized Rev Req'!P108 -> Public Purpose Programs | F102: ='Authorized Rev Req'!O108 -> 172216.7959 | G102: 233746.857 | H102: =G102 -> 233746.857 | I102: =H102 -> 233746.857 | J102: 233746.857 | K102: Existing
A103: ='Authorized Rev Req'!A109 -> Energy Efficiency | C103: ='Authorized Rev Req'!B109 -> AL 6393, AL 6552 | D103: 166375.8554 | E103: ='Authorized Rev Req'!P109 -> Public Purpose Programs | F103: ='Authorized Rev Req'!O109 -> 166375.8554 | G103: 180152.527 | H103: =G103 -> 180152.527 | I103: 180152.527 | J103: 180152.527 | K103: Existing
A104: ='Authorized Rev Req'!A110 -> RD&D | C104: ='Authorized Rev Req'!B110 -> AL 6393, AL 6552 | D104: 12881.5384 | E104: ='Authorized Rev Req'!P110 -> Public Purpose Programs | F104: ='Authorized Rev Req'!O110 -> 12881.5384 | G104: 12358.324 | H104: 12358.324 | I104: 12358.324 | J104: 12358.324 | K104: Existing
A105: ='Authorized Rev Req'!A111 -> Bureau Of Equalization BOE | C105: ='Authorized Rev Req'!B111 -> AL 6393, AL 6552 | D105: 488.24258 | E105: ='Authorized Rev Req'!P111 -> Public Purpose Programs | F105: ='Authorized Rev Req'!O111 -> 488.24258 | G105: 493.168 | H105: 493.168 | I105: 493.168 | J105: 493.168 | K105: Existing
A106: ='Authorized Rev Req'!A112 -> Energy Savings Assistance | C106: ='Authorized Rev Req'!B112 -> D.21-06-015, AL 6393, AL 6552 | D106: 107549.884 | E106: ='Authorized Rev Req'!P112 -> Public Purpose Programs | F106: ='Authorized Rev Req'!O112 -> 107549.884 | G106: 111591.626 | H106: 111591.626 | I106: 111591.626 | J106: 111591.626 | K106: Existing
A107: ='Authorized Rev Req'!A113 -> SJVDGPMA/BA Account | C107: ='Authorized Rev Req'!B113 -> AL 6393, AL 6552 | D107: -62.068 | E107: ='Authorized Rev Req'!P113 -> Public Purpose Programs | F107: ='Authorized Rev Req'!O113 -> -62.068 | G107: 1716.229 | H107: =G107 -> 1716.229 | I107: =H107 -> 1716.229 | J107: =I107 -> 1716.229 | K107: Existing
A110: ='Authorized Rev Req'!A122 -> EOR | C110: ='Authorized Rev Req'!B122 -> D.24-07-009, AL 6421-G | D110: =F110 -> 0 | E110: ='Authorized Rev Req'!P122 -> EPAM | F110: ='Authorized Rev Req'!O123 -> 0 | G110: =0 -> 0 | H110: =0 -> 0 | I110: =H110 -> 0 | J110: =I110 -> 0 | K110: Existing
A113: Procurement | C113: ='Authorized Rev Req'!B125 -> D.98-07-068 | D113: =F113 -> 1049134.325 | E113: ='Authorized Rev Req'!P125 -> Core Procurement | F113: ='Authorized Rev Req'!O125 -> 1049134.325 | G113: =F113 -> 1049134.325 | H113: =G113 -> 1049134.325 | I113: =H113 -> 1049134.325 | J113: =I113 -> 1049134.325 | K113: Existing | L113: FFU Feb 1
L114: 1.016221981
A117: Total Approved, Implemented Since Jan 1 or To Be Implemented | D117: =SUM(F10:F116) -> 6914149.915 | F117: =SUM(F10:F116) -> 6914149.915 | G117: =SUM(G10:G116) -> 5051795.628 | H117: =SUM(H10:H116) -> 5066940.538 | I117: =SUM(I10:I116) -> 5070900.611 | J117: =SUM(J10:J116) -> 5074789.041
A119: CPUC Fee | E119: CPUC Fee | F119: =RegulatoryFee -> 0.0025
A122: Pending Application(s) Not Yet Approved
A123: Filing Description | B123: Proceeding | C123: Basis of Revenue Requirement Forecast: Application, Amended Application , Amended Testimony, Proposed Settlement Agreement, Proposed Decision | D123: Proposed Revenue Requirement with FF&U ($000) | E123: Proposed Revenue Recovery Mechanism | F123: Incremental Revenue Requirement with FF&U ($000) - Breakout by Year | K123: Existing or New Item (if existing, use delta from prior for rate impact)
A124: Safety Affordability Reliability Proceedings | F124: =TRANSPOSE(YearsForRateImpact) -> 2025 | G124: 2026 | H124: 2027 | I124: 2028 | J124: 2029 | L124: Include in Impact
A125: DIMP Interim Recovery | B125: A.25-08-008 | C125: Application | D125: =SUM(F125,G125,H125,I125,J125) -> 59144.447 | E125: EPAM | G125: 59144.447 | K125: Existing | L125: =IFERROR(VLOOKUP(A125,Summary!$B$7:$D$15,3,FALSE),"-") -> Y
A126: 2026 Cost of Capital | B126: A.25-03-011 | C126: Application | D126: =SUM(F126:J126) -> 117484.5496 | E126: EPAM | G126: 117484.5496 | K126: Existing | L126: =IFERROR(VLOOKUP(A126,Summary!$B$7:$D$15,3,FALSE),"-") -> Y
A127: TIMPBA Application | B127: A.25-04-020 | C127: Application | D127: =SUM(F127:J127) -> 173808.37 | E127: Backbone Transmission | G127: 173808.37 | K127: Existing | L127: =IFERROR(VLOOKUP(A127,Summary!$B$7:$D$15,3,FALSE),"-") -> Y | N127: Authorized + Pending
A128: 2024 GRC Track 3 (PSEP and WMPMA) | B128: A.25-05-015/016 | C128: Application | D128: 132245 | E128: EPAM | G128: 132245 | K128: Existing | L128: =IFERROR(VLOOKUP(A128,Summary!$B$7:$D$15,3,FALSE),"-") -> Y | O128: =TRANSPOSE(YearsForRateImpact) -> 2025 | P128: 2026 | Q128: 2027 | R128: 2028 | S128: 2029
A129: Application for Incremental Funding For CIS Replacement | B129: A.25-05-004 | C129: Application | D129: 25600 | E129: EPAM | G129: 12700 | H129: 12900 | K129: Existing | L129: Y | N129: =RevRecoveryMechanisms -> Core Procurement | O129: =SUM(O9,SUMIFS(F$125:F$152,$E$125:$E$152,$N129,$L$126:$L$153,"y")) -> 1049134.325 | P129: =SUM(P9,SUMIFS(G$125:G$152,$E$125:$E$152,$N129,$L$126:$L$153,"y")) -> 1049134.325 | Q129: =SUM(Q9,SUMIFS(H$125:H$152,$E$125:$E$152,$N129,$L$126:$L$153,"y")) -> 1049134.325 | R129: =SUM(R9,SUMIFS(I$125:I$152,$E$125:$E$152,$N129,$L$126:$L$153,"y")) -> 1049134.325 | S129: =SUM(S9,SUMIFS(J$125:J$152,$E$125:$E$152,$N129,$L$126:$L$153,"y")) -> 1049134.325
A130: Low Income Bridge Application | B130: A.25-06-012 | C130: Application | D130: =SUM(F130,G130,H130,I130,J130) -> 20690.27751 | E130: EPAM | H130: 20690.27751 | K130: NEW | L130: Y | N130: Allocated Base Margin | O130: =SUM(O10,SUMIFS(F$125:F$152,$E$125:$E$152,$N130,$L$126:$L$153,"y")) -> 3218272.671 | P130: =SUM(P10,SUMIFS(G$125:G$152,$E$125:$E$152,$N130,$L$126:$L$153,"y")) -> 3331734.223 | Q130: 3431178.849 | R130: 3431178.849 | S130: 3431178.849
A131: Line Extension Allowance Application | B131: A.25-07-001 | C131: Application | D131: 488.7430154 | E131: EPAM | I131: 34.96921632 | J131: 453.7737991 | K131: NEW | L131: Y | N131: Distribution | O131: 90177.33422 | P131: 0 | Q131: 0 | R131: 0 | S131: 0
A132: Angeles Link Phase 1 | B132: A-25-06-011 | C132: Application | D132: 24720 | E132: ECPT | H132: =24.72*1000 -> 24720 | K132: NEW | L132: Y | N132: ECPT adjusted | O132: 14718.27728 | P132: 0 | Q132: 0 | R132: 0 | S132: 0
A133: MASS Energy | B133: A.25-089-009 | C133: Application | D133: 9972.956 | E133: EPAM | H133: 9972.956 | K133: NEW | L133: =IFERROR(VLOOKUP(A133,Summary!$B$7:$D$15,3,FALSE),"-") -> Y | N133: Local Transmission | O133: -890.6592899 | P133: 0 | Q133: 0 | R133: 0 | S133: 0
A134: Angeles Link Phase 2 | B134: A.24-12-011 | C134: Application | D134: =SUM(F134:J134) -> 273335.4699 | E134: ECPT | G134: 89484.33836 | H134: 118326.434 | I134: 65524.69747 | K134: NEW | L134: =IFERROR(VLOOKUP(A134,Summary!$B$7:$D$16,3,FALSE),"-") -> Y | N134: SGIP | O134: 0 | P134: 0 | Q134: 0 | R134: 0 | S134: 0
A135: Public Policy Proceedings | D135: =SUM(F135:J135) -> 0 | G135: 0 | H135: 0 | I135: 0 | J135: 0 | L135: =IFERROR(VLOOKUP(A135,Summary!$B$7:$D$15,3,FALSE),"-") -> - | N135: GHG End User | O135: 724387.798 | P135: 0 | Q135: 0 | R135: 0 | S135: 0
A136: Cost Allocation Proceeding | B136: A.25-09-014 | C136: Application | L136: =IFERROR(VLOOKUP(A136,Summary!$B$7:$D$15,3,FALSE),"-") -> - | N136: Public Purpose Programs | O136: 459450.2482 | P136: 540058.731 | Q136: 540058.731 | R136: 540058.731 | S136: 540058.731
D137: =SUM(F137:J137) -> 0 | L137: =IFERROR(VLOOKUP(A137,Summary!$B$7:$D$15,3,FALSE),"-") -> - | N137: Backbone Transmission | O137: 509219.5642 | P137: 173808.37 | Q137: 0 | R137: 0 | S137: 0
L138: =IFERROR(VLOOKUP(A138,Summary!$B$7:$D$15,3,FALSE),"-") -> - | N138: 47% Res (LUAF, Other) | O138: 27609.16147 | P138: 0 | Q138: 0 | R138: 0 | S138: 0
L139: =IFERROR(VLOOKUP(A139,Summary!$B$7:$D$15,3,FALSE),"-") -> - | N139: ECPT | O139: 131626.0671 | P139: =SUM(P19,SUMIFS(G$125:G$152,$E$125:$E$152,$N139,$L$126:$L$153,"y")) -> 17501.42734 | Q139: 24720 | R139: 0 | S139: 0
N140: EPAM | O140: =SUM(O20,SUMIFS(F$125:F$152,$E$125:$E$152,$N140,$L$126:$L$153,"y")) -> 539235.9251 | P140: =SUM(P20,SUMIFS(G$125:G$153,$E$125:$E$153,$N140,$L$125:$L$153,"y")) -> 434940.9177 | Q140: 178583.4581 | R140: =SUM(R20,SUMIFS(I$125:I$152,$E$125:$E$152,$N140,$L$126:$L$153,"y")) -> 50563.67541 | S140: 54870.91011
N141: CFCA | O141: =SUM(O21,SUMIFS(F$125:F$152,$E$125:$E$152,$N141,$L$126:$L$153,"y")) -> 116879.0578 | P141: =SUM(P21,SUMIFS(G$125:G$152,$E$125:$E$152,$N141,$L$126:$L$153,"y")) -> 0 | Q141: =SUM(Q21,SUMIFS(H$125:H$152,$E$125:$E$152,$N141,$L$126:$L$153,"y")) -> 0 | R141: 0 | S141: 0
N142: Non-Residential | O142: =SUM(O22,SUMIFS(F$125:F$152,$E$125:$E$152,$N142,$L$126:$L$153,"y")) -> 34330.14492 | P142: =SUM(P22,SUMIFS(G$125:G$152,$E$125:$E$152,$N142,$L$126:$L$153,"y")) -> 0 | Q142: =SUM(Q22,SUMIFS(H$125:H$152,$E$125:$E$152,$N142,$L$126:$L$153,"y")) -> 0 | R142: 0 | S142: 0
N143: Total | O143: =SUM(O129:O142) -> 6914149.915 | P143: =SUM(P129:P142) -> 5547177.994 | Q143: =SUM(Q129:Q142) -> 5223675.363 | R143: =SUM(R129:R142) -> 5070935.58 | S143: =SUM(S129:S142) -> 5075242.815
N144: Incremental Revenues | O144: =O143-O23 -> 0 | P144: =G154 -> 584866.705 | Q144: =H154 -> 186609.6675 | R144: =I154 -> 65559.66669 | S144: =S143-S23 -> 453.7737991
N146: CPUC Fee | O146: =RegulatoryFee -> 0.0025
N147: Check Figure | O147: =ROUND(O144,6)-ROUND(F154,6) -> 0 | P147: =ROUND(P144,6)-SUM(G125:G152) -> 1.994194463e-07 | Q147: =ROUND(Q144,6)-SUM(H125:H152) -> 1.143780537e-08 | R147: =ROUND(R144,6)-SUM(I125:I152) -> 2.009037416e-07 | S147: =ROUND(S144,6)-SUM(J125:J151) -> -1.026241989e-07
A154: Total Pending, Filed but not Approved | D154: =SUM(D125:D151) -> 837489.813 | F154: =SUM(F125:F153) -> 0 | G154: =SUM(G125:G152) -> 584866.705 | H154: =SUM(H125:H152) -> 186609.6675 | I154: =SUM(I125:I152) -> 65559.66669 | J154: =SUM(J125:J153) -> 453.7737991
A155: Applications Projected to be Filed, Next 12 Months
A157: Filing Description | B157: Estimated Filing Date | C157: Filing Basis | D157: Proposed Revenue Requirement ($000) | E157: Proposed Revenue Recovery Mechanism | F157: Projected Authorized Revenue Requirement ($000) - Breakout by Year | K157: Existing or New Item (if existing, use delta from prior for rate impact)
A158: Safety Affordability Reliability Proceedings | F158: =TRANSPOSE(YearsForRateImpact) -> 2025 | G158: 2026 | H158: 2027 | I158: 2028 | J158: 2029
A163: Public Policy Proceedings

Sheet SAR and RAR
C1: Revenue Change ($000)
C2: Authorized | D2: w/ Pending
B3: =RevRecoveryMechanisms -> Core Procurement | C3: =INDEX('Incremental Rev Req'!$N$9:$S$22,MATCH(B3,'Incremental Rev Req'!$N$9:$N$22,0),MATCH(Summary!$D$2,'Incremental Rev Req'!$N$8:$S$8,0)) -> 1049134.325 | D3: =INDEX('Incremental Rev Req'!$N$129:$S$142,MATCH(B3,'Incremental Rev Req'!$N$129:$N$142,0),MATCH(Summary!$D$2,'Incremental Rev Req'!$N$128:$S$128,0)) -> 1049134.325 | G3: Allocation | P3: Other Revenues and Balancing Accounts
B4: Allocated Base Margin | C4: =INDEX('Incremental Rev Req'!$N$9:$S$22,MATCH(B4,'Incremental Rev Req'!$N$9:$N$22,0),MATCH(Summary!$D$2,'Incremental Rev Req'!$N$8:$S$8,0)) -> 3431178.849 | D4: =INDEX('Incremental Rev Req'!$N$129:$S$142,MATCH(B4,'Incremental Rev Req'!$N$129:$N$142,0),MATCH(Summary!$D$2,'Incremental Rev Req'!$N$128:$S$128,0)) -> 3431178.849 | G4: =TRANSPOSE(RevRecoveryMechanisms) -> Core Procurement | H4: Allocated Base Margin | I4: Distribution | J4: ECPT adjusted | K4: Local Transmission | L4: SGIP | M4: GHG End User | N4: Public Purpose Programs | O4: Backbone Transmission | P4: 47% Res (LUAF, Other) | Q4: ECPT | R4: EPAM | S4: CFCA | T4: Non-Residential | U4: CPUC Fee
B5: Distribution | C5: =INDEX('Incremental Rev Req'!$N$9:$S$22,MATCH(B5,'Incremental Rev Req'!$N$9:$N$22,0),MATCH(Summary!$D$2,'Incremental Rev Req'!$N$8:$S$8,0)) -> 0 | D5: =INDEX('Incremental Rev Req'!$N$129:$S$142,MATCH(B5,'Incremental Rev Req'!$N$129:$N$142,0),MATCH(Summary!$D$2,'Incremental Rev Req'!$N$128:$S$128,0)) -> 0 | F5: Residential | G5: 0.6660172187 | H5: 0.708839031 | I5: 0.6095871975 | J5: 0.4012431755 | K5: 0.4207017225 | L5: 0.3707585355 | M5: 0.5437255755 | N5: 0.5526432166 | O5: 0 | P5: 0.4735382425 | Q5: 0.2583309048 | R5: 0.708839031 | S5: 0.7082921542 | T5: 0 | U5: =RegulatoryFee -> 0.0025
B6: ECPT adjusted | C6: =INDEX('Incremental Rev Req'!$N$9:$S$22,MATCH(B6,'Incremental Rev Req'!$N$9:$N$22,0),MATCH(Summary!$D$2,'Incremental Rev Req'!$N$8:$S$8,0)) -> 0 | D6: =INDEX('Incremental Rev Req'!$N$129:$S$142,MATCH(B6,'Incremental Rev Req'!$N$129:$N$142,0),MATCH(Summary!$D$2,'Incremental Rev Req'!$N$128:$S$128,0)) -> 0
B7: Local Transmission | C7: =INDEX('Incremental Rev Req'!$N$9:$S$22,MATCH(B7,'Incremental Rev Req'!$N$9:$N$22,0),MATCH(Summary!$D$2,'Incremental Rev Req'!$N$8:$S$8,0)) -> 0 | D7: =INDEX('Incremental Rev Req'!$N$129:$S$142,MATCH(B7,'Incremental Rev Req'!$N$129:$N$142,0),MATCH(Summary!$D$2,'Incremental Rev Req'!$N$128:$S$128,0)) -> 0 | G7: Revenue Change ($000) - System
B8: SGIP | C8: =INDEX('Incremental Rev Req'!$N$9:$S$22,MATCH(B8,'Incremental Rev Req'!$N$9:$N$22,0),MATCH(Summary!$D$2,'Incremental Rev Req'!$N$8:$S$8,0)) -> 0 | D8: =INDEX('Incremental Rev Req'!$N$129:$S$142,MATCH(B8,'Incremental Rev Req'!$N$129:$N$142,0),MATCH(Summary!$D$2,'Incremental Rev Req'!$N$128:$S$128,0)) -> 0 | F8: Authorized | G8: =TRANSPOSE(RevRecoveryMechanisms) -> Core Procurement | H8: Allocated Base Margin | I8: Distribution | J8: ECPT adjusted | K8: Local Transmission | L8: SGIP | M8: GHG End User | N8: Public Purpose Programs | O8: Backbone Transmission | P8: 47% Res (LUAF, Other) | Q8: ECPT | R8: EPAM | S8: CFCA | T8: Non-Residential
B9: GHG End User | C9: =INDEX('Incremental Rev Req'!$N$9:$S$22,MATCH(B9,'Incremental Rev Req'!$N$9:$N$22,0),MATCH(Summary!$D$2,'Incremental Rev Req'!$N$8:$S$8,0)) -> 0 | D9: =INDEX('Incremental Rev Req'!$N$129:$S$142,MATCH(B9,'Incremental Rev Req'!$N$129:$N$142,0),MATCH(Summary!$D$2,'Incremental Rev Req'!$N$128:$S$128,0)) -> 0 | F9: Residential | G9: =G5*G10 -> 698741.5251 | H9: =H5*H10 -> 2432153.491 | I9: =I5*I10 -> 0 | J9: =J5*J10 -> 0 | K9: 0 | L9: 0 | M9: 0 | N9: 298459.7943 | O9: =O5*O10 -> 0 | P9: 0 | Q9: =Q5*Q10 -> 0 | R9: =R5*R10 -> 33009.665 | S9: =S5*S10 -> 0 | T9: =T5*T10 -> 0 | U9: =SUM(G9:T9) -> 3462364.475 | V9: Check | W9: CPUC Fee
B10: Public Purpose Programs | C10: =INDEX('Incremental Rev Req'!$N$9:$S$22,MATCH(B10,'Incremental Rev Req'!$N$9:$N$22,0),MATCH(Summary!$D$2,'Incremental Rev Req'!$N$8:$S$8,0)) -> 540058.731 | D10: =INDEX('Incremental Rev Req'!$N$129:$S$142,MATCH(B10,'Incremental Rev Req'!$N$129:$N$142,0),MATCH(Summary!$D$2,'Incremental Rev Req'!$N$128:$S$128,0)) -> 540058.731 | F10: Total System | G10: =C3 -> 1049134.325 | H10: =C4 -> 3431178.849 | I10: =C5 -> 0 | J10: =C6 -> 0 | K10: =C7 -> 0 | L10: =C8 -> 0 | M10: =C9 -> 0 | N10: =C10 -> 540058.731 | O10: =C11 -> 0 | P10: =C12 -> 0 | Q10: =C13 -> 0 | R10: =C14 -> 46568.63343 | S10: =C15 -> 0 | T10: =C16 -> 0 | U10: =SUM(G10:T10) -> 5066940.538 | V10: =U10-C17 -> 0 | W10: =RegulatoryFee -> 0.0025
B11: Backbone Transmission | C11: =INDEX('Incremental Rev Req'!$N$9:$S$22,MATCH(B11,'Incremental Rev Req'!$N$9:$N$22,0),MATCH(Summary!$D$2,'Incremental Rev Req'!$N$8:$S$8,0)) -> 0 | D11: =INDEX('Incremental Rev Req'!$N$129:$S$142,MATCH(B11,'Incremental Rev Req'!$N$129:$N$142,0),MATCH(Summary!$D$2,'Incremental Rev Req'!$N$128:$S$128,0)) -> 0 | F11: w/Pending
B12: 47% Res (LUAF, Other) | C12: =INDEX('Incremental Rev Req'!$N$9:$S$22,MATCH(B12,'Incremental Rev Req'!$N$9:$N$22,0),MATCH(Summary!$D$2,'Incremental Rev Req'!$N$8:$S$8,0)) -> 0 | D12: =INDEX('Incremental Rev Req'!$N$129:$S$142,MATCH(B12,'Incremental Rev Req'!$N$129:$N$142,0),MATCH(Summary!$D$2,'Incremental Rev Req'!$N$128:$S$128,0)) -> 0 | F12: Residential | G12: =G5*G13 -> 698741.5251 | H12: =H5*H13 -> 2432153.491 | I12: 0 | J12: 0 | K12: 0 | L12: 0 | M12: 0 | N12: 298459.7943 | O12: =O5*O13 -> 0 | P12: 0 | Q12: =Q5*Q13 -> 6385.939967 | R12: =R5*R13 -> 126586.9254 | S12: =S5*S13 -> 0 | T12: =T5*T13 -> 0 | U12: =SUM(G12:T12) -> 3562327.675 | V12: Check | W12: CPUC Fee
B13: ECPT | C13: =INDEX('Incremental Rev Req'!$N$9:$S$22,MATCH(B13,'Incremental Rev Req'!$N$9:$N$22,0),MATCH(Summary!$D$2,'Incremental Rev Req'!$N$8:$S$8,0)) -> 0 | D13: =INDEX('Incremental Rev Req'!$N$129:$S$142,MATCH(B13,'Incremental Rev Req'!$N$129:$N$142,0),MATCH(Summary!$D$2,'Incremental Rev Req'!$N$128:$S$128,0)) -> 24720 | F13: Total System | G13: =D3 -> 1049134.325 | H13: =D4 -> 3431178.849 | I13: =D5 -> 0 | J13: =D6 -> 0 | K13: =D7 -> 0 | L13: =D8 -> 0 | M13: =D9 -> 0 | N13: =D10 -> 540058.731 | O13: =D11 -> 0 | P13: =D12 -> 0 | Q13: =D13 -> 24720 | R13: =D14 -> 178583.4581 | S13: =D15 -> 0 | T13: =D16 -> 0 | U13: =SUM(G13:T13) -> 5223675.363 | V13: =U13-D17 -> 0 | W13: =RegulatoryFee -> 0.0025
B14: EPAM | C14: =INDEX('Incremental Rev Req'!$N$9:$S$22,MATCH(B14,'Incremental Rev Req'!$N$9:$N$22,0),MATCH(Summary!$D$2,'Incremental Rev Req'!$N$8:$S$8,0)) -> 46568.63343 | D14: =INDEX('Incremental Rev Req'!$N$129:$S$142,MATCH(B14,'Incremental Rev Req'!$N$129:$N$142,0),MATCH(Summary!$D$2,'Incremental Rev Req'!$N$128:$S$128,0)) -> 178583.4581 | AC14: Authorized | AD14: w/Pending
B15: CFCA | C15: =INDEX('Incremental Rev Req'!$N$9:$S$22,MATCH(B15,'Incremental Rev Req'!$N$9:$N$22,0),MATCH(Summary!$D$2,'Incremental Rev Req'!$N$8:$S$8,0)) -> 0 | D15: =INDEX('Incremental Rev Req'!$N$129:$S$142,MATCH(B15,'Incremental Rev Req'!$N$129:$N$142,0),MATCH(Summary!$D$2,'Incremental Rev Req'!$N$128:$S$128,0)) -> 0 | AB15: % of CARE Sales (Bundled) | AC15: 0.2655087991 | AD15: =AC15 -> 0.2655087991
B16: Non-Residential | C16: =INDEX('Incremental Rev Req'!$N$9:$S$22,MATCH(B16,'Incremental Rev Req'!$N$9:$N$22,0),MATCH(Summary!$D$2,'Incremental Rev Req'!$N$8:$S$8,0)) -> 0 | D16: =INDEX('Incremental Rev Req'!$N$129:$S$142,MATCH(B16,'Incremental Rev Req'!$N$129:$N$142,0),MATCH(Summary!$D$2,'Incremental Rev Req'!$N$128:$S$128,0)) -> 0 | U16: Authorized | W16: w/Pending Total UDC | Y16: Commodity | Z16: w/Pending Commodity
B17: Total Revenue Requirement | C17: =SUM(C3:C16) -> 5066940.538 | D17: =SUM(D3:D16) -> 5223675.363 | G17: Revenue Split - Bundled Customer | U17: Bundled Revenue Change | W17: Bundled Revenue Change
B18: CPUC Fee | C18: =RegulatoryFee -> 0.0025 | D18: =C18 -> 0.0025 | G18: =TRANSPOSE(RevRecoveryMechanisms) -> Core Procurement | H18: Allocated Base Margin | I18: Distribution | J18: ECPT adjusted | K18: Local Transmission | L18: SGIP | M18: GHG End User | N18: Public Purpose Programs | O18: Backbone Transmission | P18: 47% Res (LUAF, Other) | Q18: ECPT | R18: EPAM | S18: CFCA | T18: Non-Residential | U18: Total | W18: Total | Y18: Core Procurement | Z18: Core Procurement
F19: Residential | G19: 1 | H19: 1 | I19: 1 | J19: 1 | K19: 1 | L19: 1 | M19: 1 | N19: 1 | O19: 1 | P19: 1 | Q19: 1 | R19: 1 | S19: 1 | T19: 1 | U19: =SUMPRODUCT(H9:T9,H19:T19) -> 2763622.95 | W19: =SUMPRODUCT(H12:T12,H19:T19) -> 2863586.15 | Y19: =SUMPRODUCT(G9,G19) -> 698741.5251 | Z19: =SUMPRODUCT(G12,G19) -> 698741.5251
F20: Total System | G20: 1 | H20: 1 | I20: 1 | J20: 1 | K20: 1 | L20: 1 | M20: 1 | N20: 0 | O20: 1 | P20: 1 | Q20: 1 | R20: 1 | S20: 1 | T20: 1 | U20: =SUMPRODUCT(H10:T10,H20:T20) -> 3477747.482 | W20: =SUMPRODUCT(H13:T13,H20:T20) -> 3634482.307 | Y20: =SUMPRODUCT(G10,G20) -> 1049134.325 | Z20: =SUMPRODUCT(G13,G20) -> 1049134.325
C22: CAP D.24-07-009 SALES DETERMINANTS SYSTEM NET (MTH) Average year Throughput | D22: CAP D.24-07-009 SALES DETERMINANTS BUNDLED (MTH)Average year throughput
B23: Residential | C23: 2185982.983 | D23: 2158593.606
B24: Total System | C24: 8461949.161 | D24: 3032625.674
F26: Bundled | P26: System (Bundled and Unbundled)
B27: CARE Discount | F27: CAP D.24-07-009 SALES DETERMINANTS BUNDLED | G27: =CONCATENATE(TEXT(CurrentEffectiveRateDate,"mm/dd/yyyy")," Avg Rates"&"(sales adj.)") -> 12/01/2025 Avg Rates(sales adj.) | H27: Proposed Avg Rates (Authorized) | I27: Proposed Avg Rates (w/Pending) | J27: % Change (Authorized) | K27: % Change (w/Pending) | Q27: =F27 -> CAP D.24-07-009 SALES DETERMINANTS BUNDLED | R27: =G27 -> 12/01/2025 Avg Rates(sales adj.) | S27: Proposed Avg Rates (Authorized) | T27: Proposed Avg Rates (w/Pending) | U27: % Change (Authorized) | V27: % Change (w/Pending)
B28: 2020 | C28: 132417.9764 | E28: Residential | F28: =D23 -> 2158593.606 | G28: 190.9327932 | H28: =(U19/C23*100)+(Y19/D23*100) -> 158.794945 | I28: =(W19/C23*100)+(Z19/D23*100) -> 163.3678626 | J28: =H28/G28-1 -> -0.1683202115 | K28: =I28/G28-1 -> -0.1443698072 | P28: Residential | Q28: =C23 -> 2185982.983 | R28: 190.5475347 | S28: =U9/Q28*100 -> 158.3893608 | T28: =U12/Q28*100 -> 162.9622784 | U28: =S28/R28-1 -> -0.1687671999 | V28: =T28/R28-1 -> -0.1447683715
B29: 2021 | C29: 187534.6647 | E29: Total System | F29: =D24 -> 3032625.674 | G29: 96.74205344 | H29: =(U20/C24*100)+(Y20/D24*100) -> 75.69357392 | I29: =(W20/C24*100)+(Z20/D24*100) -> 77.54580467 | J29: =H29/G29-1 -> -0.2175732143 | K29: =I29/G29-1 -> -0.1984271378 | P29: Total System | Q29: =C24 -> 8461949.161 | R29: 81.0873789 | S29: =U10/Q29*100 -> 59.87911818 | T29: =U13/Q29*100 -> 61.73134893 | U29: =S29/R29-1 -> -0.2615482336 | V29: =T29/R29-1 -> -0.2387058286
B30: 2022 | C30: 210430.2141 | H30: cents/therm
B31: 2023 | C31: 213115.4392
B32: 2024 | C32: 214904.4994
B33: 2025 | C33: 201591.9989
B34: 2026 | C34: 233746.857

Sheet Res Bill Impact
E3: Schedule GR | P3: Schedule GR [CARE]
E4: =SalesForecastYear -> 2024 | F4: =CurrentEffectiveRateDate -> 2025-12-01 | G4: =CurrentEffectiveRateDate -> 2025-12-01 | H4: Proposed | I4: Proposed | J4: Proposed | K4: Proposed | P4: =SalesForecastYear -> 2024 | Q4: =CurrentEffectiveRateDate -> 2025-12-01 | R4: =CurrentEffectiveRateDate -> 2025-12-01 | S4: Proposed | T4: Proposed | U4: Proposed | V4: Proposed
E5: System Sales Forecast | F5: Rates | G5: Revenue | H5: Authorized Rates | I5: Authorized Revenue | J5: w/Pending Rates | K5: w/Pending Revenue | P5: Sales Forecast | Q5: Rates | R5: Revenue | S5: Authorized Rates | T5: Authorized Revenue | U5: w/Pending Rates | V5: w/Pending Revenue
D7: Baseline | E7: 1106153.307 | F7: 1.645852026 | G7: =F7*E7 -> 1820564.661 | H7: =((Y10-I12-T12)/SUM(E7,F9/F7*E9,P7*((Q7/F7)),P9*((Q9/F7)))) -> 1.392741329 | I7: =E7*H7 -> 1540585.427 | J7: =((Y13-K12-V12)/SUM(SUM(E7),F9/F7*SUM(E9),SUM(P7)*((Q7/F7)),SUM(P9)*(Q9/F7))) -> 1.437176762 | K7: =E7*J7 -> 1589737.828 | O7: =D7 -> Baseline | P7: 408227.7802 | Q7: 1.300394272 | R7: =Q7*P7 -> 530857.0672 | S7: =H7*(1+(Q7/F7-1)) -> 1.100410498 | T7: =P7*S7 -> 449218.1348 | U7: =J7*(1+(Q7/F7-1)) -> 1.135519111 | V7: =P7*U7 -> 463550.446 | X7: Bundled Residential Rev Req
X8: Current | Y8: =(SUM(G7:G9)+SUM(R7:R9)) -> 3702555.056
D9: non-Baseline | E9: 490559.9158 | F9: 2.131092026 | G9: =F9*E9 -> 1045428.325 | H9: =F9/F$7*H$7 -> 1.80335771 | I9: =E9*H9 -> 884655.0063 | J9: =F9/F$7*J$7 -> 1.860893864 | K9: 912879.9373 | O9: =D9 -> non-Baseline | P9: 181041.9805 | Q9: 1.688586272 | R9: =Q9*P9 -> 305705.0031 | S9: =H9*(1+(Q9/F9-1)) -> 1.428903603 | T9: =P9*S9 -> 258691.5382 | U9: =J9*(1+(Q9/F9-1)) -> 1.474492793 | V9: =P9*U9 -> 266945.0955 | X9: Change (Authorized) | Y9: =Y10-Y8 -> -240190.5813
X10: Proposed (Authorized) | Y10: ='SAR and RAR'!U9 -> 3462364.475
E11: Non-CARE customers | P11: CARE Customers
D12: Fixed Charge | E12: =E13-P12 -> 4047089.348 | F12: 5 | G12: =F12*12*E12/1000 -> 242825.3609 | H12: =SetUp!D7 -> 5 | I12: =(H12*12*E12)/1000 -> 242825.3609 | J12: =H12 -> 5 | K12: =I12 -> 242825.3609 | O12: Fixed Charge | P12: 1799771 | Q12: =F12*(1-CAREDiscountPercent) -> 4 | R12: =Q12*12*P12/1000 -> 86389.008 | S12: =SetUp!D7*(1-CAREDiscountPercent) -> 4 | T12: =(S12*12*P12)/1000 -> 86389.008 | U12: =S12 -> 4 | V12: =T12 -> 86389.008 | X12: Change (w/Pending) | Y12: =Y13-Y8 -> -140227.3809
D13: Total Customers | E13: 5846860.348 | X13: Proposed (w/Pending) | Y13: ='SAR and RAR'!U12 -> 3562327.675
P18: Basic Bundled
E19: =Summary!D2 -> 2027 | F19: =Summary!D2 -> 2027 | H19: Essential Usage | P19: 2024 Recorded Data - Average Monthly Usage - ALL-BASIC th
B20: SCHEDULE GR RATES ($/therm) | E20: Proposed | F20: Proposed | H20: Monthly Tier 1 Baseline Allowance -BASIC (th) | P20: Climate Zone | Q20: Summer | R20: Winter | S20: Summer | T20: Winter
B21: Rates | C21: =BOYEffectiveRateDate -> 2025-01-01 | D21: =CurrentEffectiveRateDate -> 2025-12-01 | E21: Authorized | F21: w/Pending | H21: Climate Zone | I21: Summer 2024 | J21: Winter 2024 | Q21: Non-CARE | S21: CARE
A22: Summer | B22: Tier 1 | C22: 1.48149 | D22: 1.702504514 | E22: =H7 -> 1.392741329 | F22: =J7 -> 1.437176762 | H22: =Zones -> 1 | I22: 13 | J22: 37.33333333 | P22: =Zones -> 1 | Q22: 22.68195339 | R22: 45.72507267 | S22: 17.60404118 | T22: 33.00381282
B23: Tier 2 | C23: 1.92197 | D23: 2.214381695 | E23: =H9 -> 1.80335771 | F23: =J9 -> 1.860893864 | H23: 2 | I23: 13 | J23: 42.16666667 | P23: 2 | Q23: 19.24320082 | R23: 49.58569166 | S23: 18.36758446 | T23: 46.09184154
H24: 3 | I24: 13 | J24: 65 | P24: 3 | Q24: 18.94798314 | R24: 71.48580122 | S24: 23.35905116 | T24: 81.14343361
A25: Winter | B25: Tier 1 | C25: =C22 -> 1.48149 | D25: =D22 -> 1.702504514 | E25: =E22 -> 1.392741329 | F25: 1.437176762 | H25: 0 | P25: 0
B26: Tier 2 | C26: =C23 -> 1.92197 | D26: =D23 -> 2.214381695 | E26: =E23 -> 1.80335771 | F26: 1.860893864
P27: Typical Bundled
E28: =Summary!D2 -> 2027 | F28: =Summary!D2 -> 2027 | P28: 2020-2024 Recorded Data - Average Monthly Usage - ALL-BASIC th
B29: SCHEDULE GR-LI [CARE] ($/therm) | E29: Proposed | F29: Proposed | P29: Climate Zone | Q29: Summer | R29: Winter | S29: Summer | T29: Winter
B30: Rates | C30: =C21 -> 2025-01-01 | D30: =D21 -> 2025-12-01 | E30: Authorized | F30: w/Pending | Q30: Non-CARE | S30: CARE
A31: Summer | B31: Tier 1 | C31: 1.28440394 | D31: 1.344829593 | E31: =S7 -> 1.100410498 | F31: =U7 -> 1.135519111 | P31: =Zones -> 1 | Q31: 23.11491818 | R31: 49.40758765 | S31: 17.51725705 | T31: 34.67605291
B32: Tier 2 | C32: 1.632662909 | D32: 1.754331338 | E32: =S9 -> 1.428903603 | F32: =U9 -> 1.474492793 | P32: 2 | Q32: 19.56195699 | R32: 55.33374712 | S32: 18.5317823 | T32: 51.14470611
P33: 3 | Q33: 19.98866609 | R33: 77.21481657 | S33: 24.34162135 | T33: 87.23331811
A34: Winter | B34: Tier 1 | C34: 1.17041 | D34: =D31 -> 1.344829593 | E34: 1.100410498 | F34: 1.135519111 | P34: 0
B35: Tier 2 | C35: 1.5228 | D35: =D32 -> 1.754331338 | E35: 1.428903603 | F35: 1.474492793
C39: Note: Bill inserts include CPUC fee in the calculations
C40: 2023 Recorded Average Basic Bundled Non-CARE Customer Bill
C41: =C30 -> 2025-01-01 | E41: =D30 -> 2025-12-01 | G41: =E21 -> Authorized | I41: =F21 -> w/Pending
C42: Summer | D42: Winter | E42: Summer | F42: Winter | G42: Summer | H42: Winter | I42: Summer | J42: Winter
B43: =Zones -> 1 | C43: =IF($Q22>$I22,C$22*$I22+C$23*($Q22-$I22),$Q22*C$22)+('Incremental Rev Req'!$F$119*$Q22)+IF(Q22>0,$F$12,0) -> 42.92449883 | D43: =IF($R22>$J22,C$25*$J22+C$26*($R22-$J22),$R22*C$25)+('Incremental Rev Req'!$F$119*$R22)+IF(R22>0,$F$12,0) -> 76.55194393 | E43: =IF($Q22>$I22,D$22*$I22+D$23*($Q22-$I22),$Q22*D$22)+('Incremental Rev Req'!$F$119*$Q22)+IF(Q22>0,$F$12,0) -> 48.62880391 | F43: =IF($R22>$J22,D$25*$J22+D$26*($R22-$J22),$R22*D$25)+('Incremental Rev Req'!$F$119*$R22)+IF(R22>0,$F$12,0) -> 87.25699517 | G43: =IF($Q22>$I22,E$22*$I22+E$23*($Q22-$I22),$Q22*E$22)+('Incremental Rev Req'!$F$119*$Q22)+IF(Q22>0,$H$12,0) -> 40.62236745 | H43: =IF($R22>$J22,E$25*$J22+E$26*($R22-$J22),$R22*E$25)+('Incremental Rev Req'!$F$119*$R22)+IF(R22>0,$H$12,0) -> 72.24329679 | I43: =IF($Q22>$I22,F$22*$I22+F$23*($Q22-$I22),$Q22*F$22)+('Incremental Rev Req'!$F$119*$Q22)+IF(Q22>0,$J$12,0) -> 41.75709044 | J43: =IF($R22>$J22,F$25*$J22+F$26*($R22-$J22),$R22*F$25)+('Incremental Rev Req'!$F$119*$R22)+IF(R22>0,$J$12,0) -> 74.38504802
B44: 2 | C44: =IF($Q23>$I23,C$22*$I23+C$23*($Q23-$I23),$Q23*C$22)+('Incremental Rev Req'!$F$119*$Q23)+IF(Q23>0,$F$12,0) -> 36.30672268 | D44: =IF($R23>$J23,C$25*$J23+C$26*($R23-$J23),$R23*C$25)+('Incremental Rev Req'!$F$119*$R23)+IF(R23>0,$F$12,0) -> 81.8526027 | E44: =IF($Q23>$I23,D$22*$I23+D$23*($Q23-$I23),$Q23*D$22)+('Incremental Rev Req'!$F$119*$Q23)+IF(Q23>0,$F$12,0) -> 41.00549629 | F44: =IF($R23>$J23,D$25*$J23+D$26*($R23-$J23),$R23*D$25)+('Incremental Rev Req'!$F$119*$R23)+IF(R23>0,$F$12,0) -> 93.3414577 | G44: =IF($Q23>$I23,E$22*$I23+E$23*($Q23-$I23),$Q23*E$22)+('Incremental Rev Req'!$F$119*$Q23)+IF(Q23>0,$H$12,0) -> 34.41246961 | H44: =IF($R23>$J23,E$25*$J23+E$26*($R23-$J23),$R23*E$25)+('Incremental Rev Req'!$F$119*$R23)+IF(R23>0,$H$12,0) -> 77.23037953 | I44: =IF($Q23>$I23,F$22*$I23+F$23*($Q23-$I23),$Q23*F$22)+('Incremental Rev Req'!$F$119*$Q23)+IF(Q23>0,$J$12,0) -> 35.34934 | J44: =IF($R23>$J23,F$25*$J23+F$26*($R23-$J23),$R23*F$25)+('Incremental Rev Req'!$F$119*$R23)+IF(R23>0,$J$12,0) -> 79.53093577
B45: 3 | C45: =IF($Q24>$I24,C$22*$I24+C$23*($Q24-$I24),$Q24*C$22)+('Incremental Rev Req'!$F$119*$Q24)+IF(Q24>0,$F$12,0) -> 35.73858511 | D45: =IF($R24>$J24,C$25*$J24+C$26*($R24-$J24),$R24*C$25)+('Incremental Rev Req'!$F$119*$R24)+IF(R24>0,$F$12,0) -> 113.9410799 | E45: =IF($Q24>$I24,D$22*$I24+D$23*($Q24-$I24),$Q24*D$22)+('Incremental Rev Req'!$F$119*$Q24)+IF(Q24>0,$F$12,0) -> 40.35103363 | F45: =IF($R24>$J24,D$25*$J24+D$26*($R24-$J24),$R24*D$25)+('Incremental Rev Req'!$F$119*$R24)+IF(R24>0,$F$12,0) -> 130.2035474 | G45: =IF($Q24>$I24,E$22*$I24+E$23*($Q24-$I24),$Q24*E$22)+('Incremental Rev Req'!$F$119*$Q24)+IF(Q24>0,$H$12,0) -> 33.87934849 | H45: =IF($R24>$J24,E$25*$J24+E$26*($R24-$J24),$R24*E$25)+('Incremental Rev Req'!$F$119*$R24)+IF(R24>0,$H$12,0) -> 107.4031205 | I45: =IF($Q24>$I24,F$22*$I24+F$23*($Q24-$I24),$Q24*F$22)+('Incremental Rev Req'!$F$119*$Q24)+IF(Q24>0,$J$12,0) -> 34.79923319 | J45: =IF($R24>$J24,F$25*$J24+F$26*($R24-$J24),$R24*F$25)+('Incremental Rev Req'!$F$119*$R24)+IF(R24>0,$J$12,0) -> 110.6645917
B46: 0 | C46: =IF($Q25>$I25,C$22*$I25+C$23*($Q25-$I25),$Q25*C$22)+('Incremental Rev Req'!$F$119*$Q25)+IF(Q25>0,$F$12,0) -> 0 | D46: =IF($R25>$J25,C$25*$J25+C$26*($R25-$J25),$R25*C$25)+('Incremental Rev Req'!$F$119*$R25)+IF(R25>0,$F$12,0) -> 0 | E46: =IF($Q25>$I25,D$22*$I25+D$23*($Q25-$I25),$Q25*D$22)+('Incremental Rev Req'!$F$119*$Q25)+IF(Q25>0,$F$12,0) -> 0 | F46: =IF($R25>$J25,D$25*$J25+D$26*($R25-$J25),$R25*D$25)+('Incremental Rev Req'!$F$119*$R25)+IF(R25>0,$F$12,0) -> 0 | G46: =IF($Q25>$I25,E$22*$I25+E$23*($Q25-$I25),$Q25*E$22)+('Incremental Rev Req'!$F$119*$Q25)+IF(Q25>0,$H$12,0) -> 0 | H46: =IF($R25>$J25,E$25*$J25+E$26*($R25-$J25),$R25*E$25)+('Incremental Rev Req'!$F$119*$R25)+IF(R25>0,$H$12,0) -> 0 | I46: =IF($Q25>$I25,F$22*$I25+F$23*($Q25-$I25),$Q25*F$22)+('Incremental Rev Req'!$F$119*$Q25)+IF(Q25>0,$J$12,0) -> 0 | J46: =IF($R25>$J25,F$25*$J25+F$26*($R25-$J25),$R25*F$25)+('Incremental Rev Req'!$F$119*$R25)+IF(R25>0,$J$12,0) -> 0
B47: Total | C47: =SUMPRODUCT(C43:C46,$U$22:$U$25) -> 0 | D47: =SUMPRODUCT(D43:D46,$U$22:$U$25) -> 0 | E47: 0 | F47: 0 | G47: 0 | H47: 0 | I47: 0 | J47: 0
C50: 2023 Recorded Average Basic Bundled CARE Customer Bill
C51: =C30 -> 2025-01-01 | E51: =D30 -> 2025-12-01 | G51: =E30 -> Authorized | I51: =F30 -> w/Pending
C52: Summer | D52: Winter | E52: Summer | F52: Winter | G52: Summer | H52: Winter | I52: Summer | J52: Winter
B53: =Zones -> 1 | C53: =IF($S22>$I22,C$31*$I22+C$32*($S22-$I22),$S22*C$31)+('Incremental Rev Req'!$F$119*$S22)+IF(S22>0,$Q$12,0) -> 28.25810858 | D53: =IF($T22>$J22,C$34*$J22+C$35*($T22-$J22),$T22*C$34)+('Incremental Rev Req'!$F$119*$T22)+IF(T22>0,$Q$12,0) -> 42.71050209 | E53: =IF($S22>$I22,D$31*$I22+D$32*($S22-$I22),$S22*D$31)+('Incremental Rev Req'!$F$119*$S22)+IF(S22>0,$Q$12,0) -> 29.60380852 | F53: =IF($T22>$J22,D$34*$J22+D$35*($T22-$J22),$T22*D$34)+('Incremental Rev Req'!$F$119*$T22)+IF(T22>0,$Q$12,0) -> 48.46701368 | G53: =IF($S22>$I22,E$31*$I22+E$32*($S22-$I22),$S22*E$31)+('Incremental Rev Req'!$F$119*$S22)+IF(S22>0,$S$12,0) -> 24.9280776 | H53: =IF($T22>$J22,E$34*$J22+E$35*($T22-$J22),$T22*E$34)+('Incremental Rev Req'!$F$119*$T22)+IF(T22>0,$S$12,0) -> 40.40025162 | I53: =IF($S22>$I22,F$31*$I22+F$32*($S22-$I22),$S22*F$31)+('Incremental Rev Req'!$F$119*$S22)+IF(S22>0,$U$12,0) -> 25.59438408 | J53: =IF($T22>$J22,F$34*$J22+F$35*($T22-$J22),$T22*F$34)+('Incremental Rev Req'!$F$119*$T22)+IF(T22>0,$U$12,0) -> 41.55896972
B54: 2 | C54: =IF($S23>$I23,C$31*$I23+C$32*($S23-$I23),$S23*C$31)+('Incremental Rev Req'!$F$119*$S23)+IF(S23>0,$Q$12,0) -> 29.50662624 | D54: =IF($T23>$J23,C$34*$J23+C$35*($T23-$J23),$T23*C$34)+('Incremental Rev Req'!$F$119*$T23)+IF(T23>0,$Q$12,0) -> 59.44477423 | E54: =IF($S23>$I23,D$31*$I23+D$32*($S23-$I23),$S23*D$31)+('Incremental Rev Req'!$F$119*$S23)+IF(S23>0,$Q$12,0) -> 30.94522529 | F54: =IF($T23>$J23,D$34*$J23+D$35*($T23-$J23),$T23*D$34)+('Incremental Rev Req'!$F$119*$T23)+IF(T23>0,$Q$12,0) -> 67.70826805 | G54: =IF($S23>$I23,E$31*$I23+E$32*($S23-$I23),$S23*E$31)+('Incremental Rev Req'!$F$119*$S23)+IF(S23>0,$S$12,0) -> 26.0210162 | H54: =IF($T23>$J23,E$34*$J23+E$35*($T23-$J23),$T23*E$34)+('Incremental Rev Req'!$F$119*$T23)+IF(T23>0,$S$12,0) -> 56.12456877 | I54: =IF($S23>$I23,F$31*$I23+F$32*($S23-$I23),$S23*F$31)+('Incremental Rev Req'!$F$119*$S23)+IF(S23>0,$U$12,0) -> 26.72213201 | J54: =IF($T23>$J23,F$34*$J23+F$35*($T23-$J23),$T23*F$34)+('Incremental Rev Req'!$F$119*$T23)+IF(T23>0,$U$12,0) -> 57.78392751
B55: 3 | C55: =IF($S24>$I24,C$31*$I24+C$32*($S24-$I24),$S24*C$31)+('Incremental Rev Req'!$F$119*$S24)+IF(S24>0,$Q$12,0) -> 37.66848745 | D55: =IF($T24>$J24,C$34*$J24+C$35*($T24-$J24),$T24*C$34)+('Incremental Rev Req'!$F$119*$T24)+IF(T24>0,$Q$12,0) -> 104.8627293 | E55: =IF($S24>$I24,D$31*$I24+D$32*($S24-$I24),$S24*D$31)+('Incremental Rev Req'!$F$119*$S24)+IF(S24>0,$Q$12,0) -> 39.71439041 | F55: =IF($T24>$J24,D$34*$J24+D$35*($T24-$J24),$T24*D$34)+('Incremental Rev Req'!$F$119*$T24)+IF(T24>0,$Q$12,0) -> 119.9377136 | G55: =IF($S24>$I24,E$31*$I24+E$32*($S24-$I24),$S24*E$31)+('Incremental Rev Req'!$F$119*$S24)+IF(S24>0,$S$12,0) -> 33.16581962 | H55: =IF($T24>$J24,E$34*$J24+E$35*($T24-$J24),$T24*E$34)+('Incremental Rev Req'!$F$119*$T24)+IF(T24>0,$S$12,0) -> 98.79695138 | I55: =IF($S24>$I24,F$31*$I24+F$32*($S24-$I24),$S24*F$31)+('Incremental Rev Req'!$F$119*$S24)+IF(S24>0,$U$12,0) -> 34.09449235 | J55: =IF($T24>$J24,F$34*$J24+F$35*($T24-$J24),$T24*F$34)+('Incremental Rev Req'!$F$119*$T24)+IF(T24>0,$U$12,0) -> 101.8149773
B56: 0 | C56: =IF($S25>$I25,C$31*$I25+C$32*($S25-$I25),$S25*C$31)+('Incremental Rev Req'!$F$119*$S25)+IF(S25>0,$Q$12,0) -> 0 | D56: =IF($T25>$J25,C$34*$J25+C$35*($T25-$J25),$T25*C$34)+('Incremental Rev Req'!$F$119*$T25)+IF(T25>0,$Q$12,0) -> 0 | E56: =IF($S25>$I25,D$31*$I25+D$32*($S25-$I25),$S25*D$31)+('Incremental Rev Req'!$F$119*$S25)+IF(S25>0,$Q$12,0) -> 0 | F56: =IF($T25>$J25,D$34*$J25+D$35*($T25-$J25),$T25*D$34)+('Incremental Rev Req'!$F$119*$T25)+IF(T25>0,$Q$12,0) -> 0 | G56: =IF($S25>$I25,E$31*$I25+E$32*($S25-$I25),$S25*E$31)+('Incremental Rev Req'!$F$119*$S25)+IF(S25>0,$S$12,0) -> 0 | H56: =IF($T25>$J25,E$34*$J25+E$35*($T25-$J25),$T25*E$34)+('Incremental Rev Req'!$F$119*$T25)+IF(T25>0,$S$12,0) -> 0 | I56: =IF($S25>$I25,F$31*$I25+F$32*($S25-$I25),$S25*F$31)+('Incremental Rev Req'!$F$119*$S25)+IF(S25>0,$U$12,0) -> 0 | J56: =IF($T25>$J25,F$34*$J25+F$35*($T25-$J25),$T25*F$34)+('Incremental Rev Req'!$F$119*$T25)+IF(T25>0,$U$12,0) -> 0
B57: Total | C57: =SUMPRODUCT(C53:C56,$V$22:$V$25) -> 0 | D57: =SUMPRODUCT(D53:D56,$V$22:$V$25) -> 0 | E57: 0 | F57: 0 | G57: 0 | H57: 0 | I57: 0 | J57: 0
C60: Essential Usage Basic Bundled Non-CARE Customer Bill
C61: =C51 -> 2025-01-01 | E61: =E51 -> 2025-12-01 | G61: =G51 -> Authorized | I61: =I51 -> w/Pending
C62: Summer | D62: Winter | E62: Summer | F62: Winter | G62: Summer | H62: Winter | I62: Summer | J62: Winter
B63: =Zones -> 1 | C63: =($C$22*$I22)+('Incremental Rev Req'!$F$119*$I22)+IF(I22>0,$F$12,0) -> 24.29187 | D63: =($C$25*$J22)+('Incremental Rev Req'!$F$119*$J22)+IF(J22>0,$F$12,0) -> 60.40229333 | E63: =($D$22*$I22)+('Incremental Rev Req'!$F$119*$I22)+IF(I22>0,$F$12,0) -> 27.16505868 | F63: =($D$25*$J22)+('Incremental Rev Req'!$F$119*$J22)+IF(J22>0,$F$12,0) -> 68.65350185 | G63: =($E$22*$I22)+('Incremental Rev Req'!$F$119*$I22)+IF(I22>0,$H$12,0) -> 23.13813728 | H63: =($E$25*$J22)+('Incremental Rev Req'!$F$119*$J22)+IF(J22>0,$H$12,0) -> 57.08900962 | I63: =($F$22*$I22)+('Incremental Rev Req'!$F$119*$I22)+IF(I22>0,$J$12,0) -> 23.7157979 | J63: =($F$25*$J22)+('Incremental Rev Req'!$F$119*$J22)+IF(J22>0,$J$12,0) -> 58.74793244
B64: 2 | C64: =($C$22*$I23)+('Incremental Rev Req'!$F$119*$I23)+IF(I23>0,$F$12,0) -> 24.29187 | D64: =($C$25*$J23)+('Incremental Rev Req'!$F$119*$J23)+IF(J23>0,$F$12,0) -> 67.57491167 | E64: =($D$22*$I23)+('Incremental Rev Req'!$F$119*$I23)+IF(I23>0,$F$12,0) -> 27.16505868 | F64: =($D$25*$J23)+('Incremental Rev Req'!$F$119*$J23)+IF(J23>0,$F$12,0) -> 76.894357 | G64: =($E$22*$I23)+('Incremental Rev Req'!$F$119*$I23)+IF(I23>0,$H$12,0) -> 23.13813728 | H64: =($E$25*$J23)+('Incremental Rev Req'!$F$119*$J23)+IF(J23>0,$H$12,0) -> 63.83267604 | I64: =($F$22*$I23)+('Incremental Rev Req'!$F$119*$I23)+IF(I23>0,$J$12,0) -> 23.7157979 | J64: =($F$25*$J23)+('Incremental Rev Req'!$F$119*$J23)+IF(J23>0,$J$12,0) -> 65.70637012
B65: 3 | C65: =($C$22*$I24)+('Incremental Rev Req'!$F$119*$I24)+IF(I24>0,$F$12,0) -> 24.29187 | D65: =($C$25*$J24)+('Incremental Rev Req'!$F$119*$J24)+IF(J24>0,$F$12,0) -> 101.45935 | E65: =($D$22*$I24)+('Incremental Rev Req'!$F$119*$I24)+IF(I24>0,$F$12,0) -> 27.16505868 | F65: =($D$25*$J24)+('Incremental Rev Req'!$F$119*$J24)+IF(J24>0,$F$12,0) -> 115.8252934 | G65: =($E$22*$I24)+('Incremental Rev Req'!$F$119*$I24)+IF(I24>0,$H$12,0) -> 23.13813728 | H65: =($E$25*$J24)+('Incremental Rev Req'!$F$119*$J24)+IF(J24>0,$H$12,0) -> 95.69068638 | I65: =($F$22*$I24)+('Incremental Rev Req'!$F$119*$I24)+IF(I24>0,$J$12,0) -> 23.7157979 | J65: =($F$25*$J24)+('Incremental Rev Req'!$F$119*$J24)+IF(J24>0,$J$12,0) -> 98.57898951
B66: 0 | C66: =($C$22*$I25)+('Incremental Rev Req'!$F$119*$I25)+IF(I25>0,$F$12,0) -> 0 | D66: =($C$25*$J25)+('Incremental Rev Req'!$F$119*$J25)+IF(J25>0,$F$12,0) -> 0 | E66: =($D$22*$I25)+('Incremental Rev Req'!$F$119*$I25)+IF(I25>0,$F$12,0) -> 0 | F66: =($D$25*$J25)+('Incremental Rev Req'!$F$119*$J25)+IF(J25>0,$F$12,0) -> 0 | G66: =($E$22*$I25)+('Incremental Rev Req'!$F$119*$I25)+IF(I25>0,$H$12,0) -> 0 | H66: =($E$25*$J25)+('Incremental Rev Req'!$F$119*$J25)+IF(J25>0,$H$12,0) -> 0 | I66: =($F$22*$I25)+('Incremental Rev Req'!$F$119*$I25)+IF(I25>0,$J$12,0) -> 0 | J66: =($F$25*$J25)+('Incremental Rev Req'!$F$119*$J25)+IF(J25>0,$J$12,0) -> 0
B67: Total | C67: =SUMPRODUCT(C63:C66,$U$22:$U$25) -> 0 | D67: =SUMPRODUCT(D63:D66,$U$22:$U$25) -> 0 | E67: =SUMPRODUCT(E63:E66,$U$22:$U$25) -> 0 | F67: =SUMPRODUCT(F63:F66,$U$22:$U$25) -> 0 | G67: 0 | H67: 0 | I67: 0 | J67: 0
C70: Essential Usage Basic Bundled CARE Customer Bill
C71: =C61 -> 2025-01-01 | E71: =E61 -> 2025-12-01 | G71: =G61 -> Authorized | I71: =I61 -> w/Pending
C72: Summer | D72: Winter | E72: Summer | F72: Winter | G72: Summer | H72: Winter | I72: Summer | J72: Winter
B73: =Zones -> 1 | C73: =($C$31*$I22)+('Incremental Rev Req'!$F$119*$I22)+IF(I22>0,$Q$12,0) -> 20.72975122 | D73: =($C$34*$J22)+('Incremental Rev Req'!$F$119*$J22)+IF(J22>0,$Q$12,0) -> 47.78864 | E73: =($D$31*$I22)+('Incremental Rev Req'!$F$119*$I22)+IF(I22>0,$Q$12,0) -> 21.51528471 | F73: =($D$34*$J22)+('Incremental Rev Req'!$F$119*$J22)+IF(J22>0,$Q$12,0) -> 54.3003048 | G73: =($E$31*$I22)+('Incremental Rev Req'!$F$119*$I22)+IF(I22>0,$S$12,0) -> 18.33783647 | H73: =($E$34*$J22)+('Incremental Rev Req'!$F$119*$J22)+IF(J22>0,$S$12,0) -> 45.17532525 | I73: =($F$31*$I22)+('Incremental Rev Req'!$F$119*$I22)+IF(I22>0,$U$12,0) -> 18.79424844 | J73: =($F$34*$J22)+('Incremental Rev Req'!$F$119*$J22)+IF(J22>0,$U$12,0) -> 46.48604681
B74: 2 | C74: =($C$31*$I23)+('Incremental Rev Req'!$F$119*$I23)+IF(I23>0,$Q$12,0) -> 20.72975122 | D74: =($C$34*$J23)+('Incremental Rev Req'!$F$119*$J23)+IF(J23>0,$Q$12,0) -> 53.457705 | E74: =($D$31*$I23)+('Incremental Rev Req'!$F$119*$I23)+IF(I23>0,$Q$12,0) -> 21.51528471 | F74: =($D$34*$J23)+('Incremental Rev Req'!$F$119*$J23)+IF(J23>0,$Q$12,0) -> 60.81239783 | G74: =($E$31*$I23)+('Incremental Rev Req'!$F$119*$I23)+IF(I23>0,$S$12,0) -> 18.33783647 | H74: =($E$34*$J23)+('Incremental Rev Req'!$F$119*$J23)+IF(J23>0,$S$12,0) -> 50.50605932 | I74: =($F$31*$I23)+('Incremental Rev Req'!$F$119*$I23)+IF(I23>0,$U$12,0) -> 18.79424844 | J74: =($F$34*$J23)+('Incremental Rev Req'!$F$119*$J23)+IF(J23>0,$U$12,0) -> 51.98647251
B75: 3 | C75: =($C$31*$I24)+('Incremental Rev Req'!$F$119*$I24)+IF(I24>0,$Q$12,0) -> 20.72975122 | D75: =($C$34*$J24)+('Incremental Rev Req'!$F$119*$J24)+IF(J24>0,$Q$12,0) -> 80.23915 | E75: =($D$31*$I24)+('Incremental Rev Req'!$F$119*$I24)+IF(I24>0,$Q$12,0) -> 21.51528471 | F75: =($D$34*$J24)+('Incremental Rev Req'!$F$119*$J24)+IF(J24>0,$Q$12,0) -> 91.57642353 | G75: =($E$31*$I24)+('Incremental Rev Req'!$F$119*$I24)+IF(I24>0,$S$12,0) -> 18.33783647 | H75: =($E$34*$J24)+('Incremental Rev Req'!$F$119*$J24)+IF(J24>0,$S$12,0) -> 75.68918235 | I75: =($F$31*$I24)+('Incremental Rev Req'!$F$119*$I24)+IF(I24>0,$U$12,0) -> 18.79424844 | J75: =($F$34*$J24)+('Incremental Rev Req'!$F$119*$J24)+IF(J24>0,$U$12,0) -> 77.97124221
B76: 0 | C76: =($C$31*$I25)+('Incremental Rev Req'!$F$119*$I25)+IF(I25>0,$Q$12,0) -> 0 | D76: =($C$34*$J25)+('Incremental Rev Req'!$F$119*$J25)+IF(J25>0,$Q$12,0) -> 0 | E76: =($D$31*$I25)+('Incremental Rev Req'!$F$119*$I25)+IF(I25>0,$Q$12,0) -> 0 | F76: =($D$34*$J25)+('Incremental Rev Req'!$F$119*$J25)+IF(J25>0,$Q$12,0) -> 0 | G76: =($E$31*$I25)+('Incremental Rev Req'!$F$119*$I25)+IF(I25>0,$S$12,0) -> 0 | H76: =($E$34*$J25)+('Incremental Rev Req'!$F$119*$J25)+IF(J25>0,$S$12,0) -> 0 | I76: =($F$31*$I25)+('Incremental Rev Req'!$F$119*$I25)+IF(I25>0,$U$12,0) -> 0 | J76: =($F$34*$J25)+('Incremental Rev Req'!$F$119*$J25)+IF(J25>0,$U$12,0) -> 0
B77: Total | C77: =SUMPRODUCT(C73:C76,$V$22:$V$25) -> 0 | D77: =SUMPRODUCT(D73:D76,$V$22:$V$25) -> 0 | E77: 0 | F77: 0 | G77: 0 | H77: 0 | I77: 0 | J77: 0
C80: 5-Year Average Monthly Basic Bundled Non-CARE Customer
C81: =C71 -> 2025-01-01 | E81: =E71 -> 2025-12-01 | G81: =G71 -> Authorized | I81: =I71 -> w/Pending
C82: Summer | D82: Winter | E82: Summer | F82: Winter | G82: Summer | H82: Winter | I82: Summer | J82: Winter
B83: =Zones -> 1 | C83: =IF($Q31>$I22,C$22*$I22+C$23*($Q31-$I22),$Q31*C$22)+('Incremental Rev Req'!$F$119*$Q31)+IF(Q31>0,$F$12,0) -> 43.75772659 | D83: =IF($R31>$J22,C$25*$J22+C$26*($R31-$J22),$R31*C$25)+('Incremental Rev Req'!$F$119*$R31)+IF(R31>0,$F$12,0) -> 83.63883355 | E83: =IF($Q31>$I22,D$22*$I22+D$23*($Q31-$I22),$Q31*D$22)+('Incremental Rev Req'!$F$119*$Q31)+IF(Q31>0,$F$12,0) -> 49.58863563 | F83: =IF($R31>$J22,D$25*$J22+D$26*($R31-$J22),$R31*D$25)+('Incremental Rev Req'!$F$119*$R31)+IF(R31>0,$F$12,0) -> 95.42069523 | G83: =IF($Q31>$I22,E$22*$I22+E$23*($Q31-$I22),$Q31*E$22)+('Incremental Rev Req'!$F$119*$Q31)+IF(Q31>0,$H$12,0) -> 41.40424025 | H83: =IF($R31>$J22,E$25*$J22+E$26*($R31-$J22),$R31*E$25)+('Incremental Rev Req'!$F$119*$R31)+IF(R31>0,$H$12,0) -> 78.89339487 | I83: =IF($Q31>$I22,F$22*$I22+F$23*($Q31-$I22),$Q31*F$22)+('Incremental Rev Req'!$F$119*$Q31)+IF(Q31>0,$J$12,0) -> 42.56387437 | J83: =IF($R31>$J22,F$25*$J22+F$26*($R31-$J22),$R31*F$25)+('Incremental Rev Req'!$F$119*$R31)+IF(R31>0,$J$12,0) -> 81.24702385
B84: 2 | C84: =IF($Q32>$I23,C$22*$I23+C$23*($Q32-$I23),$Q32*C$22)+('Incremental Rev Req'!$F$119*$Q32)+IF(Q32>0,$F$12,0) -> 36.92015937 | D84: =IF($R32>$J23,C$25*$J23+C$26*($R32-$J23),$R32*C$25)+('Incremental Rev Req'!$F$119*$R32)+IF(R32>0,$F$12,0) -> 92.91456298 | E84: =IF($Q32>$I23,D$22*$I23+D$23*($Q32-$I23),$Q32*D$22)+('Incremental Rev Req'!$F$119*$Q32)+IF(Q32>0,$F$12,0) -> 41.71214102 | F84: =IF($R32>$J23,D$25*$J23+D$26*($R32-$J23),$R32*D$25)+('Incremental Rev Req'!$F$119*$R32)+IF(R32>0,$F$12,0) -> 106.0842166 | G84: =IF($Q32>$I23,E$22*$I23+E$23*($Q32-$I23),$Q32*E$22)+('Incremental Rev Req'!$F$119*$Q32)+IF(Q32>0,$H$12,0) -> 34.98809791 | H84: =IF($R32>$J23,E$25*$J23+E$26*($R32-$J23),$R32*E$25)+('Incremental Rev Req'!$F$119*$R32)+IF(R32>0,$H$12,0) -> 87.61054978 | I84: =IF($Q32>$I23,F$22*$I23+F$23*($Q32-$I23),$Q32*F$22)+('Incremental Rev Req'!$F$119*$Q32)+IF(Q32>0,$J$12,0) -> 35.9433083 | J84: =IF($R32>$J23,F$25*$J23+F$26*($R32-$J23),$R32*F$25)+('Incremental Rev Req'!$F$119*$R32)+IF(R32>0,$J$12,0) -> 90.24182704
B85: 3 | C85: =IF($Q33>$I24,C$22*$I24+C$23*($Q33-$I24),$Q33*C$22)+('Incremental Rev Req'!$F$119*$Q33)+IF(Q33>0,$F$12,0) -> 37.74134822 | D85: =IF($R33>$J24,C$25*$J24+C$26*($R33-$J24),$R33*C$25)+('Incremental Rev Req'!$F$119*$R33)+IF(R33>0,$F$12,0) -> 124.966398 | E85: =IF($Q33>$I24,D$22*$I24+D$23*($Q33-$I24),$Q33*D$22)+('Incremental Rev Req'!$F$119*$Q33)+IF(Q33>0,$F$12,0) -> 42.6581046 | F85: =IF($R33>$J24,D$25*$J24+D$26*($R33-$J24),$R33*D$25)+('Incremental Rev Req'!$F$119*$R33)+IF(R33>0,$F$12,0) -> 142.9040967 | G85: =IF($Q33>$I24,E$22*$I24+E$23*($Q33-$I24),$Q33*E$22)+('Incremental Rev Req'!$F$119*$Q33)+IF(Q33>0,$H$12,0) -> 35.75867381 | H85: =IF($R33>$J24,E$25*$J24+E$26*($R33-$J24),$R33*E$25)+('Incremental Rev Req'!$F$119*$R33)+IF(R33>0,$H$12,0) -> 117.7489071 | I85: =IF($Q33>$I24,F$22*$I24+F$23*($Q33-$I24),$Q33*F$22)+('Incremental Rev Req'!$F$119*$Q33)+IF(Q33>0,$J$12,0) -> 36.73843541 | J85: =IF($R33>$J24,F$25*$J24+F$26*($R33-$J24),$R33*F$25)+('Incremental Rev Req'!$F$119*$R33)+IF(R33>0,$J$12,0) -> 121.3400038
B86: 0 | C86: =IF($Q34>$I25,C$22*$I25+C$23*($Q34-$I25),$Q34*C$22)+('Incremental Rev Req'!$F$119*$Q34)+IF(Q34>0,$F$12,0) -> 0 | D86: =IF($R34>$J25,C$25*$J25+C$26*($R34-$J25),$R34*C$25)+('Incremental Rev Req'!$F$119*$R34)+IF(R34>0,$F$12,0) -> 0 | E86: =IF($Q34>$I25,D$22*$I25+D$23*($Q34-$I25),$Q34*D$22)+('Incremental Rev Req'!$F$119*$Q34)+IF(Q34>0,$F$12,0) -> 0 | F86: =IF($R34>$J25,D$25*$J25+D$26*($R34-$J25),$R34*D$25)+('Incremental Rev Req'!$F$119*$R34)+IF(R34>0,$F$12,0) -> 0 | G86: =IF($Q34>$I25,E$22*$I25+E$23*($Q34-$I25),$Q34*E$22)+('Incremental Rev Req'!$F$119*$Q34)+IF(Q34>0,$H$12,0) -> 0 | H86: =IF($R34>$J25,E$25*$J25+E$26*($R34-$J25),$R34*E$25)+('Incremental Rev Req'!$F$119*$R34)+IF(R34>0,$H$12,0) -> 0 | I86: =IF($Q34>$I25,F$22*$I25+F$23*($Q34-$I25),$Q34*F$22)+('Incremental Rev Req'!$F$119*$Q34)+IF(Q34>0,$J$12,0) -> 0 | J86: =IF($R34>$J25,F$25*$J25+F$26*($R34-$J25),$R34*F$25)+('Incremental Rev Req'!$F$119*$R34)+IF(R34>0,$J$12,0) -> 0
B87: Total | C87: =SUMPRODUCT(C83:C86,$U$22:$U$25) -> 0 | D87: =SUMPRODUCT(D83:D86,$U$22:$U$25) -> 0 | E87: =SUMPRODUCT(E83:E86,$U$22:$U$25) -> 0 | F87: 0 | G87: 0 | H87: 0 | I87: 0 | J87: 0
C90: 5-Year Average Monthly Basic Bundled CARE Customer
C91: =C81 -> 2025-01-01 | E91: =E81 -> 2025-12-01 | G91: =G81 -> Authorized | I91: =I81 -> w/Pending
C92: Summer | D92: Winter | E92: Summer | F92: Winter | G92: Summer | H92: Winter | I92: Summer | J92: Winter
B93: =Zones -> 1 | C93: =IF($S31>$I22,C$31*$I22+C$32*($S31-$I22),$S31*C$31)+('Incremental Rev Req'!$F$119*$S31)+IF(S31>0,$Q$12,0) -> 28.1162024 | D93: =IF($T31>$J22,C$34*$J22+C$35*($T31-$J22),$T31*C$34)+('Incremental Rev Req'!$F$119*$T31)+IF(T31>0,$Q$12,0) -> 44.67188922 | E93: =IF($S31>$I22,D$31*$I22+D$32*($S31-$I22),$S31*D$31)+('Incremental Rev Req'!$F$119*$S31)+IF(S31>0,$Q$12,0) -> 29.45134346 | F93: =IF($T31>$J22,D$34*$J22+D$35*($T31-$J22),$T31*D$34)+('Incremental Rev Req'!$F$119*$T31)+IF(T31>0,$Q$12,0) -> 50.72007224 | G93: =IF($S31>$I22,E$31*$I22+E$32*($S31-$I22),$S31*E$31)+('Incremental Rev Req'!$F$119*$S31)+IF(S31>0,$S$12,0) -> 24.80385449 | H93: =IF($T31>$J22,E$34*$J22+E$35*($T31-$J22),$T31*E$34)+('Incremental Rev Req'!$F$119*$T31)+IF(T31>0,$S$12,0) -> 42.24458277 | I93: =IF($S31>$I22,F$31*$I22+F$32*($S31-$I22),$S31*F$31)+('Incremental Rev Req'!$F$119*$S31)+IF(S31>0,$U$12,0) -> 25.46620455 | J93: =IF($T31>$J22,F$34*$J22+F$35*($T31-$J22),$T31*F$34)+('Incremental Rev Req'!$F$119*$T31)+IF(T31>0,$U$12,0) -> 43.4620109
B94: 2 | C94: =IF($S32>$I23,C$31*$I23+C$32*($S32-$I23),$S32*C$31)+('Incremental Rev Req'!$F$119*$S32)+IF(S32>0,$Q$12,0) -> 29.77511645 | D94: =IF($T32>$J23,C$34*$J23+C$35*($T32-$J23),$T32*C$34)+('Incremental Rev Req'!$F$119*$T32)+IF(T32>0,$Q$12,0) -> 67.15190856 | E94: =IF($S32>$I23,D$31*$I23+D$32*($S32-$I23),$S32*D$31)+('Incremental Rev Req'!$F$119*$S32)+IF(S32>0,$Q$12,0) -> 31.2336932 | F94: =IF($T32>$J23,D$34*$J23+D$35*($T32-$J23),$T32*D$34)+('Incremental Rev Req'!$F$119*$T32)+IF(T32>0,$Q$12,0) -> 76.58529888 | G94: =IF($S32>$I23,E$31*$I23+E$32*($S32-$I23),$S32*E$31)+('Incremental Rev Req'!$F$119*$S32)+IF(S32>0,$S$12,0) -> 26.25604958 | H94: =IF($T32>$J23,E$34*$J23+E$35*($T32-$J23),$T32*E$34)+('Incremental Rev Req'!$F$119*$T32)+IF(T32>0,$S$12,0) -> 63.35725733 | I94: =IF($S32>$I23,F$31*$I23+F$32*($S32-$I23),$S32*F$31)+('Incremental Rev Req'!$F$119*$S32)+IF(S32>0,$U$12,0) -> 26.96465103 | J94: =IF($T32>$J23,F$34*$J23+F$35*($T32-$J23),$T32*F$34)+('Incremental Rev Req'!$F$119*$T32)+IF(T32>0,$U$12,0) -> 65.24697207
B95: 3 | C95: =IF($S33>$I24,C$31*$I24+C$32*($S33-$I24),$S33*C$31)+('Incremental Rev Req'!$F$119*$S33)+IF(S33>0,$Q$12,0) -> 39.27514978 | D95: =IF($T33>$J24,C$34*$J24+C$35*($T33-$J24),$T33*C$34)+('Incremental Rev Req'!$F$119*$T33)+IF(T33>0,$Q$12,0) -> 114.1516301 | E95: =IF($S33>$I24,D$31*$I24+D$32*($S33-$I24),$S33*D$31)+('Incremental Rev Req'!$F$119*$S33)+IF(S33>0,$Q$12,0) -> 41.44060051 | F95: =IF($T33>$J24,D$34*$J24+D$35*($T33-$J24),$T33*D$34)+('Incremental Rev Req'!$F$119*$T33)+IF(T33>0,$Q$12,0) -> 130.6366135 | G95: =IF($S33>$I24,E$31*$I24+E$32*($S33-$I24),$S33*E$31)+('Incremental Rev Req'!$F$119*$S33)+IF(S33>0,$S$12,0) -> 34.57227413 | H95: =IF($T33>$J24,E$34*$J24+E$35*($T33-$J24),$T33*E$34)+('Incremental Rev Req'!$F$119*$T33)+IF(T33>0,$S$12,0) -> 107.514034 | I95: =IF($S33>$I24,F$31*$I24+F$32*($S33-$I24),$S33*F$31)+('Incremental Rev Req'!$F$119*$S33)+IF(S33>0,$U$12,0) -> 35.54574144 | J95: =IF($T33>$J24,F$34*$J24+F$35*($T33-$J24),$T33*F$34)+('Incremental Rev Req'!$F$119*$T33)+IF(T33>0,$U$12,0) -> 110.8096928
B96: 0 | C96: =IF($S34>$I25,C$31*$I25+C$32*($S34-$I25),$S34*C$31)+('Incremental Rev Req'!$F$119*$S34)+IF(S34>0,$Q$12,0) -> 0 | D96: =IF($T34>$J25,C$34*$J25+C$35*($T34-$J25),$T34*C$34)+('Incremental Rev Req'!$F$119*$T34)+IF(T34>0,$Q$12,0) -> 0 | E96: =IF($S34>$I25,D$31*$I25+D$32*($S34-$I25),$S34*D$31)+('Incremental Rev Req'!$F$119*$S34)+IF(S34>0,$Q$12,0) -> 0 | F96: =IF($T34>$J25,D$34*$J25+D$35*($T34-$J25),$T34*D$34)+('Incremental Rev Req'!$F$119*$T34)+IF(T34>0,$Q$12,0) -> 0 | G96: =IF($S34>$I25,E$31*$I25+E$32*($S34-$I25),$S34*E$31)+('Incremental Rev Req'!$F$119*$S34)+IF(S34>0,$S$12,0) -> 0 | H96: =IF($T34>$J25,E$34*$J25+E$35*($T34-$J25),$T34*E$34)+('Incremental Rev Req'!$F$119*$T34)+IF(T34>0,$S$12,0) -> 0 | I96: =IF($S34>$I25,F$31*$I25+F$32*($S34-$I25),$S34*F$31)+('Incremental Rev Req'!$F$119*$S34)+IF(S34>0,$U$12,0) -> 0 | J96: =IF($T34>$J25,F$34*$J25+F$35*($T34-$J25),$T34*F$34)+('Incremental Rev Req'!$F$119*$T34)+IF(T34>0,$U$12,0) -> 0
B97: Total | C97: =SUMPRODUCT(C93:C96,$V$22:$V$25) -> 0 | D97: =SUMPRODUCT(D93:D96,$V$22:$V$25) -> 0 | E97: 0 | F97: 0 | G97: 0 | H97: 0 | I97: 0 | J97: 0

Sheet Hypothetical Summary
B1: Inputs: | F1: Assumptions:
F2: Current Effective Rates | H2: =SetUp!D4 -> 2025-12-01
C3: Baseline Region - (Residential bill) | D3: All | F3: Sales Forecast | H3: =Summary!I3 -> 2024
F4: Residential bill calculated using | H4: =Summary!I4 -> Schedule GR, Basic, Bundled, Single Family
D5: Revenue Change ($000) | F5: Non-CARE bill impact calculated with average summer usage of | J5: =IF($D$3="ALL",SUMPRODUCT('Hypothetical Res Bill Impact'!Q22:Q25,'Hypothetical Res Bill Impact'!U22:U25),VLOOKUP($D$3,'Hypothetical Res Bill Impact'!$P$22:$T$25,2,FALSE)) -> 20.15916452 | K5: therms per month
C6: Procurement | F6: Non-CARE bill impact calculated with average winter usage of | J6: =IF($D$3="ALL",SUMPRODUCT('Hypothetical Res Bill Impact'!R22:R25,'Hypothetical Res Bill Impact'!U22:U25),VLOOKUP(D$3,'Hypothetical Res Bill Impact'!$P$22:$T$25,3,FALSE)) -> 57.12475505 | K6: therms per month
C7: Customer Costs | F7: CARE bill impact calculated with average summer usage of | J7: =IF($D$3="ALL",SUMPRODUCT('Hypothetical Res Bill Impact'!S22:S25,'Hypothetical Res Bill Impact'!V22:V25),VLOOKUP($D$3,'Hypothetical Res Bill Impact'!$P$22:$T$25,4,FALSE)) -> 20.567247 | K7: therms per month
C8: Medium Pressure Distribution | F8: CARE bill impact calculated with average winter usage of | J8: =IF($D$3="ALL",SUMPRODUCT('Hypothetical Res Bill Impact'!T22:T25,'Hypothetical Res Bill Impact'!V22:V25),VLOOKUP($D$3,'Hypothetical Res Bill Impact'!$P$22:$T$25,5,FALSE)) -> 59.75775507 | K8: therms per month
C9: High Pressure Distribution | F9: Average monthly usage is for all customers (Non-CARE and CARE) based on seasonal usage in | K9: =Summary!L9 -> 2025
C10: Local Transmission | F10: Summer season | H10: =Summary!I10 -> 6 | I10: months
C11: Storage | F11: Winter Season | H11: =Summary!I11 -> 6 | I11: months
C12: GHG Revenue
C13: Other Balancing Acounts
C14: NGV Costs
C15: Backbone Transmisson
C16: Public Purpose Programs
C20: Total | D20: =SUM(D6:D18) -> 0
B25: Outputs:
D26: (A) | E26: (B) | F26: (C) | G26: (C)/(A) | H26: (C)/(B) | L26: (A) | M26: (B) | N26: (C) | O26: (C)/(A) | P26: (C)/(B)
B27: Bundled Average Rates - ¢/therm | J27: Total System (Bundled and Unbundled) Average Rates - ¢/therm
B28: Customer Group | D28: =Summary!D24 -> 2025-01-01 | E28: =Summary!E24 -> 2025-12-01 | F28: Proposed | G28: =Summary!H24 -> % Change over 1/1/2025 | H28: =Summary!I24 -> % Change over 12/1/2025 | J28: Customer Group | L28: =D28 -> 2025-01-01 | M28: =E28 -> 2025-12-01 | N28: Proposed | O28: =G28 -> % Change over 1/1/2025 | P28: =H28 -> % Change over 12/1/2025
B29: Residential | D29: 168.7702421 | E29: ='Hypothetical SAR and RAR'!G28 -> 193.265685 | F29: ='Hypothetical SAR and RAR'!H28 -> 193.265685 | G29: =$F29/D29-1 -> 0.1451407705 | H29: =$F29/E29-1 -> 0 | J29: Residential | L29: 168.3646578 | M29: ='Hypothetical SAR and RAR'!R28 -> 192.8601008 | N29: ='Hypothetical SAR and RAR'!S28 -> 192.8601008 | O29: =$N29/L29-1 -> 0.1454904093 | P29: =$N29/M29-1 -> 0
B30: System | D30: 93.21514344 | E30: ='Hypothetical SAR and RAR'!G29 -> 104.9435197 | F30: ='Hypothetical SAR and RAR'!H29 -> 104.9435197 | G30: =$F30/D30-1 -> 0.1258205033 | H30: =$F30/E30-1 -> 0 | J30: System | L30: 71.01848519 | M30: ='Hypothetical SAR and RAR'!R29 -> 82.74686146 | N30: ='Hypothetical SAR and RAR'!S29 -> 82.74686146 | O30: =$N30/L30-1 -> 0.1651454017 | P30: =$N30/M30-1 -> 0
B33: Basic Bundled Residential Monthly Average Bills
D34: =$D$28 -> 2025-01-01 | E34: =$E$28 -> 2025-12-01 | F34: =$F$28 -> Proposed | G34: =$G$28 -> % Change over 1/1/2025 | H34: =$H$28 -> % Change over 12/1/2025
B35: Non-CARE | D35: =((D41*$H$10)+(D47*$H$11))/12 -> 64.04168336 | E35: =((E41*$H$10)+(E47*$H$11))/12 -> 72.21348614 | F35: 72.21348614 | G35: =$F35/D35-1 -> 0.1276013113 | H35: 0
B36: CARE | D36: =((D42*$H$10)+(D48*$H$11))/12 -> 52.68300531 | E36: 59.5112309 | F36: 59.5112309 | G36: 0.1296096445 | H36: 0
B37: Total | D37: =((D43*$H$10)+(D49*$H$11))/12 -> 61.02585439 | E37: 68.8409256 | F37: 68.8409256 | G37: 0.1280616435 | H37: 0 | J37: ='Hypothetical Res Bill Impact'!P18 -> Basic Bundled
J38: ='Hypothetical Res Bill Impact'!P19 -> 2024 Recorded Data - Average Monthly Usage - ALL-BASIC th
B39: Basic Bundled Residential Monthly Average Bills - Summer | J39: Climate Zone | K39: Summer | L39: Winter | M39: Summer | N39: Winter
D40: =D34 -> 2025-01-01 | E40: =E28 -> 2025-12-01 | F40: =F28 -> Proposed | G40: =G28 -> % Change over 1/1/2025 | H40: =$H$28 -> % Change over 12/1/2025 | K40: Non-CARE | M40: CARE
B41: Non-CARE | D41: =IF($D$3="All",'Hypothetical Res Bill Impact'!$C$47,(VLOOKUP($D$3,'Hypothetical Res Bill Impact'!$B$43:$J$46,2,FALSE))) -> 37.22767767 | E41: =IF($D$3="All",'Hypothetical Res Bill Impact'!$E$47,(VLOOKUP($D$3,'Hypothetical Res Bill Impact'!$B$43:$J$46,4,FALSE))) -> 41.70331268 | F41: =IF($D$3="All",'Hypothetical Res Bill Impact'!$G$47,(VLOOKUP($D$3,'Hypothetical Res Bill Impact'!$B$43:$J$46,6,FALSE))) -> 41.70331268 | G41: =$F41/D41-1 -> 0.1202233202 | H41: 0 | J41: =Zones -> 1 | K41: ='Hypothetical Res Bill Impact'!Q22 -> 22.68195339 | L41: ='Hypothetical Res Bill Impact'!R22 -> 45.72507267 | M41: ='Hypothetical Res Bill Impact'!S22 -> 17.60404118 | N41: ='Hypothetical Res Bill Impact'!T22 -> 33.00381282
B42: CARE | D42: =IF($D$3="All",'Hypothetical Res Bill Impact'!$C$57,(VLOOKUP($D$3,'Hypothetical Res Bill Impact'!$B$53:$J$56,2,FALSE))) -> 30.06825835 | E42: =IF($D$3="All",'Hypothetical Res Bill Impact'!$E$57,(VLOOKUP($D$3,'Hypothetical Res Bill Impact'!$B$53:$J$56,4,FALSE))) -> 33.73449306 | F42: =IF($D$3="All",'Hypothetical Res Bill Impact'!$G$57,(VLOOKUP($D$3,'Hypothetical Res Bill Impact'!$B$53:$J$56,6,FALSE))) -> 33.73449306 | G42: 0.1219303981 | H42: 0 | J42: 2 | K42: ='Hypothetical Res Bill Impact'!Q23 -> 19.24320082 | L42: ='Hypothetical Res Bill Impact'!R23 -> 49.58569166 | M42: ='Hypothetical Res Bill Impact'!S23 -> 18.36758446 | N42: ='Hypothetical Res Bill Impact'!T23 -> 46.09184154
B43: Total | D43: =D41*(1-'Hypothetical SAR and RAR'!$AA$16)+D42*'Hypothetical SAR and RAR'!$AA$16 -> 35.32678884 | E43: =E41*(1-'Hypothetical SAR and RAR'!$AA$16)+E42*'Hypothetical SAR and RAR'!$AA$16 -> 39.58752095 | F43: =F41*(1-'Hypothetical SAR and RAR'!$AA$16)+F42*'Hypothetical SAR and RAR'!$AA$16 -> 39.58752095 | G43: 0.1206090972 | H43: 0 | J43: 3 | K43: ='Hypothetical Res Bill Impact'!Q24 -> 18.94798314 | L43: ='Hypothetical Res Bill Impact'!R24 -> 71.48580122 | M43: ='Hypothetical Res Bill Impact'!S24 -> 23.35905116 | N43: ='Hypothetical Res Bill Impact'!T24 -> 81.14343361
J44: 0 | K44: ='Hypothetical Res Bill Impact'!Q25 -> 0 | L44: ='Hypothetical Res Bill Impact'!R25 -> 0 | M44: ='Hypothetical Res Bill Impact'!S25 -> 0 | N44: ='Hypothetical Res Bill Impact'!T25 -> 0
B45: Basic Bundled Residential Monthly Average Bills - Winter
D46: =$D$28 -> 2025-01-01 | E46: =$E$28 -> 2025-12-01 | F46: =F40 -> Proposed | G46: =G28 -> % Change over 1/1/2025 | H46: =$H$28 -> % Change over 12/1/2025
B47: Non-CARE | D47: =IF($D$3="All",'Hypothetical Res Bill Impact'!$D$47,(VLOOKUP($D$3,'Hypothetical Res Bill Impact'!$B$43:$J$46,3,FALSE))) -> 90.85568906 | E47: =IF($D$3="All",'Hypothetical Res Bill Impact'!$F$47,(VLOOKUP($D$3,'Hypothetical Res Bill Impact'!$B$43:$J$46,5,FALSE))) -> 102.7236596 | F47: =IF($D$3="All",'Hypothetical Res Bill Impact'!$H$47,(VLOOKUP($D$3,'Hypothetical Res Bill Impact'!$B$43:$J$46,7,FALSE))) -> 102.7236596 | G47: =$F47/D47-1 -> 0.1306244074 | H47: 0
B48: CARE | D48: =IF($D$3="All",'Hypothetical Res Bill Impact'!$D$57,(VLOOKUP($D$3,'Hypothetical Res Bill Impact'!$B$53:$J$56,3,FALSE))) -> 75.29775227 | E48: =IF($D$3="All",'Hypothetical Res Bill Impact'!$F$57,(VLOOKUP($D$3,'Hypothetical Res Bill Impact'!$B$53:$J$56,5,FALSE))) -> 85.28796874 | F48: =IF($D$3="All",'Hypothetical Res Bill Impact'!$H$57,(VLOOKUP($D$3,'Hypothetical Res Bill Impact'!$B$53:$J$56,7,FALSE))) -> 85.28796874 | G48: 0.1326761579 | H48: 0
B49: Total | D49: =D47*(1-'Hypothetical SAR and RAR'!$AA$16)+D48*'Hypothetical SAR and RAR'!$AA$16 -> 86.72491995 | E49: =E47*(1-'Hypothetical SAR and RAR'!$AA$16)+E48*'Hypothetical SAR and RAR'!$AA$16 -> 98.09433026 | F49: =F47*(1-'Hypothetical SAR and RAR'!$AA$16)+F48*'Hypothetical SAR and RAR'!$AA$16 -> 98.09433026 | G49: 0.1310973861 | H49: 0
B52: Basic Bundled Essential Use Residential Monthly Average Bills
D53: =D46 -> 2025-01-01 | E53: =E46 -> 2025-12-01 | F53: =F46 -> Proposed | G53: =$G$28 -> % Change over 1/1/2025 | H53: % Change over Authorized
B54: Essential Use - Non-CARE | D54: =((D60*$H$10)+(D66*$H$11))/12 -> 50.47713677 | E54: =((E60*$H$10)+(E66*$H$11))/12 -> 56.74519266 | F54: 56.74519266 | G54: =$F54/D54-1 -> 0.1241761377 | H54: 0
B55: Essential Use - CARE | D55: =((D61*$H$10)+(D67*$H$11))/12 -> 41.10691319 | E55: 46.29194314 | F55: 46.29194314 | G55: 0.1261352301 | H55: 0
B56: Total | D56: =((D62*$H$10)+(D68*$H$11))/12 -> 47.98925996 | E56: 53.96976293 | F56: 53.96976293 | G56: 0.1246216961 | H56: 0
J57: ='Res Bill Impact'!H19 -> Essential Usage
B58: Basic Bundled Essential Use Residential Monthly Average Bills - Summer | J58: Monthly Tier 1 Baseline Allowance -BASIC (th)
D59: =D53 -> 2025-01-01 | E59: =E53 -> 2025-12-01 | F59: =F53 -> Proposed | G59: =$G$28 -> % Change over 1/1/2025 | H59: % Change over Authorized | J59: Climate Zone | K59: Summer | L59: Winter
B60: Essential Use - Non-CARE | D60: =IF($D$3="All",'Hypothetical Res Bill Impact'!C67,(VLOOKUP($D$3,'Hypothetical Res Bill Impact'!$B$63:$J$66,2,FALSE))) -> 23.83286634 | E60: =IF($D$3="All",'Hypothetical Res Bill Impact'!E67,(VLOOKUP($D$3,'Hypothetical Res Bill Impact'!$B$63:$J$66,4,FALSE))) -> 26.42857634 | F60: =IF($D$3="All",'Hypothetical Res Bill Impact'!G67,(VLOOKUP($D$3,'Hypothetical Res Bill Impact'!$B$63:$J$66,6,FALSE))) -> 26.42857634 | G60: =$F60/D60-1 -> 0.1089130432 | H60: 0 | J60: =Zones -> 1 | K60: ='Hypothetical Res Bill Impact'!I22 -> 13 | L60: ='Hypothetical Res Bill Impact'!J22 -> 37.33333333
B61: Essential Use - CARE | D61: =IF($D$3="All",'Hypothetical Res Bill Impact'!C77,(VLOOKUP($D$3,'Hypothetical Res Bill Impact'!$B$73:$J$76,2,FALSE))) -> 18.86105754 | E61: =IF($D$3="All",'Hypothetical Res Bill Impact'!E77,(VLOOKUP($D$3,'Hypothetical Res Bill Impact'!$B$73:$J$76,4,FALSE))) -> 20.93762554 | F61: =IF($D$3="All",'Hypothetical Res Bill Impact'!G77,(VLOOKUP($D$3,'Hypothetical Res Bill Impact'!$B$73:$J$76,6,FALSE))) -> 20.93762554 | G61: 0.1100981743 | H61: 0 | J61: 2 | K61: ='Hypothetical Res Bill Impact'!I23 -> 13 | L61: ='Hypothetical Res Bill Impact'!J23 -> 42.16666667
B62: Total | D62: =D60*(1-'Hypothetical SAR and RAR'!$AA$16)+D61*'Hypothetical SAR and RAR'!$AA$16 -> 22.51280735 | E62: =E60*(1-'Hypothetical SAR and RAR'!$AA$16)+E61*'Hypothetical SAR and RAR'!$AA$16 -> 24.97068059 | F62: =F60*(1-'Hypothetical SAR and RAR'!$AA$16)+F61*'Hypothetical SAR and RAR'!$AA$16 -> 24.97068059 | G62: 0.1091766652 | H62: 0 | J62: 3 | K62: ='Hypothetical Res Bill Impact'!I24 -> 13 | L62: ='Hypothetical Res Bill Impact'!J24 -> 65
J63: 0 | K63: ='Hypothetical Res Bill Impact'!I25 -> 0 | L63: ='Hypothetical Res Bill Impact'!J25 -> 0
B64: Basic Bundled Essential Use Residential Monthly Average Bills - Winter
D65: =D59 -> 2025-01-01 | E65: =E59 -> 2025-12-01 | F65: =F59 -> Proposed | G65: =$G$28 -> % Change over 1/1/2025 | H65: % Change over Authorized
B66: Essential Use - Non-CARE | D66: =IF($D$3="All",'Hypothetical Res Bill Impact'!D67,(VLOOKUP($D$3,'Hypothetical Res Bill Impact'!$B$63:$J$66,3,FALSE))) -> 77.12140721 | E66: =IF($D$3="All",'Hypothetical Res Bill Impact'!F67,(VLOOKUP($D$3,'Hypothetical Res Bill Impact'!$B$63:$J$66,5,FALSE))) -> 87.06180898 | F66: =IF($D$3="All",'Hypothetical Res Bill Impact'!H67,(VLOOKUP($D$3,'Hypothetical Res Bill Impact'!$B$63:$J$66,7,FALSE))) -> 87.06180898 | G66: =$F66/D66-1 -> 0.1288928993 | H66: 0
B67: Essential Use - CARE | D67: =IF($D$3="All",'Hypothetical Res Bill Impact'!D77,(VLOOKUP($D$3,'Hypothetical Res Bill Impact'!$B$73:$J$76,3,FALSE))) -> 63.35276884 | E67: =IF($D$3="All",'Hypothetical Res Bill Impact'!F77,(VLOOKUP($D$3,'Hypothetical Res Bill Impact'!$B$73:$J$76,5,FALSE))) -> 71.64626075 | F67: =IF($D$3="All",'Hypothetical Res Bill Impact'!H77,(VLOOKUP($D$3,'Hypothetical Res Bill Impact'!$B$73:$J$76,7,FALSE))) -> 71.64626075 | G67: 0.1309096992 | H67: 0
B68: Total | D68: =D66*(1-'Hypothetical SAR and RAR'!$AA$16)+D67*'Hypothetical SAR and RAR'!$AA$16 -> 73.46571257 | E68: =E66*(1-'Hypothetical SAR and RAR'!$AA$16)+E67*'Hypothetical SAR and RAR'!$AA$16 -> 82.96884528 | F68: =F66*(1-'Hypothetical SAR and RAR'!$AA$16)+F67*'Hypothetical SAR and RAR'!$AA$16 -> 82.96884528 | G68: 0.129354666 | H68: 0
B71: Basic Bundled Typical Residential Monthly Average Bills
D72: =D65 -> 2025-01-01 | E72: =E65 -> 2025-12-01 | F72: =F65 -> Proposed | G72: =$G$28 -> % Change over 1/1/2025 | H72: % Change over Authorized
B73: 5-Year Average Usage - Non-CARE | D73: =((D79*$H$10)+(D85*$H$11))/12 -> 69.42988816 | E73: =((E79*$H$10)+(E85*$H$11))/12 -> 78.35791069 | F73: 78.35791069 | G73: =$F73/D73-1 -> 0.1285904784 | H73: 0
C74: 5-Year Average Usage - CARE | D74: =((D80*$H$10)+(D86*$H$11))/12 -> 56.51524804 | E74: 63.88658661 | F74: 63.88658661 | G74: 0.1304309692 | H74: 0
B75: Total | D75: =((D81*$H$10)+(D87*$H$11))/12 -> 66.00093757 | E75: 74.51564682 | F75: 74.51564682 | G75: 0.1290089135 | H75: 0 | J75: ='Hypothetical Res Bill Impact'!P27 -> Typical Bundled
J76: ='Hypothetical Res Bill Impact'!P28 -> 2020-2024 Recorded Data - Average Monthly Usage - ALL-BASIC th
B77: Basic Bundled Typical Residential Monthly Average Bills - Summer | J77: Climate Zone | K77: Summer | L77: Winter | M77: Summer | N77: Winter
D78: =D72 -> 2025-01-01 | E78: =E72 -> 2025-12-01 | F78: =F72 -> Proposed | G78: =$G$28 -> % Change over 1/1/2025 | H78: % Change over Authorized | K78: Non-CARE | M78: CARE
B79: 5-Year Average Usage - Non-CARE | D79: =IF($D$3="All",'Hypothetical Res Bill Impact'!C87,(VLOOKUP($D$3,'Hypothetical Res Bill Impact'!$B$83:$J$86,2,FALSE))) -> 38.42480467 | E79: =IF($D$3="All",'Hypothetical Res Bill Impact'!E87,(VLOOKUP($D$3,'Hypothetical Res Bill Impact'!$B$83:$J$86,4,FALSE))) -> 43.06845317 | F79: =IF($D$3="All",'Hypothetical Res Bill Impact'!G87,(VLOOKUP($D$3,'Hypothetical Res Bill Impact'!$B$83:$J$86,6,FALSE))) -> 43.06845317 | G79: =$F79/D79-1 -> 0.1208502826 | H79: 0 | J79: =Zones -> 1 | K79: ='Hypothetical Res Bill Impact'!Q31 -> 23.11491818 | L79: ='Hypothetical Res Bill Impact'!R31 -> 49.40758765 | M79: ='Hypothetical Res Bill Impact'!S31 -> 17.51725705 | N79: ='Hypothetical Res Bill Impact'!T31 -> 34.67605291
C80: 5-Year Average Usage - CARE | D80: =IF($D$3="All",'Hypothetical Res Bill Impact'!C97,(VLOOKUP($D$3,'Hypothetical Res Bill Impact'!$B$93:$J$96,2,FALSE))) -> 30.80261589 | E80: =IF($D$3="All",'Hypothetical Res Bill Impact'!E97,(VLOOKUP($D$3,'Hypothetical Res Bill Impact'!$B$93:$J$96,4,FALSE))) -> 34.57301432 | F80: =IF($D$3="All",'Hypothetical Res Bill Impact'!G97,(VLOOKUP($D$3,'Hypothetical Res Bill Impact'!$B$93:$J$96,6,FALSE))) -> 34.57301432 | G80: 0.1224051375 | H80: 0 | J80: 2 | K80: ='Hypothetical Res Bill Impact'!Q32 -> 19.56195699 | L80: ='Hypothetical Res Bill Impact'!R32 -> 55.33374712 | M80: ='Hypothetical Res Bill Impact'!S32 -> 18.5317823 | N80: ='Hypothetical Res Bill Impact'!T32 -> 51.14470611
B81: Total | D81: =D79*(1-'Hypothetical SAR and RAR'!$AA$16)+D80*'Hypothetical SAR and RAR'!$AA$16 -> 36.40104648 | E81: =E79*(1-'Hypothetical SAR and RAR'!$AA$16)+E80*'Hypothetical SAR and RAR'!$AA$16 -> 40.8128394 | F81: =F79*(1-'Hypothetical SAR and RAR'!$AA$16)+F80*'Hypothetical SAR and RAR'!$AA$16 -> 40.8128394 | G81: 0.1211996179 | H81: 0 | J81: 3 | K81: ='Hypothetical Res Bill Impact'!Q33 -> 19.98866609 | L81: ='Hypothetical Res Bill Impact'!R33 -> 77.21481657 | M81: ='Hypothetical Res Bill Impact'!S33 -> 24.34162135 | N81: ='Hypothetical Res Bill Impact'!T33 -> 87.23331811
J82: 0 | K82: ='Hypothetical Res Bill Impact'!Q34 -> 0 | L82: ='Hypothetical Res Bill Impact'!R34 -> 0 | M82: ='Hypothetical Res Bill Impact'!S34 -> 0 | N82: ='Hypothetical Res Bill Impact'!T34 -> 0
B83: Basic Bundled Typical Residential Monthly Average Bills - Winter
D84: =D78 -> 2025-01-01 | E84: =E78 -> 2025-12-01 | F84: =F78 -> Proposed | G84: =$G$28 -> % Change over 1/1/2025 | H84: % Change over Authorized
B85: 5-Year Average Usage - Non-CARE | D85: =IF($D$3="All",'Hypothetical Res Bill Impact'!D87,(VLOOKUP($D$3,'Hypothetical Res Bill Impact'!$B$83:$J$86,3,FALSE))) -> 100.4349717 | E85: =IF($D$3="All",'Hypothetical Res Bill Impact'!F87,(VLOOKUP($D$3,'Hypothetical Res Bill Impact'!$B$83:$J$86,5,FALSE))) -> 113.6473682 | F85: =IF($D$3="All",'Hypothetical Res Bill Impact'!H87,(VLOOKUP($D$3,'Hypothetical Res Bill Impact'!$B$83:$J$86,7,FALSE))) -> 113.6473682 | G85: =$F85/D85-1 -> 0.1315517528 | H85: 0
C86: 5-Year Average Usage - CARE | D86: =IF($D$3="All",'Hypothetical Res Bill Impact'!D97,(VLOOKUP($D$3,'Hypothetical Res Bill Impact'!$B$93:$J$96,3,FALSE))) -> 82.22788019 | E86: =IF($D$3="All",'Hypothetical Res Bill Impact'!F97,(VLOOKUP($D$3,'Hypothetical Res Bill Impact'!$B$93:$J$96,5,FALSE))) -> 93.20015891 | F86: =IF($D$3="All",'Hypothetical Res Bill Impact'!H97,(VLOOKUP($D$3,'Hypothetical Res Bill Impact'!$B$93:$J$96,7,FALSE))) -> 93.20015891 | G86: 0.1334374509 | H86: 0
B87: Total | D87: =D85*(1-'Hypothetical SAR and RAR'!$AA$16)+D86*'Hypothetical SAR and RAR'!$AA$16 -> 95.60082866 | E87: =E85*(1-'Hypothetical SAR and RAR'!$AA$16)+E86*'Hypothetical SAR and RAR'!$AA$16 -> 108.2184542 | F87: =F85*(1-'Hypothetical SAR and RAR'!$AA$16)+F86*'Hypothetical SAR and RAR'!$AA$16 -> 108.2184542 | G87: 0.131982387 | H87: 0

Sheet Hypothetical SAR and RAR
C2: Revenue Change ($000)
B3: =RevRecoveryMechanisms -> Core Procurement | C3: ='Hypothetical Summary'!D6 -> 0 | G3: Allocation
B4: Allocated Base Margin | C4: ='Hypothetical Summary'!D7 -> 0 | G4: =TRANSPOSE(RevRecoveryMechanisms) -> Core Procurement | H4: Allocated Base Margin | I4: Distribution | J4: ECPT adjusted | K4: Local Transmission | L4: SGIP | M4: GHG End User | N4: Public Purpose Programs | O4: Backbone Transmission | P4: 47% Res (LUAF, Other) | Q4: ECPT | R4: EPAM | S4: CFCA | T4: Non-Residential
B5: Distribution | C5: ='Hypothetical Summary'!D8 -> 0 | F5: Residential | G5: ='SAR and RAR'!G5 -> 0.6660172187 | H5: ='SAR and RAR'!H5 -> 0.708839031 | I5: ='SAR and RAR'!I5 -> 0.6095871975 | J5: ='SAR and RAR'!J5 -> 0.4012431755 | K5: ='SAR and RAR'!K5 -> 0.4207017225 | L5: ='SAR and RAR'!L5 -> 0.3707585355 | M5: ='SAR and RAR'!M5 -> 0.5437255755 | N5: ='SAR and RAR'!N5 -> 0.5526432166 | O5: ='SAR and RAR'!O5 -> 0 | P5: ='SAR and RAR'!P5 -> 0.4735382425 | Q5: ='SAR and RAR'!Q5 -> 0.2583309048 | R5: ='SAR and RAR'!R5 -> 0.708839031 | S5: ='SAR and RAR'!S5 -> 0.7082921542 | T5: ='SAR and RAR'!T5 -> 0
B6: ECPT adjusted | C6: ='Hypothetical Summary'!D9 -> 0
B7: Local Transmission | C7: ='Hypothetical Summary'!D10 -> 0 | G7: Revenue Change ($000) - System
B8: SGIP | C8: ='Hypothetical Summary'!D11 -> 0 | F8: w/Proposed | G8: =TRANSPOSE(RevRecoveryMechanisms) -> Core Procurement | H8: Allocated Base Margin | I8: Distribution | J8: ECPT adjusted | K8: Local Transmission | L8: SGIP | M8: GHG End User | N8: Public Purpose Programs | O8: Backbone Transmission | P8: 47% Res (LUAF, Other) | Q8: ECPT | R8: EPAM | S8: CFCA | T8: Non-Residential
B9: GHG End User | C9: ='Hypothetical Summary'!D12 -> 0 | F9: Residential | G9: =G5*G10 -> 0 | H9: =H5*H10 -> 0 | I9: =I5*I10 -> 0 | J9: 0 | K9: 0 | L9: 0 | M9: 0 | N9: 0 | O9: =O5*O10 -> 0 | P9: 0 | Q9: =Q5*Q10 -> 0 | R9: =R5*R10 -> 0 | S9: =S5*S10 -> 0 | T9: 0 | U9: =SUM(G9:T9) -> 0 | V9: Check
B10: Public Purpose Programs | C10: ='Hypothetical Summary'!D13 -> 0 | F10: Total System | G10: =C3 -> 0 | H10: =C4 -> 0 | I10: =C5 -> 0 | J10: =C6 -> 0 | K10: =C7 -> 0 | L10: =C8 -> 0 | M10: =C9 -> 0 | N10: =C10 -> 0 | O10: =C11 -> 0 | P10: =C12 -> 0 | Q10: =C13 -> 0 | R10: =C14 -> 0 | S10: =C15 -> 0 | T10: =C16 -> 0 | U10: =SUM(G10:T10) -> 0 | V10: =U10-C17 -> 0
B11: Backbone Transmission | C11: ='Hypothetical Summary'!D14 -> 0
B12: 47% Res (LUAF, Other) | C12: ='Hypothetical Summary'!D15 -> 0
B13: ECPT | C13: ='Hypothetical Summary'!D16 -> 0
B14: EPAM | C14: ='Hypothetical Summary'!D17 -> 0
B15: CFCA | C15: ='Hypothetical Summary'!D18 -> 0 | AA15: w/Proposed
B16: Non-Residential | C16: ='Hypothetical Summary'!D14 -> 0 | U16: Total UDC w/Proposed | W16: Commodity w/Proposed | Z16: % of CARE Sales (Bundled) | AA16: ='SAR and RAR'!AC15 -> 0.2655087991
B17: Total | C17: =SUM(C3:C16) -> 0 | G17: Revenue Split - Bundled | U17: Bundled Revenue Change | W17: Bundled Revenue Change
B18: CPUC Fee | C18: ='SAR and RAR'!D18 -> 0.0025 | G18: =TRANSPOSE(RevRecoveryMechanisms) -> Core Procurement | H18: Allocated Base Margin | I18: Distribution | J18: ECPT adjusted | K18: Local Transmission | L18: SGIP | M18: GHG End User | N18: Public Purpose Programs | O18: Backbone Transmission | P18: 47% Res (LUAF, Other) | Q18: ECPT | R18: EPAM | S18: CFCA | T18: Non-Residential | U18: Total | W18: Total
F19: Residential | G19: 1 | H19: 1 | I19: 1 | J19: 1 | K19: 1 | L19: 1 | M19: 1 | N19: 1 | O19: 1 | P19: 1 | Q19: 1 | R19: 1 | S19: 1 | T19: 0 | U19: =SUMPRODUCT(H9:S9,H19:S19) -> 0 | W19: =SUMPRODUCT(G9,G19) -> 0
F20: Total System | G20: 1 | H20: 1 | I20: 1 | J20: 1 | K20: 1 | L20: 1 | M20: 1 | N20: 1 | O20: 1 | P20: 1 | Q20: 1 | R20: 1 | S20: 1 | T20: 0 | U20: =SUMPRODUCT(H10:S10,H20:S20) -> 0 | W20: =SUMPRODUCT(G10,G20) -> 0
C22: ='SAR and RAR'!C22 -> CAP D.24-07-009 SALES DETERMINANTS SYSTEM NET (MTH) Average year Throughput | D22: ='SAR and RAR'!D22 -> CAP D.24-07-009 SALES DETERMINANTS BUNDLED (MTH)Average year throughput
B23: Residential | C23: ='SAR and RAR'!C23 -> 2185982.983 | D23: ='SAR and RAR'!D23 -> 2158593.606
B24: Total System | C24: ='SAR and RAR'!C24 -> 8461949.161 | D24: ='SAR and RAR'!D24 -> 3032625.674
F26: Bundled | P26: System (Bundled and Unbundled)
F27: =Summary!I3&" Authorized Sales Forecast" -> 2024 Authorized Sales Forecast | G27: ='SAR and RAR'!G27 -> 12/01/2025 Avg Rates(sales adj.) | H27: Proposed Avg Rates | I27: % Change | Q27: =F27 -> 2024 Authorized Sales Forecast | R27: =G27 -> 12/01/2025 Avg Rates(sales adj.) | S27: Proposed Avg Rates | T27: % Change
E28: Residential | F28: ='SAR and RAR'!F28 -> 2158593.606 | G28: 193.265685 | H28: =(U19/C23*100)+(W19/D23*100)+G28 -> 193.265685 | I28: =H28/G28-1 -> 0 | P28: Residential | Q28: ='SAR and RAR'!Q28 -> 2185982.983 | R28: 192.8601008 | S28: =U9/Q28*100+R28 -> 192.8601008 | T28: =S28/R28-1 -> 0
E29: Total System | F29: ='SAR and RAR'!F29 -> 3032625.674 | G29: 104.9435197 | H29: =(U20/C24*100)+(W20/D24*100)+G29 -> 104.9435197 | I29: =H29/G29-1 -> 0 | P29: Total System | Q29: ='SAR and RAR'!Q29 -> 8461949.161 | R29: 82.74686146 | S29: =U10/Q29*100+R29 -> 82.74686146 | T29: =S29/R29-1 -> 0

Sheet Hypothetical Res Bill Impact
E3: Schedule GR | P3: Schedule GR [CARE]
E4: ='Res Bill Impact'!E4 -> 2024 | F4: ='Res Bill Impact'!F4 -> 2025-12-01 | G4: ='Res Bill Impact'!G4 -> 2025-12-01 | H4: Proposed | I4: Proposed | P4: =SalesForecastYear -> 2024 | Q4: ='Res Bill Impact'!Q4 -> 2025-12-01 | R4: ='Res Bill Impact'!R4 -> 2025-12-01 | S4: Proposed | T4: Proposed
E5: Sales Forecast | F5: Rates | G5: Revenue | H5: Rates | I5: Revenue | P5: Sales Forecast | Q5: Rates | R5: Revenue | S5: Rates | T5: Revenue
D7: Baseline | E7: ='Res Bill Impact'!E7 -> 1106153.307 | F7: ='Res Bill Impact'!F7 -> 1.645852026 | G7: =F7*E7 -> 1820564.661 | H7: =(Y10/SUM(SUM(E7),F9/F7*SUM(E9),SUM(P7)*(1+(Q7/F7-1)),SUM(P9)*(1+(Q9/F9-1))*F9/F7)) -> 1.645852026 | I7: =E7*H7 -> 1820564.661 | O7: Baseline | P7: ='Res Bill Impact'!P7 -> 408227.7802 | Q7: ='Res Bill Impact'!Q7 -> 1.300394272 | R7: ='Res Bill Impact'!R7 -> 530857.0672 | S7: =H7*(1+(Q7/F7-1)) -> 1.300394272 | T7: =P7*S7 -> 530857.0672 | X7: Bundled Residential Rev Req
X8: Current | Y8: =(SUM(G7:G9)+SUM(R7:R9)) -> 3702555.056
D9: Non-Baseline | E9: ='Res Bill Impact'!E9 -> 490559.9158 | F9: ='Res Bill Impact'!F9 -> 2.131092026 | G9: =F9*E9 -> 1045428.325 | H9: =F9/F$7*H$7 -> 2.131092026 | I9: =E9*H9 -> 1045428.325 | O9: Non-Baseline | P9: ='Res Bill Impact'!P9 -> 181041.9805 | Q9: ='Res Bill Impact'!Q9 -> 1.688586272 | R9: ='Res Bill Impact'!R9 -> 305705.0031 | S9: =H9*(1+(Q9/F9-1)) -> 1.688586272 | T9: =P9*S9 -> 305705.0031 | X9: Change (Proposed) | Y9: ='Hypothetical SAR and RAR'!U9 -> 0
X10: Proposed (w/ Current Revenues) | Y10: =Y8+Y9 -> 3702555.056
E11: Non-CARE customers | P11: CARE Customers
D12: Fixed Charge | E12: =E13-P12 -> 4047089.348 | F12: 5 | G12: =F12*12*E12/1000 -> 242825.3609 | H12: 5 | I12: =(H12*12*E12)/1000 -> 242825.3609 | O12: Fixed Charge | P12: ='Res Bill Impact'!P12 -> 1799771 | Q12: =F12*(1-CAREDiscountPercent) -> 4 | R12: =Q12*12*P12/1000 -> 86389.008 | S12: =H12*(1-CAREDiscountPercent) -> 4 | T12: =(S12*12*P12)/1000 -> 86389.008
D13: Total Customers | E13: ='Res Bill Impact'!E13 -> 5846860.348
P18: ='Res Bill Impact'!P18 -> Basic Bundled
H19: ='Res Bill Impact'!H19 -> Essential Usage | P19: ='Res Bill Impact'!P19 -> 2024 Recorded Data - Average Monthly Usage - ALL-BASIC th
B20: SCHEDULE DR RATES ($/th) | H20: Monthly Tier 1 Baseline Allowance -BASIC (th) | P20: Climate Zone | Q20: Summer | R20: Winter | S20: Summer | T20: Winter | U20: Population Weight
B21: Rates | C21: ='Res Bill Impact'!C21 -> 2025-01-01 | D21: ='Res Bill Impact'!D21 -> 2025-12-01 | E21: Proposed | H21: Climate Zone | I21: Summer | J21: Winter | Q21: Non-CARE | S21: CARE | U21: Non-CARE | V21: CARE
A22: Summer | B22: Tier 1 | C22: 1.446182026 | D22: 1.645852026 | E22: =H7 -> 1.645852026 | H22: =Zones -> 1 | I22: ='Res Bill Impact'!I22 -> 13 | J22: ='Res Bill Impact'!J22 -> 37.33333333 | P22: =Zones -> 1 | Q22: ='Res Bill Impact'!Q22 -> 22.68195339 | R22: ='Res Bill Impact'!R22 -> 45.72507267 | S22: ='Res Bill Impact'!S22 -> 17.60404118 | T22: ='Res Bill Impact'!T22 -> 33.00381282 | U22: =SUM(Q22:R22)/SUM($Q$22:$R$25) -> 0.3004660927 | V22: =SUM(S22:T22)/SUM($S$22:$T$25) -> 0.2304864426
B23: Tier 2 | C23: 1.868502026 | D23: 2.131092026 | E23: =H9 -> 2.131092026 | H23: 2 | I23: ='Res Bill Impact'!I23 -> 13 | J23: ='Res Bill Impact'!J23 -> 42.16666667 | P23: 2 | Q23: ='Res Bill Impact'!Q23 -> 19.24320082 | R23: ='Res Bill Impact'!R23 -> 49.58569166 | S23: ='Res Bill Impact'!S23 -> 18.36758446 | T23: ='Res Bill Impact'!T23 -> 46.09184154 | U23: =SUM(Q23:R23)/SUM($Q$22:$R$25) -> 0.3023190684 | V23: =SUM(S23:T23)/SUM($S$22:$T$25) -> 0.2935715037
H24: 3 | I24: ='Res Bill Impact'!I24 -> 13 | J24: ='Res Bill Impact'!J24 -> 65 | P24: 3 | Q24: ='Res Bill Impact'!Q24 -> 18.94798314 | R24: ='Res Bill Impact'!R24 -> 71.48580122 | S24: ='Res Bill Impact'!S24 -> 23.35905116 | T24: ='Res Bill Impact'!T24 -> 81.14343361 | U24: =SUM(Q24:R24)/SUM($Q$22:$R$25) -> 0.3972148389 | V24: =SUM(S24:T24)/SUM($S$22:$T$25) -> 0.4759420537
A25: Winter | B25: Tier 1 | C25: =C22 -> 1.446182026 | D25: 1.645852026 | E25: 1.645852026 | H25: 0 | I25: ='Res Bill Impact'!I25 -> 0 | J25: ='Res Bill Impact'!J25 -> 0 | P25: 0 | Q25: ='Res Bill Impact'!Q25 -> 0 | R25: ='Res Bill Impact'!R25 -> 0 | S25: ='Res Bill Impact'!S25 -> 0 | T25: ='Res Bill Impact'!T25 -> 0 | U25: =SUM(Q25:R25)/SUM($Q$22:$R$25) -> 0 | V25: =SUM(S25:T25)/SUM($S$22:$T$25) -> 0
B26: Tier 2 | C26: 1.868502026 | D26: 2.131092026 | E26: 2.131092026
P27: ='Res Bill Impact'!P27 -> Typical Bundled
P28: ='Res Bill Impact'!P28 -> 2020-2024 Recorded Data - Average Monthly Usage - ALL-BASIC th
B29: SCHEDULE DR [CARE] ($/th) | P29: Climate Zone | Q29: Summer | R29: Winter | S29: Summer | T29: Winter | U29: Population Weight
B30: Rates | C30: =C21 -> 2025-01-01 | D30: =D21 -> 2025-12-01 | E30: Proposed | Q30: Non-CARE | S30: CARE | U30: Non-CARE | V30: CARE
A31: Summer | B31: Tier 1 | C31: 1.140658272 | D31: 1.300394272 | E31: =S7 -> 1.300394272 | P31: =Zones -> 1 | Q31: ='Res Bill Impact'!Q31 -> 23.11491818 | R31: ='Res Bill Impact'!R31 -> 49.40758765 | S31: ='Res Bill Impact'!S31 -> 17.51725705 | T31: ='Res Bill Impact'!T31 -> 34.67605291 | U31: =SUM(Q31:R31)/SUM($Q$31:$R$34) -> 0.2964680076 | V31: =SUM(S31:T31)/SUM($S$31:$T$34) -> 0.2235788669
B32: Tier 2 | C32: 1.478514272 | D32: 1.688586272 | E32: =S9 -> 1.688586272 | P32: 2 | Q32: ='Res Bill Impact'!Q32 -> 19.56195699 | R32: ='Res Bill Impact'!R32 -> 55.33374712 | S32: ='Res Bill Impact'!S32 -> 18.5317823 | T32: ='Res Bill Impact'!T32 -> 51.14470611 | U32: =SUM(Q32:R32)/SUM($Q$31:$R$34) -> 0.3061695114 | V32: =SUM(S32:T32)/SUM($S$31:$T$34) -> 0.2984710174
P33: 3 | Q33: ='Res Bill Impact'!Q33 -> 19.98866609 | R33: ='Res Bill Impact'!R33 -> 77.21481657 | S33: ='Res Bill Impact'!S33 -> 24.34162135 | T33: ='Res Bill Impact'!T33 -> 87.23331811 | U33: 0.3973624809 | V33: 0.4779501157
A34: Winter | B34: Tier 1 | C34: =C31 -> 1.140658272 | D34: 1.300394272 | E34: 1.300394272 | P34: 0 | Q34: ='Res Bill Impact'!Q34 -> 0 | R34: ='Res Bill Impact'!R34 -> 0 | S34: ='Res Bill Impact'!S34 -> 0 | T34: ='Res Bill Impact'!T34 -> 0 | U34: 0 | V34: 0
B35: Tier 2 | C35: 1.478514272 | D35: 1.688586272 | E35: 1.688586272
B39: Note: Bill inserts include CPUC fee in the calculations
C40: 2023 Recorded Average Basic Bundled Non-CARE Customer
C41: =C30 -> 2025-01-01 | E41: =D30 -> 2025-12-01 | G41: =E30 -> Proposed
C42: Summer | D42: Winter | E42: Summer | F42: Winter | G42: Summer | H42: Winter
B43: =Zones -> 1 | C43: =IF($Q22>$I22,C$22*$I22+C$23*($Q22-$I22),$Q22*C$22)+('Hypothetical SAR and RAR'!$C$18*$Q22)+IF(Q22>0,$F$12,0) -> 41.94782074 | D43: =IF($R22>$J22,C$25*$J22+C$26*($R22-$J22),$R22*C$25)+('Hypothetical SAR and RAR'!$C$18*$R22)+IF(R22>0,$F$12,0) -> 74.78509027 | E43: =IF($Q22>$I22,D$22*$I22+D$23*($Q22-$I22),$Q22*D$22)+('Hypothetical SAR and RAR'!$C$18*$Q22)+IF(Q22>0,$F$12,0) -> 47.08591488 | F43: =IF($R22>$J22,D$25*$J22+D$26*($R22-$J22),$R22*D$25)+('Hypothetical SAR and RAR'!$C$18*$R22)+IF(R22>0,$F$12,0) -> 84.44302376 | G43: =IF($Q22>$I22,E$22*$I22+E$23*($Q22-$I22),$Q22*E$22)+('Hypothetical SAR and RAR'!$C$18*$Q22)+IF(Q22>0,$H$12,0) -> 47.08591488 | H43: =IF($R22>$J22,E$25*$J22+E$26*($R22-$J22),$R22*E$25)+('Hypothetical SAR and RAR'!$C$18*$R22)+IF(R22>0,$H$12,0) -> 84.44302376
B44: 2 | C44: =IF($Q23>$I23,C$22*$I23+C$23*($Q23-$I23),$Q23*C$22)+('Hypothetical SAR and RAR'!$C$18*$Q23)+IF(Q23>0,$F$12,0) -> 35.51390772 | D44: =IF($R23>$J23,C$25*$J23+C$26*($R23-$J23),$R23*C$25)+('Hypothetical SAR and RAR'!$C$18*$R23)+IF(R23>0,$F$12,0) -> 79.96710289 | E44: =IF($Q23>$I23,D$22*$I23+D$23*($Q23-$I23),$Q23*D$22)+('Hypothetical SAR and RAR'!$C$18*$Q23)+IF(Q23>0,$F$12,0) -> 39.74901982 | F44: =IF($R23>$J23,D$25*$J23+D$26*($R23-$J23),$R23*D$25)+('Hypothetical SAR and RAR'!$C$18*$R23)+IF(R23>0,$F$12,0) -> 90.334683 | G44: =IF($Q23>$I23,E$22*$I23+E$23*($Q23-$I23),$Q23*E$22)+('Hypothetical SAR and RAR'!$C$18*$Q23)+IF(Q23>0,$H$12,0) -> 39.74901982 | H44: =IF($R23>$J23,E$25*$J23+E$26*($R23-$J23),$R23*E$25)+('Hypothetical SAR and RAR'!$C$18*$R23)+IF(R23>0,$H$12,0) -> 90.334683
B45: 3 | C45: =IF($Q24>$I24,C$22*$I24+C$23*($Q24-$I24),$Q24*C$22)+('Hypothetical SAR and RAR'!$C$18*$Q24)+IF(Q24>0,$F$12,0) -> 34.96155484 | D45: =IF($R24>$J24,C$25*$J24+C$26*($R24-$J24),$R24*C$25)+('Hypothetical SAR and RAR'!$C$18*$R24)+IF(R24>0,$F$12,0) -> 111.2992789 | E45: =IF($Q24>$I24,D$22*$I24+D$23*($Q24-$I24),$Q24*D$22)+('Hypothetical SAR and RAR'!$C$18*$Q24)+IF(Q24>0,$F$12,0) -> 39.11914574 | F45: =IF($R24>$J24,D$25*$J24+D$26*($R24-$J24),$R24*D$25)+('Hypothetical SAR and RAR'!$C$18*$R24)+IF(R24>0,$F$12,0) -> 125.9809355 | G45: =IF($Q24>$I24,E$22*$I24+E$23*($Q24-$I24),$Q24*E$22)+('Hypothetical SAR and RAR'!$C$18*$Q24)+IF(Q24>0,$H$12,0) -> 39.11914574 | H45: =IF($R24>$J24,E$25*$J24+E$26*($R24-$J24),$R24*E$25)+('Hypothetical SAR and RAR'!$C$18*$R24)+IF(R24>0,$H$12,0) -> 125.9809355
B46: 0 | C46: =IF($Q25>$I25,C$22*$I25+C$23*($Q25-$I25),$Q25*C$22)+('Hypothetical SAR and RAR'!$C$18*$Q25)+IF(Q25>0,$F$12,0) -> 0 | D46: =IF($R25>$J25,C$25*$J25+C$26*($R25-$J25),$R25*C$25)+('Hypothetical SAR and RAR'!$C$18*$R25)+IF(R25>0,$F$12,0) -> 0 | E46: =IF($Q25>$I25,D$22*$I25+D$23*($Q25-$I25),$Q25*D$22)+('Hypothetical SAR and RAR'!$C$18*$Q25)+IF(Q25>0,$F$12,0) -> 0 | F46: =IF($R25>$J25,D$25*$J25+D$26*($R25-$J25),$R25*D$25)+('Hypothetical SAR and RAR'!$C$18*$R25)+IF(R25>0,$F$12,0) -> 0 | G46: =IF($Q25>$I25,E$22*$I25+E$23*($Q25-$I25),$Q25*E$22)+('Hypothetical SAR and RAR'!$C$18*$Q25)+IF(Q25>0,$H$12,0) -> 0 | H46: =IF($R25>$J25,E$25*$J25+E$26*($R25-$J25),$R25*E$25)+('Hypothetical SAR and RAR'!$C$18*$R25)+IF(R25>0,$H$12,0) -> 0
B47: Total | C47: =SUMPRODUCT(C43:C46,$U$22:$U$25) -> 37.22767767 | D47: =SUMPRODUCT(D43:D46,$U$22:$U$25) -> 90.85568906 | E47: 41.70331268 | F47: 102.7236596 | G47: 41.70331268 | H47: 102.7236596
C50: 2023 Recorded Average Basic Bundled CARE Customer
C51: =C30 -> 2025-01-01 | E51: =D30 -> 2025-12-01 | G51: =E30 -> Proposed
C52: Summer | D52: Winter | E52: Summer | F52: Winter | G52: Summer | H52: Winter
B53: =Zones -> 1 | C53: =IF($S22>$I22,C$31*$I22+C$32*($S22-$I22),$S22*C$31)+('Hypothetical SAR and RAR'!$C$18*$S22)+IF(S22>0,$Q$12,0) -> 25.67970823 | D53: =IF($T22>$J22,C$34*$J22+C$35*($T22-$J22),$T22*C$34)+('Hypothetical SAR and RAR'!$C$18*$T22)+IF(T22>0,$Q$12,0) -> 41.72858164 | E53: =IF($S22>$I22,D$31*$I22+D$32*($S22-$I22),$S22*D$31)+('Hypothetical SAR and RAR'!$C$18*$S22)+IF(S22>0,$Q$12,0) -> 28.72345637 | F53: =IF($T22>$J22,D$34*$J22+D$35*($T22-$J22),$T22*D$34)+('Hypothetical SAR and RAR'!$C$18*$T22)+IF(T22>0,$Q$12,0) -> 47.00047869 | G53: =IF($S22>$I22,E$31*$I22+E$32*($S22-$I22),$S22*E$31)+('Hypothetical SAR and RAR'!$C$18*$S22)+IF(S22>0,$S$12,0) -> 28.72345637 | H53: =IF($T22>$J22,E$34*$J22+E$35*($T22-$J22),$T22*E$34)+('Hypothetical SAR and RAR'!$C$18*$T22)+IF(T22>0,$S$12,0) -> 47.00047869
B54: 2 | C54: =IF($S23>$I23,C$31*$I23+C$32*($S23-$I23),$S23*C$31)+('Hypothetical SAR and RAR'!$C$18*$S23)+IF(S23>0,$Q$12,0) -> 26.81052674 | D54: =IF($T23>$J23,C$34*$J23+C$35*($T23-$J23),$T23*C$34)+('Hypothetical SAR and RAR'!$C$18*$T23)+IF(T23>0,$Q$12,0) -> 58.01641382 | E54: =IF($S23>$I23,D$31*$I23+D$32*($S23-$I23),$S23*D$31)+('Hypothetical SAR and RAR'!$C$18*$S23)+IF(S23>0,$Q$12,0) -> 30.01467394 | F54: =IF($T23>$J23,D$34*$J23+D$35*($T23-$J23),$T23*D$34)+('Hypothetical SAR and RAR'!$C$18*$T23)+IF(T23>0,$Q$12,0) -> 65.57651783 | G54: =IF($S23>$I23,E$31*$I23+E$32*($S23-$I23),$S23*E$31)+('Hypothetical SAR and RAR'!$C$18*$S23)+IF(S23>0,$S$12,0) -> 30.01467394 | H54: =IF($T23>$J23,E$34*$J23+E$35*($T23-$J23),$T23*E$34)+('Hypothetical SAR and RAR'!$C$18*$T23)+IF(T23>0,$S$12,0) -> 65.57651783
B55: 3 | C55: =IF($S24>$I24,C$31*$I24+C$32*($S24-$I24),$S24*C$31)+('Hypothetical SAR and RAR'!$C$18*$S24)+IF(S24>0,$Q$12,0) -> 34.20296016 | D55: =IF($T24>$J24,C$34*$J24+C$35*($T24-$J24),$T24*C$34)+('Hypothetical SAR and RAR'!$C$18*$T24)+IF(T24>0,$Q$12,0) -> 102.2139433 | E55: =IF($S24>$I24,D$31*$I24+D$32*($S24-$I24),$S24*D$31)+('Hypothetical SAR and RAR'!$C$18*$S24)+IF(S24>0,$Q$12,0) -> 38.45567475 | F55: =IF($T24>$J24,D$34*$J24+D$35*($T24-$J24),$T24*D$34)+('Hypothetical SAR and RAR'!$C$18*$T24)+IF(T24>0,$Q$12,0) -> 115.9880667 | G55: =IF($S24>$I24,E$31*$I24+E$32*($S24-$I24),$S24*E$31)+('Hypothetical SAR and RAR'!$C$18*$S24)+IF(S24>0,$S$12,0) -> 38.45567475 | H55: =IF($T24>$J24,E$34*$J24+E$35*($T24-$J24),$T24*E$34)+('Hypothetical SAR and RAR'!$C$18*$T24)+IF(T24>0,$S$12,0) -> 115.9880667
B56: 0 | C56: =IF($S25>$I25,C$31*$I25+C$32*($S25-$I25),$S25*C$31)+('Hypothetical SAR and RAR'!$C$18*$S25)+IF(S25>0,$Q$12,0) -> 0 | D56: =IF($T25>$J25,C$34*$J25+C$35*($T25-$J25),$T25*C$34)+('Hypothetical SAR and RAR'!$C$18*$T25)+IF(T25>0,$Q$12,0) -> 0 | E56: =IF($S25>$I25,D$31*$I25+D$32*($S25-$I25),$S25*D$31)+('Hypothetical SAR and RAR'!$C$18*$S25)+IF(S25>0,$Q$12,0) -> 0 | F56: =IF($T25>$J25,D$34*$J25+D$35*($T25-$J25),$T25*D$34)+('Hypothetical SAR and RAR'!$C$18*$T25)+IF(T25>0,$Q$12,0) -> 0 | G56: =IF($S25>$I25,E$31*$I25+E$32*($S25-$I25),$S25*E$31)+('Hypothetical SAR and RAR'!$C$18*$S25)+IF(S25>0,$S$12,0) -> 0 | H56: =IF($T25>$J25,E$34*$J25+E$35*($T25-$J25),$T25*E$34)+('Hypothetical SAR and RAR'!$C$18*$T25)+IF(T25>0,$S$12,0) -> 0
B57: Total | C57: =SUMPRODUCT(C53:C56,$V$22:$V$25) -> 30.06825835 | D57: =SUMPRODUCT(D53:D56,$V$22:$V$25) -> 75.29775227 | E57: 33.73449306 | F57: 85.28796874 | G57: 33.73449306 | H57: 85.28796874
C60: Essential Usage Basic Bundled Non-CARE Customer
C61: =C51 -> 2025-01-01 | E61: =D30 -> 2025-12-01 | G61: =G51 -> Proposed
C62: Summer | D62: Winter | E62: Summer | F62: Winter | G62: Summer | H62: Winter
B63: =Zones -> 1 | C63: =($C$22*$I22)+('Hypothetical SAR and RAR'!$C$18*$I22)+IF(I22>0,$F$12,0) -> 23.83286634 | D63: =($C$25*$J22)+('Hypothetical SAR and RAR'!$C$18*$J22)+IF(J22>0,$F$12,0) -> 59.08412897 | E63: =($D$22*$I22)+('Hypothetical SAR and RAR'!$C$18*$I22)+IF(I22>0,$F$12,0) -> 26.42857634 | F63: =($D$25*$J22)+('Hypothetical SAR and RAR'!$C$18*$J22)+IF(J22>0,$F$12,0) -> 66.53847564 | G63: =($E$22*$I22)+('Hypothetical SAR and RAR'!$C$18*$I22)+IF(I22>0,$H$12,0) -> 26.42857634 | H63: =($E$25*$J22)+('Hypothetical SAR and RAR'!$C$18*$J22)+IF(J22>0,$H$12,0) -> 66.53847564
B64: 2 | C64: =($C$22*$I23)+('Hypothetical SAR and RAR'!$C$18*$I23)+IF(I23>0,$F$12,0) -> 23.83286634 | D64: =($C$25*$J23)+('Hypothetical SAR and RAR'!$C$18*$J23)+IF(J23>0,$F$12,0) -> 66.0860921 | E64: =($D$22*$I23)+('Hypothetical SAR and RAR'!$C$18*$I23)+IF(I23>0,$F$12,0) -> 26.42857634 | F64: =($D$25*$J23)+('Hypothetical SAR and RAR'!$C$18*$J23)+IF(J23>0,$F$12,0) -> 74.50551043 | G64: =($E$22*$I23)+('Hypothetical SAR and RAR'!$C$18*$I23)+IF(I23>0,$H$12,0) -> 26.42857634 | H64: =($E$25*$J23)+('Hypothetical SAR and RAR'!$C$18*$J23)+IF(J23>0,$H$12,0) -> 74.50551043
B65: 3 | C65: =($C$22*$I24)+('Hypothetical SAR and RAR'!$C$18*$I24)+IF(I24>0,$F$12,0) -> 23.83286634 | D65: =($C$25*$J24)+('Hypothetical SAR and RAR'!$C$18*$J24)+IF(J24>0,$F$12,0) -> 99.16433169 | E65: =($D$22*$I24)+('Hypothetical SAR and RAR'!$C$18*$I24)+IF(I24>0,$F$12,0) -> 26.42857634 | F65: =($D$25*$J24)+('Hypothetical SAR and RAR'!$C$18*$J24)+IF(J24>0,$F$12,0) -> 112.1428817 | G65: =($E$22*$I24)+('Hypothetical SAR and RAR'!$C$18*$I24)+IF(I24>0,$H$12,0) -> 26.42857634 | H65: =($E$25*$J24)+('Hypothetical SAR and RAR'!$C$18*$J24)+IF(J24>0,$H$12,0) -> 112.1428817
B66: 0 | C66: =($C$22*$I25)+('Hypothetical SAR and RAR'!$C$18*$I25)+IF(I25>0,$F$12,0) -> 0 | D66: =($C$25*$J25)+('Hypothetical SAR and RAR'!$C$18*$J25)+IF(J25>0,$F$12,0) -> 0 | E66: =($D$22*$I25)+('Hypothetical SAR and RAR'!$C$18*$I25)+IF(I25>0,$F$12,0) -> 0 | F66: =($D$25*$J25)+('Hypothetical SAR and RAR'!$C$18*$J25)+IF(J25>0,$F$12,0) -> 0 | G66: =($E$22*$I25)+('Hypothetical SAR and RAR'!$C$18*$I25)+IF(I25>0,$H$12,0) -> 0 | H66: =($E$25*$J25)+('Hypothetical SAR and RAR'!$C$18*$J25)+IF(J25>0,$H$12,0) -> 0
B67: Total | C67: =SUMPRODUCT(C63:C66,$U$22:$U$25) -> 23.83286634 | D67: =SUMPRODUCT(D63:D66,$U$22:$U$25) -> 77.12140721 | E67: =SUMPRODUCT(E63:E66,$U$22:$U$25) -> 26.42857634 | F67: 87.06180898 | G67: 26.42857634 | H67: 87.06180898
C70: Essential Usage Basic Bundled CARE Customer
C71: =C51 -> 2025-01-01 | E71: =E61 -> 2025-12-01 | G71: =G61 -> Proposed
C72: Summer | D72: Winter | E72: Summer | F72: Winter | G72: Summer | H72: Winter
B73: =Zones -> 1 | C73: =($C$31*$I22)+('Hypothetical SAR and RAR'!$C$18*$I22)+IF(I22>0,$Q$12,0) -> 18.86105754 | D73: =($C$34*$J22)+('Hypothetical SAR and RAR'!$C$18*$J22)+IF(J22>0,$Q$12,0) -> 46.67790884 | E73: =($D$31*$I22)+('Hypothetical SAR and RAR'!$C$18*$I22)+IF(I22>0,$Q$12,0) -> 20.93762554 | F73: =($D$34*$J22)+('Hypothetical SAR and RAR'!$C$18*$J22)+IF(J22>0,$Q$12,0) -> 52.64138617 | G73: =($E$31*$I22)+('Hypothetical SAR and RAR'!$C$18*$I22)+IF(I22>0,$S$12,0) -> 20.93762554 | H73: =($E$34*$J22)+('Hypothetical SAR and RAR'!$C$18*$J22)+IF(J22>0,$S$12,0) -> 52.64138617
B74: 2 | C74: =($C$31*$I23)+('Hypothetical SAR and RAR'!$C$18*$I23)+IF(I23>0,$Q$12,0) -> 18.86105754 | D74: =($C$34*$J23)+('Hypothetical SAR and RAR'!$C$18*$J23)+IF(J23>0,$Q$12,0) -> 52.20317382 | E74: =($D$31*$I23)+('Hypothetical SAR and RAR'!$C$18*$I23)+IF(I23>0,$Q$12,0) -> 20.93762554 | F74: =($D$34*$J23)+('Hypothetical SAR and RAR'!$C$18*$J23)+IF(J23>0,$Q$12,0) -> 58.93870849 | G74: =($E$31*$I23)+('Hypothetical SAR and RAR'!$C$18*$I23)+IF(I23>0,$S$12,0) -> 20.93762554 | H74: =($E$34*$J23)+('Hypothetical SAR and RAR'!$C$18*$J23)+IF(J23>0,$S$12,0) -> 58.93870849
B75: 3 | C75: =($C$31*$I24)+('Hypothetical SAR and RAR'!$C$18*$I24)+IF(I24>0,$Q$12,0) -> 18.86105754 | D75: =($C$34*$J24)+('Hypothetical SAR and RAR'!$C$18*$J24)+IF(J24>0,$Q$12,0) -> 78.3052877 | E75: =($D$31*$I24)+('Hypothetical SAR and RAR'!$C$18*$I24)+IF(I24>0,$Q$12,0) -> 20.93762554 | F75: =($D$34*$J24)+('Hypothetical SAR and RAR'!$C$18*$J24)+IF(J24>0,$Q$12,0) -> 88.6881277 | G75: =($E$31*$I24)+('Hypothetical SAR and RAR'!$C$18*$I24)+IF(I24>0,$S$12,0) -> 20.93762554 | H75: =($E$34*$J24)+('Hypothetical SAR and RAR'!$C$18*$J24)+IF(J24>0,$S$12,0) -> 88.6881277
B76: 0 | C76: =($C$31*$I25)+('Hypothetical SAR and RAR'!$C$18*$I25)+IF(I25>0,$Q$12,0) -> 0 | D76: =($C$34*$J25)+('Hypothetical SAR and RAR'!$C$18*$J25)+IF(J25>0,$Q$12,0) -> 0 | E76: =($D$31*$I25)+('Hypothetical SAR and RAR'!$C$18*$I25)+IF(I25>0,$Q$12,0) -> 0 | F76: =($D$34*$J25)+('Hypothetical SAR and RAR'!$C$18*$J25)+IF(J25>0,$Q$12,0) -> 0 | G76: =($E$31*$I25)+('Hypothetical SAR and RAR'!$C$18*$I25)+IF(I25>0,$S$12,0) -> 0 | H76: =($E$34*$J25)+('Hypothetical SAR and RAR'!$C$18*$J25)+IF(J25>0,$S$12,0) -> 0
B77: Total | C77: =SUMPRODUCT(C73:C76,$V$22:$V$25) -> 18.86105754 | D77: =SUMPRODUCT(D73:D76,$V$22:$V$25) -> 63.35276884 | E77: 20.93762554 | F77: 71.64626075 | G77: 20.93762554 | H77: 71.64626075
C80: 5-Year Average Monthly Usage Basic Bundled Non-CARE Customer
C81: =C71 -> 2025-01-01 | E81: =E71 -> 2025-12-01 | G81: =G71 -> Proposed
C82: Summer | D82: Winter | E82: Summer | F82: Winter | G82: Summer | H82: Winter
B83: =Zones -> 1 | C83: =IF($Q31>$I22,C$22*$I22+C$23*($Q31-$I22),$Q31*C$22)+('Hypothetical SAR and RAR'!$C$18*$Q31)+IF(Q31>0,$F$12,0) -> 42.75789874 | D83: =IF($R31>$J22,C$25*$J22+C$26*($R31-$J22),$R31*C$25)+('Hypothetical SAR and RAR'!$C$18*$R31)+IF(R31>0,$F$12,0) -> 81.67508327 | E83: =IF($Q31>$I22,D$22*$I22+D$23*($Q31-$I22),$Q31*D$22)+('Hypothetical SAR and RAR'!$C$18*$Q31)+IF(Q31>0,$F$12,0) -> 48.00968511 | F83: =IF($R31>$J22,D$25*$J22+D$26*($R31-$J22),$R31*D$25)+('Hypothetical SAR and RAR'!$C$18*$R31)+IF(R31>0,$F$12,0) -> 92.30000837 | G83: =IF($Q31>$I22,E$22*$I22+E$23*($Q31-$I22),$Q31*E$22)+('Hypothetical SAR and RAR'!$C$18*$Q31)+IF(Q31>0,$H$12,0) -> 48.00968511 | H83: =IF($R31>$J22,E$25*$J22+E$26*($R31-$J22),$R31*E$25)+('Hypothetical SAR and RAR'!$C$18*$R31)+IF(R31>0,$H$12,0) -> 92.30000837
B84: 2 | C84: =IF($Q32>$I23,C$22*$I23+C$23*($Q32-$I23),$Q32*C$22)+('Hypothetical SAR and RAR'!$C$18*$Q32)+IF(Q32>0,$F$12,0) -> 36.11030117 | D84: =IF($R32>$J23,C$25*$J23+C$26*($R32-$J23),$R32*C$25)+('Hypothetical SAR and RAR'!$C$18*$R32)+IF(R32>0,$F$12,0) -> 90.72172629 | E84: =IF($Q32>$I23,D$22*$I23+D$23*($Q32-$I23),$Q32*D$22)+('Hypothetical SAR and RAR'!$C$18*$Q32)+IF(Q32>0,$F$12,0) -> 40.42911545 | F84: =IF($R32>$J23,D$25*$J23+D$26*($R32-$J23),$R32*D$25)+('Hypothetical SAR and RAR'!$C$18*$R32)+IF(R32>0,$F$12,0) -> 102.5986883 | G84: =IF($Q32>$I23,E$22*$I23+E$23*($Q32-$I23),$Q32*E$22)+('Hypothetical SAR and RAR'!$C$18*$Q32)+IF(Q32>0,$H$12,0) -> 40.42911545 | H84: =IF($R32>$J23,E$25*$J23+E$26*($R32-$J23),$R32*E$25)+('Hypothetical SAR and RAR'!$C$18*$R32)+IF(R32>0,$H$12,0) -> 102.5986883
B85: 3 | C85: =IF($Q33>$I24,C$22*$I24+C$23*($Q33-$I24),$Q33*C$22)+('Hypothetical SAR and RAR'!$C$18*$Q33)+IF(Q33>0,$F$12,0) -> 36.90867475 | D85: =IF($R33>$J24,C$25*$J24+C$26*($R33-$J24),$R33*C$25)+('Hypothetical SAR and RAR'!$C$18*$R33)+IF(R33>0,$F$12,0) -> 122.0182782 | E85: =IF($Q33>$I24,D$22*$I24+D$23*($Q33-$I24),$Q33*D$22)+('Hypothetical SAR and RAR'!$C$18*$Q33)+IF(Q33>0,$F$12,0) -> 41.33953857 | F85: =IF($R33>$J24,D$25*$J24+D$26*($R33-$J24),$R33*D$25)+('Hypothetical SAR and RAR'!$C$18*$R33)+IF(R33>0,$F$12,0) -> 138.2043169 | G85: =IF($Q33>$I24,E$22*$I24+E$23*($Q33-$I24),$Q33*E$22)+('Hypothetical SAR and RAR'!$C$18*$Q33)+IF(Q33>0,$H$12,0) -> 41.33953857 | H85: =IF($R33>$J24,E$25*$J24+E$26*($R33-$J24),$R33*E$25)+('Hypothetical SAR and RAR'!$C$18*$R33)+IF(R33>0,$H$12,0) -> 138.2043169
B86: 0 | C86: =IF($Q34>$I25,C$22*$I25+C$23*($Q34-$I25),$Q34*C$22)+('Hypothetical SAR and RAR'!$C$18*$Q34)+IF(Q34>0,$F$12,0) -> 0 | D86: =IF($R34>$J25,C$25*$J25+C$26*($R34-$J25),$R34*C$25)+('Hypothetical SAR and RAR'!$C$18*$R34)+IF(R34>0,$F$12,0) -> 0 | E86: =IF($Q34>$I25,D$22*$I25+D$23*($Q34-$I25),$Q34*D$22)+('Hypothetical SAR and RAR'!$C$18*$Q34)+IF(Q34>0,$F$12,0) -> 0 | F86: =IF($R34>$J25,D$25*$J25+D$26*($R34-$J25),$R34*D$25)+('Hypothetical SAR and RAR'!$C$18*$R34)+IF(R34>0,$F$12,0) -> 0 | G86: =IF($Q34>$I25,E$22*$I25+E$23*($Q34-$I25),$Q34*E$22)+('Hypothetical SAR and RAR'!$C$18*$Q34)+IF(Q34>0,$H$12,0) -> 0 | H86: =IF($R34>$J25,E$25*$J25+E$26*($R34-$J25),$R34*E$25)+('Hypothetical SAR and RAR'!$C$18*$R34)+IF(R34>0,$H$12,0) -> 0
B87: Total | C87: =SUMPRODUCT(C83:C86,$U$22:$U$25) -> 38.42480467 | D87: =SUMPRODUCT(D83:D86,$U$22:$U$25) -> 100.4349717 | E87: 43.06845317 | F87: 113.6473682 | G87: 43.06845317 | H87: 113.6473682
C90: 5-Year Average Monthly Usage Basic Bundled CARE Customer
C91: =C81 -> 2025-01-01 | E91: =E81 -> 2025-12-01 | G91: =G81 -> Proposed
C92: Summer | D92: Winter | E92: Summer | F92: Winter | G92: Summer | H92: Winter
B93: =Zones -> 1 | C93: =IF($S31>$I22,C$31*$I22+C$32*($S31-$I22),$S31*C$31)+('Hypothetical SAR and RAR'!$C$18*$S31)+IF(S31>0,$Q$12,0) -> 25.55117971 | D93: =IF($T31>$J22,C$34*$J22+C$35*($T31-$J22),$T31*C$34)+('Hypothetical SAR and RAR'!$C$18*$T31)+IF(T31>0,$Q$12,0) -> 43.64021673 | E93: =IF($S31>$I22,D$31*$I22+D$32*($S31-$I22),$S31*D$31)+('Hypothetical SAR and RAR'!$C$18*$S31)+IF(S31>0,$Q$12,0) -> 28.57669693 | F93: =IF($T31>$J22,D$34*$J22+D$35*($T31-$J22),$T31*D$34)+('Hypothetical SAR and RAR'!$C$18*$T31)+IF(T31>0,$Q$12,0) -> 49.17923072 | G93: =IF($S31>$I22,E$31*$I22+E$32*($S31-$I22),$S31*E$31)+('Hypothetical SAR and RAR'!$C$18*$S31)+IF(S31>0,$S$12,0) -> 28.57669693 | H93: =IF($T31>$J22,E$34*$J22+E$35*($T31-$J22),$T31*E$34)+('Hypothetical SAR and RAR'!$C$18*$T31)+IF(T31>0,$S$12,0) -> 49.17923072
B94: 2 | C94: =IF($S32>$I23,C$31*$I23+C$32*($S32-$I23),$S32*C$31)+('Hypothetical SAR and RAR'!$C$18*$S32)+IF(S32>0,$Q$12,0) -> 27.05370608 | D94: =IF($T32>$J23,C$34*$J23+C$35*($T32-$J23),$T32*C$34)+('Hypothetical SAR and RAR'!$C$18*$T32)+IF(T32>0,$Q$12,0) -> 65.49977837 | E94: =IF($S32>$I23,D$31*$I23+D$32*($S32-$I23),$S32*D$31)+('Hypothetical SAR and RAR'!$C$18*$S32)+IF(S32>0,$Q$12,0) -> 30.29234665 | F94: =IF($T32>$J23,D$34*$J23+D$35*($T32-$J23),$T32*D$34)+('Hypothetical SAR and RAR'!$C$18*$T32)+IF(T32>0,$Q$12,0) -> 74.12134774 | G94: =IF($S32>$I23,E$31*$I23+E$32*($S32-$I23),$S32*E$31)+('Hypothetical SAR and RAR'!$C$18*$S32)+IF(S32>0,$S$12,0) -> 30.29234665 | H94: =IF($T32>$J23,E$34*$J23+E$35*($T32-$J23),$T32*E$34)+('Hypothetical SAR and RAR'!$C$18*$T32)+IF(T32>0,$S$12,0) -> 74.12134774
B95: 3 | C95: =IF($S33>$I24,C$31*$I24+C$32*($S33-$I24),$S33*C$31)+('Hypothetical SAR and RAR'!$C$18*$S33)+IF(S33>0,$Q$12,0) -> 35.65816063 | D95: =IF($T33>$J24,C$34*$J24+C$35*($T33-$J24),$T33*C$34)+('Hypothetical SAR and RAR'!$C$18*$T33)+IF(T33>0,$Q$12,0) -> 111.2331492 | E95: =IF($S33>$I24,D$31*$I24+D$32*($S33-$I24),$S33*D$31)+('Hypothetical SAR and RAR'!$C$18*$S33)+IF(S33>0,$Q$12,0) -> 40.11728571 | F95: =IF($T33>$J24,D$34*$J24+D$35*($T33-$J24),$T33*D$34)+('Hypothetical SAR and RAR'!$C$18*$T33)+IF(T33>0,$Q$12,0) -> 126.2865868 | G95: =IF($S33>$I24,E$31*$I24+E$32*($S33-$I24),$S33*E$31)+('Hypothetical SAR and RAR'!$C$18*$S33)+IF(S33>0,$S$12,0) -> 40.11728571 | H95: =IF($T33>$J24,E$34*$J24+E$35*($T33-$J24),$T33*E$34)+('Hypothetical SAR and RAR'!$C$18*$T33)+IF(T33>0,$S$12,0) -> 126.2865868
B96: 0 | C96: =IF($S34>$I25,C$31*$I25+C$32*($S34-$I25),$S34*C$31)+('Hypothetical SAR and RAR'!$C$18*$S34)+IF(S34>0,$Q$12,0) -> 0 | D96: =IF($T34>$J25,C$34*$J25+C$35*($T34-$J25),$T34*C$34)+('Hypothetical SAR and RAR'!$C$18*$T34)+IF(T34>0,$Q$12,0) -> 0 | E96: =IF($S34>$I25,D$31*$I25+D$32*($S34-$I25),$S34*D$31)+('Hypothetical SAR and RAR'!$C$18*$S34)+IF(S34>0,$Q$12,0) -> 0 | F96: =IF($T34>$J25,D$34*$J25+D$35*($T34-$J25),$T34*D$34)+('Hypothetical SAR and RAR'!$C$18*$T34)+IF(T34>0,$Q$12,0) -> 0 | G96: =IF($S34>$I25,E$31*$I25+E$32*($S34-$I25),$S34*E$31)+('Hypothetical SAR and RAR'!$C$18*$S34)+IF(S34>0,$S$12,0) -> 0 | H96: =IF($T34>$J25,E$34*$J25+E$35*($T34-$J25),$T34*E$34)+('Hypothetical SAR and RAR'!$C$18*$T34)+IF(T34>0,$S$12,0) -> 0
B97: Total | C97: =SUMPRODUCT(C93:C96,$V$22:$V$25) -> 30.80261589 | D97: =SUMPRODUCT(D93:D96,$V$22:$V$25) -> 82.22788019 | E97: 34.57301432 | F97: 93.20015891 | G97: 34.57301432 | H97: 93.20015891

Sheet SetUp
C4: Current Quarter Effective Rate Date | D4: 2025-12-01 | F4: Zones | H4: Revenue Recovery Mechanisms | J4: Years Available for Rate Impact | K4: Procurement Rate Assumption
C5: Beginning of Year Effecive Rate Date | D5: 2025-01-01 | F5: 1 | H5: Core Procurement | J5: 2025 | K5: 0.3459491667
C6: Care Discount % | D6: 0.2 | F6: 2 | H6: Allocated Base Margin | J6: =J5+1 -> 2026 | K6: =K5*(1+L6) -> 0.3805440833 | L6: 0.1
C7: Proposed Residential Fixed Charge | D7: 5 | F7: 3 | H7: Distribution | J7: =J6+1 -> 2027 | K7: =K6*(1+L7) -> 0.4185984917 | L7: 0.1
H8: ECPT adjusted | J8: 2028 | K8: 0.4604583408 | L8: 0.1
F9: All | H9: Local Transmission | J9: 2029 | K9: 0.5065041749 | L9: 0.1
H10: SGIP
H11: GHG End User | J11: =J5-1 -> 2024 | K11: 0.3499483333
C12: Regulatory Fee | D12: 0.0025 | H12: Public Purpose Programs
H13: Backbone Transmission
F14: Other Revenues | H14: 47% Res (LUAF, Other)
F15: and Balancing | H15: ECPT
F16: Accouns | H16: EPAM
H17: CFCA
H18: Non-Residential
H19: Storage
H22: Procurement
H23: Customer Costs
H24: Medium Pressure Distribution
H25: High Pressure Distribution
H26: Local Transmission
H27: Storage
H28: GHG Revenue
H29: Other Balancing Acounts
H30: NGV Costs
H31: Backbone Transmisson
H32: Public Purpose Programs

Sheet Selected Data
A1: ='Authorized Rev Req'!A1 -> 0
A2: ='Authorized Rev Req'!A2 -> Annual Period 2025
A3: ='Authorized Rev Req'!A3 -> Reporting Date: Quarter Ended December 31
A4: Summary of Selected Data
Q5: Revenue
Q6: Requirement
Q7: $000
A8: 1 | B8: Current total system-level revenue requirement that is used for defining the reporting threshold: | Q8: ='Incremental Rev Req'!B5 -> 6914149.915
B9: A | C9: One-percent reporting threshold | Q9: =Q8*0.01 -> 69141.49915
A11: 2 | B11: List of currently open proceedings that exceed the threshold for use of the affordability metrics (proceedings shaded gray filed prior to D.22-08-023):
B12: A | C12: ='Incremental Rev Req'!B126 -> A.25-03-011 | D12: ='Incremental Rev Req'!A126 -> 2026 Cost of Capital | Q12: ='Incremental Rev Req'!D126 -> 117484.5496
B13: B | C13: ='Incremental Rev Req'!B127 -> A.25-04-020 | D13: ='Incremental Rev Req'!A127 -> TIMPBA Application | Q13: ='Incremental Rev Req'!G127 -> 173808.37
B14: D | C14: ='Incremental Rev Req'!B128 -> A.25-05-015/016 | D14: ='Incremental Rev Req'!A128 -> 2024 GRC Track 3 (PSEP and WMPMA) | Q14: ='Incremental Rev Req'!D128 -> 132245
B15: E | C15: =C21 -> A.24-12-011 | D15: =D21 -> Angeles Link Phase 2 | Q15: =Q21 -> 273335.4699
A17: 3 | B17: List of currently open proceedings for which affordability metrics have been filed:
B18: A | C18: =C13 -> A.25-04-020 | D18: =D13 -> TIMPBA Application | Q18: =Q13 -> 173808.37
B19: C | C19: =C14 -> A.25-05-015/016 | D19: 2024 GRC Track 3 (PSEP and WMPMA) | Q19: =Q14 -> 132245
B20: D | C20: =C12 -> A.25-03-011 | D20: =D12 -> 2026 Cost of Capital | Q20: ='Incremental Rev Req'!D126 -> 117484.5496
B21: E | C21: ='Incremental Rev Req'!B134 -> A.24-12-011 | D21: ='Incremental Rev Req'!A134 -> Angeles Link Phase 2 | Q21: ='Incremental Rev Req'!D134 -> 273335.4699
C22: ='Incremental Rev Req'!B136 -> A.25-09-014 | D22: ='Incremental Rev Req'!A136 -> Cost Allocation Proceeding
A24: 4 | B24: List of currently open proceedings that do not exceed the threshold for use of the affordability metrics (proceedings shaded gray filed prior to D.22-08-023):
B25: A | C25: ='Incremental Rev Req'!B130 -> A.25-06-012 | D25: ='Incremental Rev Req'!A130 -> Low Income Bridge Application | Q25: ='Incremental Rev Req'!D130 -> 20690.27751
B26: B | C26: A.25-07-001 | D26: Line Extension Allowance Application | Q26: ='Incremental Rev Req'!D131 -> 488.7430154
B27: C | C27: A-25-06-011 | D27: Angeles Link Phase 1 | Q27: ='Incremental Rev Req'!D132 -> 24720
B28: D | C28: A.25-089-XXX | D28: MASS Energy | Q28: ='Incremental Rev Req'!D133 -> 9972.956
B29: E | C29: ='Incremental Rev Req'!B125 -> A.25-08-008 | D29: ='Incremental Rev Req'!A125 -> DIMP Interim Recovery | Q29: ='Incremental Rev Req'!G125 -> 59144.447
B30: F | C30: ='Incremental Rev Req'!B129 -> A.25-05-004 | D30: ='Incremental Rev Req'!A129 -> Application for Incremental Funding For CIS Replacement | Q30: ='Incremental Rev Req'!G129 -> 12700
A31: 5 | B31: Total system-level revenue requirement if all pending revenue were granted in full:
B33: A | C33: YE 2025 | Q33: ='Incremental Rev Req'!O143 -> 6914149.915
B34: B | C34: YE 2026 | Q34: ='Incremental Rev Req'!P143 -> 5547177.994
B35: C | C35: YE 2027 | Q35: ='Incremental Rev Req'!Q143 -> 5223675.363
B36: D | C36: YE 2028 | Q36: ='Incremental Rev Req'!R143 -> 5070935.58
B37: E | C37: YE 2029 | Q37: ='Incremental Rev Req'!S143 -> 5075242.815
A39: 6 | B39: Bundled residential average rate (RAR) if all pending revenue were granted in full (from Cost and Rate Tracker (CRT) as submitted by utility): | R39: cents/therm
B40: A | C40: YE 2025 | R40: 192.5550197
B41: B | C41: YE 2026 | R41: 168.3706994
B42: C | C42: YE 2027 | R42: 163.3678626
B43: D | C43: YE 2028 | R43: 158.9244905
B44: E | C44: YE 2029 | R44: 159.0641593
A45: 7 | B45: Bundled residential average monthly bill corresponding to RAR above for typical customer in climate zone 1 using a Typical 5-year average usage(from CRT as submitted by utility): | S45: Non-CARE | T45: CARE
B47: A | C47: YE 2025 | S47: 73.11734609 | T47: 40.46305482
B48: B | C48: YE 2026 | S48: 63.82722897 | T48: 35.49235975
B49: C | C49: YE 2027 | S49: 61.90544911 | T49: 34.46410773
B50: D | C50: YE 2028 | S50: 60.1985809 | T50: 33.5508446
B51: E | C51: YE 2029 | S51: 60.252233 | T51: 33.57955126
